Workbook

Sheet Model Controls
B1: Expense Categories | D1: Income Categories | F1: Payment Types | H1: Savings Percent | J1: Credit Cards
B2: Church | D2: TRH | F2: =J2 -> Discover | H2: 0.2 | J2: Discover
B3: Clothes | D3: BYU | F3: =J3 -> Gesa | J3: Gesa
B4: Cosmetics | D4: MGF | F4: Cash or Debit | H4: Other Automatic Expense
B5: Eat Out | D5: FAMILY | H5: 0.1
B6: Entertainment | D6: MISC
B7: Food | D7: FORD | H7: Other Expense Name
B8: Household | H8: Tithing (Unpaid) | J8: Begining Credit Card Balance
B9: Medical | J9: =J2 -> Discover | K9: 956.01
B10: Misc | H10: Other Expense Category | J10: =J3 -> Gesa | K10: 0
B11: Phone | H11: Church
B12: Rent | J12: Beginging Balances
B13: School | H13: Other Expense Update Name | J13: Spending | K13: 2254.06
B14: Transportation | H14: Tithing (Paid) | J14: Savings | K14: 4120
B15: Travel
B16: Utilities | J16: Last Month of Last Year
J17: Dec. '15
B21: * Do not Rename or delete this sheet! Everything else depends on this sheet.
B22: * To see other months right click any tab at the bottom and select unhide. Then choose which tab to view. Tabs can be hiden in similar fashion.
B23: * To start model the first line on the "Jan" tab must be manually filled out.

Sheet Graphs
B2: Account Balances
B25: End of Month & YTD Surplus/Deficit Combo
B46: Monthly & Total Saved

Sheet Balances
B2: Ending Account Balances
C3: ='Model Controls'!J17 -> Dec. '15 | D3: January | E3: February | F3: March | G3: April | H3: May | I3: June | J3: July | K3: August | L3: September | M3: October | N3: November | O3: December
B4: Spending | C4: ='Model Controls'!K13 -> 2254.06 | D4: =INDEX(January!$L$5:$L$151,COUNTA(January!$L$5:$L$151)) -> 1535.198 | E4: =INDEX(February!$L$5:$L$150,COUNTA(February!$L$5:$L$150)) -> 1697.218 | F4: =INDEX(March!$L$5:$L$151,COUNTA(March!$L$5:$L$151)) -> 3026.338 | G4: =INDEX(April!$L$5:$L$151,COUNTA(April!$L$5:$L$151)) -> 3433.288 | H4: =INDEX(May!$L$5:$L$151,COUNTA(May!$L$5:$L$151)) -> 3433.288 | I4: =INDEX(June!$L$5:$L$151,COUNTA(June!$L$5:$L$151)) -> 3433.288 | J4: =INDEX(July!$L$5:$L$150,COUNTA(July!$L$5:$L$150)) -> 3433.288 | K4: =INDEX(August!$L$5:$L$149,COUNTA(August!$L$5:$L$149)) -> 3433.288 | L4: =INDEX(September!$L$5:$L$153,COUNTA(September!$L$5:$L$153)) -> 3433.288 | M4: =INDEX(October!$L$5:$L$153,COUNTA(October!$L$5:$L$153)) -> 3433.288 | N4: =INDEX(November!$L$5:$L$149,COUNTA(November!$L$5:$L$149)) -> 3433.288 | O4: =INDEX(December!$L$5:$L$151,COUNTA(December!$L$5:$L$151)) -> 3433.288
B5: Savings | C5: ='Model Controls'!K14 -> 4120 | D5: =INDEX(January!$M$5:$M$151,COUNTA(January!$M$5:$M$151)) -> 6332 | E5: =INDEX(February!$M$5:$M$150,COUNTA(February!$M$5:$M$150)) -> 7628 | F5: =INDEX(March!$M$5:$M$151,COUNTA(March!$M$5:$M$151)) -> 8981 | G5: =INDEX(April!$M$5:$M$151,COUNTA(April!$M$5:$M$151)) -> 9434 | H5: =INDEX(May!$M$5:$M$151,COUNTA(May!$M$5:$M$151)) -> 9434 | I5: =INDEX(June!$M$5:$M$151,COUNTA(June!$M$5:$M$151)) -> 9434 | J5: =INDEX(July!$M$5:$M$150,COUNTA(July!$M$5:$M$150)) -> 9434 | K5: =INDEX(August!$M$5:$M$149,COUNTA(August!$M$5:$M$149)) -> 9434 | L5: =INDEX(September!$M$5:$M$153,COUNTA(September!$M$5:$M$153)) -> 9434 | M5: =INDEX(October!$M$5:$M$153,COUNTA(October!$M$5:$M$153)) -> 9434 | N5: =INDEX(November!$M$5:$M$149,COUNTA(November!$M$5:$M$149)) -> 9434 | O5: =INDEX(December!$M$5:$M$151,COUNTA(December!$M$5:$M$151)) -> 9434
B6: Total | C6: =SUM(C4:C5) -> 6374.06 | D6: =SUM(D4:D5) -> 7867.198 | E6: =SUM(E4:E5) -> 9325.218 | F6: 12007.338 | G6: 12867.288 | H6: 12867.288 | I6: 12867.288 | J6: 12867.288 | K6: 12867.288 | L6: 12867.288 | M6: 12867.288 | N6: 12867.288 | O6: 12867.288
B8: Surplus/Deficit
C9: ='Model Controls'!J17 -> Dec. '15 | D9: January | E9: February | F9: March | G9: April | H9: May | I9: June | J9: July | K9: August | L9: September | M9: October | N9: November | O9: December
B10: MTD Surplus/Deficit | C10: 0 | D10: =Income!D43-Expenses!C38 -> 756.138 | E10: =Income!E43-Expenses!D38 -> 641.83 | F10: =Income!F43-Expenses!E38 -> 1354.12 | G10: =Income!G43-Expenses!F38 -> 406.95 | H10: =Income!H43-Expenses!G38 -> 0 | I10: =Income!I43-Expenses!H38 -> 0 | J10: =Income!J43-Expenses!I38 -> 0 | K10: =Income!K43-Expenses!J38 -> 0 | L10: =Income!L43-Expenses!K38 -> 0 | M10: =Income!M43-Expenses!L38 -> 0 | N10: =Income!N43-Expenses!M38 -> 0 | O10: =Income!O43-Expenses!N38 -> 0
B11: YTD Surplus/Deficit | C11: 0 | D11: =D10 -> 756.138 | E11: =D11+E10 -> 1397.968 | F11: =E11+F10 -> 2752.088 | G11: 3159.038 | H11: 3159.038 | I11: 3159.038 | J11: 3159.038 | K11: 3159.038 | L11: 3159.038 | M11: 3159.038 | N11: 3159.038 | O11: 3159.038

Sheet Budget
B2: Budget
C3: January | E3: February | G3: March | I3: April | K3: May | M3: June | O3: July | Q3: August | S3: September | U3: October | W3: November | Y3: December | AA3: YTD Total
C4: Budget | D4: Remaining | E4: Budget | F4: Remaining | G4: Budget | H4: Remaining | I4: Budget | J4: Remaining | K4: Budget | L4: Remaining | M4: Budget | N4: Remaining | O4: Budget | P4: Remaining | Q4: Budget | R4: Remaining | S4: Budget | T4: Remaining | U4: Budget | V4: Remaining | W4: Budget | X4: Remaining | Y4: Budget | Z4: Remaining | AA4: Budget | AB4: Left Over
B5: =IF('Model Controls'!B2=0,"",'Model Controls'!B2) -> Church | C5: 0 | D5: =C5-Expenses!C20 -> -348.952 | E5: 0 | F5: =E5-Expenses!D20 -> -434.95 | G5: 0 | H5: =G5-Expenses!E20 -> -498.45 | I5: 0 | J5: =I5-Expenses!F20 -> -226.96 | K5: =(SUMIF(May!$C$5:'May'!$C$151,$B5,May!$D$5:'May'!$D$151)+SUMIF(May!$C$5:'May'!$C$151,$B5,May!$G$5:'May'!$G$151)+SUMIF(May!$C$5:'May'!$C$151,$B5,May!$H$5:'May'!$H$151)) -> 0 | L5: =K5-Expenses!G20 -> 0 | M5: =(SUMIF(June!$C$5:'June'!$C$151,$B5,June!$D$5:'June'!$D$151)+SUMIF(June!$C$5:'June'!$C$151,$B5,June!$G$5:'June'!$G$151)+SUMIF(June!$C$5:'June'!$C$151,$B5,June!$H$5:'June'!$H$151)) -> 0 | N5: =M5-Expenses!H20 -> 0 | O5: =(SUMIF(July!$C$5:'July'!$C$150,$B5,July!$D$5:'July'!$D$150)+SUMIF(July!$C$5:'July'!$C$150,$B5,July!$G$5:'July'!$G$150)+SUMIF(July!$C$5:'July'!$C$150,$B5,July!$H$5:'July'!$H$150)) -> 0 | P5: =O5-Expenses!I20 -> 0 | Q5: =(SUMIF(August!$C$5:'August'!$C$149,$B5,August!$D$5:'August'!$D$149)+SUMIF(August!$C$5:'August'!$C$149,$B5,August!$G$5:'August'!$G$149)+SUMIF(August!$C$5:'August'!$C$149,$B5,August!$H$5:'August'!$H$149)) -> 0 | R5: =Q5-Expenses!J20 -> 0 | S5: =(SUMIF(September!$C$5:'September'!$C$153,$B5,September!$D$5:'September'!$D$153)+SUMIF(September!$C$5:'September'!$C$153,$B5,September!$G$5:'September'!$G$153)+SUMIF(September!$C$5:'September'!$C$153,$B5,September!$H$5:'September'!$H$153)) -> 0 | T5: =S5-Expenses!K20 -> 0 | U5: =(SUMIF(October!$C$5:'October'!$C$153,$B5,October!$D$5:'October'!$D$153)+SUMIF(October!$C$5:'October'!$C$153,$B5,October!$G$5:'October'!$G$153)+SUMIF(October!$C$5:'October'!$C$153,$B5,October!$H$5:'October'!$H$153)) -> 0 | V5: =U5-Expenses!L20 -> 0 | W5: =(SUMIF(November!$C$5:'November'!$C$149,$B5,November!$D$5:'November'!$D$149)+SUMIF(November!$C$5:'November'!$C$149,$B5,November!$G$5:'November'!$G$149)+SUMIF(November!$C$5:'November'!$C$149,$B5,November!$H$5:'November'!$H$149)) -> 0 | X5: =W5-Expenses!M20 -> 0 | Y5: =(SUMIF(December!$C$5:'December'!$C$151,$B5,December!$D$5:'December'!$D$151)+SUMIF(December!$C$5:'December'!$C$151,$B5,December!$G$5:'December'!$G$151)+SUMIF(December!$C$5:'December'!$C$151,$B5,December!$H$5:'December'!$H$151)) -> 0 | Z5: =Y5-Expenses!N20 -> 0 | AA5: =SUM(C5,E5,G5,I5,K5,M5,O5,Q5,S5,U5,W5,Y5) -> 0 | AB5: =SUM(D5,F5,H5,J5,L5,N5,P5,R5,T5,V5,X5,Z5) -> -1509.312
B6: =IF('Model Controls'!B3=0,"",'Model Controls'!B3) -> Clothes | C6: 50 | D6: =C6-Expenses!C21 -> 50 | E6: 50 | F6: =E6-Expenses!D21 -> -19.33 | G6: 100 | H6: =G6-Expenses!E21 -> -57.14 | I6: 25 | J6: =I6-Expenses!F21 -> -3 | K6: =(SUMIF(May!$C$5:'May'!$C$151,$B6,May!$D$5:'May'!$D$151)+SUMIF(May!$C$5:'May'!$C$151,$B6,May!$G$5:'May'!$G$151)+SUMIF(May!$C$5:'May'!$C$151,$B6,May!$H$5:'May'!$H$151)) -> 0 | L6: =K6-Expenses!G21 -> 0 | M6: =(SUMIF(June!$C$5:'June'!$C$151,$B6,June!$D$5:'June'!$D$151)+SUMIF(June!$C$5:'June'!$C$151,$B6,June!$G$5:'June'!$G$151)+SUMIF(June!$C$5:'June'!$C$151,$B6,June!$H$5:'June'!$H$151)) -> 0 | N6: =M6-Expenses!H21 -> 0 | O6: =(SUMIF(July!$C$5:'July'!$C$150,$B6,July!$D$5:'July'!$D$150)+SUMIF(July!$C$5:'July'!$C$150,$B6,July!$G$5:'July'!$G$150)+SUMIF(July!$C$5:'July'!$C$150,$B6,July!$H$5:'July'!$H$150)) -> 0 | P6: =O6-Expenses!I21 -> 0 | Q6: =(SUMIF(August!$C$5:'August'!$C$149,$B6,August!$D$5:'August'!$D$149)+SUMIF(August!$C$5:'August'!$C$149,$B6,August!$G$5:'August'!$G$149)+SUMIF(August!$C$5:'August'!$C$149,$B6,August!$H$5:'August'!$H$149)) -> 0 | R6: =Q6-Expenses!J21 -> 0 | S6: =(SUMIF(September!$C$5:'September'!$C$153,$B6,September!$D$5:'September'!$D$153)+SUMIF(September!$C$5:'September'!$C$153,$B6,September!$G$5:'September'!$G$153)+SUMIF(September!$C$5:'September'!$C$153,$B6,September!$H$5:'September'!$H$153)) -> 0 | T6: =S6-Expenses!K21 -> 0 | U6: =(SUMIF(October!$C$5:'October'!$C$153,$B6,October!$D$5:'October'!$D$153)+SUMIF(October!$C$5:'October'!$C$153,$B6,October!$G$5:'October'!$G$153)+SUMIF(October!$C$5:'October'!$C$153,$B6,October!$H$5:'October'!$H$153)) -> 0 | V6: =U6-Expenses!L21 -> 0 | W6: =(SUMIF(November!$C$5:'November'!$C$149,$B6,November!$D$5:'November'!$D$149)+SUMIF(November!$C$5:'November'!$C$149,$B6,November!$G$5:'November'!$G$149)+SUMIF(November!$C$5:'November'!$C$149,$B6,November!$H$5:'November'!$H$149)) -> 0 | X6: =W6-Expenses!M21 -> 0 | Y6: =(SUMIF(December!$C$5:'December'!$C$151,$B6,December!$D$5:'December'!$D$151)+SUMIF(December!$C$5:'December'!$C$151,$B6,December!$G$5:'December'!$G$151)+SUMIF(December!$C$5:'December'!$C$151,$B6,December!$H$5:'December'!$H$151)) -> 0 | Z6: =Y6-Expenses!N21 -> 0 | AA6: 225 | AB6: -29.47
B7: =IF('Model Controls'!B4=0,"",'Model Controls'!B4) -> Cosmetics | C7: 0 | D7: =C7-Expenses!C22 -> 0 | E7: 0 | F7: =E7-Expenses!D22 -> 0 | G7: 15 | H7: =G7-Expenses!E22 -> 15 | I7: 15 | J7: =I7-Expenses!F22 -> -22.03 | K7: =(SUMIF(May!$C$5:'May'!$C$151,$B7,May!$D$5:'May'!$D$151)+SUMIF(May!$C$5:'May'!$C$151,$B7,May!$G$5:'May'!$G$151)+SUMIF(May!$C$5:'May'!$C$151,$B7,May!$H$5:'May'!$H$151)) -> 0 | L7: =K7-Expenses!G22 -> 0 | M7: =(SUMIF(June!$C$5:'June'!$C$151,$B7,June!$D$5:'June'!$D$151)+SUMIF(June!$C$5:'June'!$C$151,$B7,June!$G$5:'June'!$G$151)+SUMIF(June!$C$5:'June'!$C$151,$B7,June!$H$5:'June'!$H$151)) -> 0 | N7: =M7-Expenses!H22 -> 0 | O7: =(SUMIF(July!$C$5:'July'!$C$150,$B7,July!$D$5:'July'!$D$150)+SUMIF(July!$C$5:'July'!$C$150,$B7,July!$G$5:'July'!$G$150)+SUMIF(July!$C$5:'July'!$C$150,$B7,July!$H$5:'July'!$H$150)) -> 0 | P7: =O7-Expenses!I22 -> 0 | Q7: =(SUMIF(August!$C$5:'August'!$C$149,$B7,August!$D$5:'August'!$D$149)+SUMIF(August!$C$5:'August'!$C$149,$B7,August!$G$5:'August'!$G$149)+SUMIF(August!$C$5:'August'!$C$149,$B7,August!$H$5:'August'!$H$149)) -> 0 | R7: =Q7-Expenses!J22 -> 0 | S7: =(SUMIF(September!$C$5:'September'!$C$153,$B7,September!$D$5:'September'!$D$153)+SUMIF(September!$C$5:'September'!$C$153,$B7,September!$G$5:'September'!$G$153)+SUMIF(September!$C$5:'September'!$C$153,$B7,September!$H$5:'September'!$H$153)) -> 0 | T7: =S7-Expenses!K22 -> 0 | U7: =(SUMIF(October!$C$5:'October'!$C$153,$B7,October!$D$5:'October'!$D$153)+SUMIF(October!$C$5:'October'!$C$153,$B7,October!$G$5:'October'!$G$153)+SUMIF(October!$C$5:'October'!$C$153,$B7,October!$H$5:'October'!$H$153)) -> 0 | V7: =U7-Expenses!L22 -> 0 | W7: =(SUMIF(November!$C$5:'November'!$C$149,$B7,November!$D$5:'November'!$D$149)+SUMIF(November!$C$5:'November'!$C$149,$B7,November!$G$5:'November'!$G$149)+SUMIF(November!$C$5:'November'!$C$149,$B7,November!$H$5:'November'!$H$149)) -> 0 | X7: =W7-Expenses!M22 -> 0 | Y7: =(SUMIF(December!$C$5:'December'!$C$151,$B7,December!$D$5:'December'!$D$151)+SUMIF(December!$C$5:'December'!$C$151,$B7,December!$G$5:'December'!$G$151)+SUMIF(December!$C$5:'December'!$C$151,$B7,December!$H$5:'December'!$H$151)) -> 0 | Z7: =Y7-Expenses!N22 -> 0 | AA7: 30 | AB7: -7.03
B8: =IF('Model Controls'!B5=0,"",'Model Controls'!B5) -> Eat Out | C8: 50 | D8: =C8-Expenses!C23 -> -8.75 | E8: 50 | F8: =E8-Expenses!D23 -> -137.58 | G8: =SUMIF(March!$C$5:$C$151,$B8,March!$D$5:$D$151)+SUMIF(March!$C$5:$C$151,$B8,March!$G$5:$G$151)+SUMIF(March!$C$5:$C$151,$B8,March!$H$5:$H$151) -> 142.73 | H8: =G8-Expenses!E23 -> 0 | I8: 50 | J8: =I8-Expenses!F23 -> 8.32 | K8: =(SUMIF(May!$C$5:'May'!$C$151,$B8,May!$D$5:'May'!$D$151)+SUMIF(May!$C$5:'May'!$C$151,$B8,May!$G$5:'May'!$G$151)+SUMIF(May!$C$5:'May'!$C$151,$B8,May!$H$5:'May'!$H$151)) -> 0 | L8: =K8-Expenses!G23 -> 0 | M8: =(SUMIF(June!$C$5:'June'!$C$151,$B8,June!$D$5:'June'!$D$151)+SUMIF(June!$C$5:'June'!$C$151,$B8,June!$G$5:'June'!$G$151)+SUMIF(June!$C$5:'June'!$C$151,$B8,June!$H$5:'June'!$H$151)) -> 0 | N8: =M8-Expenses!H23 -> 0 | O8: =(SUMIF(July!$C$5:'July'!$C$150,$B8,July!$D$5:'July'!$D$150)+SUMIF(July!$C$5:'July'!$C$150,$B8,July!$G$5:'July'!$G$150)+SUMIF(July!$C$5:'July'!$C$150,$B8,July!$H$5:'July'!$H$150)) -> 0 | P8: =O8-Expenses!I23 -> 0 | Q8: =(SUMIF(August!$C$5:'August'!$C$149,$B8,August!$D$5:'August'!$D$149)+SUMIF(August!$C$5:'August'!$C$149,$B8,August!$G$5:'August'!$G$149)+SUMIF(August!$C$5:'August'!$C$149,$B8,August!$H$5:'August'!$H$149)) -> 0 | R8: =Q8-Expenses!J23 -> 0 | S8: =(SUMIF(September!$C$5:'September'!$C$153,$B8,September!$D$5:'September'!$D$153)+SUMIF(September!$C$5:'September'!$C$153,$B8,September!$G$5:'September'!$G$153)+SUMIF(September!$C$5:'September'!$C$153,$B8,September!$H$5:'September'!$H$153)) -> 0 | T8: =S8-Expenses!K23 -> 0 | U8: =(SUMIF(October!$C$5:'October'!$C$153,$B8,October!$D$5:'October'!$D$153)+SUMIF(October!$C$5:'October'!$C$153,$B8,October!$G$5:'October'!$G$153)+SUMIF(October!$C$5:'October'!$C$153,$B8,October!$H$5:'October'!$H$153)) -> 0 | V8: =U8-Expenses!L23 -> 0 | W8: =(SUMIF(November!$C$5:'November'!$C$149,$B8,November!$D$5:'November'!$D$149)+SUMIF(November!$C$5:'November'!$C$149,$B8,November!$G$5:'November'!$G$149)+SUMIF(November!$C$5:'November'!$C$149,$B8,November!$H$5:'November'!$H$149)) -> 0 | X8: =W8-Expenses!M23 -> 0 | Y8: =(SUMIF(December!$C$5:'December'!$C$151,$B8,December!$D$5:'December'!$D$151)+SUMIF(December!$C$5:'December'!$C$151,$B8,December!$G$5:'December'!$G$151)+SUMIF(December!$C$5:'December'!$C$151,$B8,December!$H$5:'December'!$H$151)) -> 0 | Z8: =Y8-Expenses!N23 -> 0 | AA8: 292.73 | AB8: -138.01
B9: =IF('Model Controls'!B6=0,"",'Model Controls'!B6) -> Entertainment | C9: 25 | D9: =C9-Expenses!C24 -> -29.1 | E9: 25 | F9: =E9-Expenses!D24 -> 8.4 | G9: =SUMIF(March!$C$5:$C$151,$B9,March!$D$5:$D$151)+SUMIF(March!$C$5:$C$151,$B9,March!$G$5:$G$151)+SUMIF(March!$C$5:$C$151,$B9,March!$H$5:$H$151) -> 13.33 | H9: =G9-Expenses!E24 -> 0 | I9: 25 | J9: =I9-Expenses!F24 -> -5 | K9: =(SUMIF(May!$C$5:'May'!$C$151,$B9,May!$D$5:'May'!$D$151)+SUMIF(May!$C$5:'May'!$C$151,$B9,May!$G$5:'May'!$G$151)+SUMIF(May!$C$5:'May'!$C$151,$B9,May!$H$5:'May'!$H$151)) -> 0 | L9: =K9-Expenses!G24 -> 0 | M9: =(SUMIF(June!$C$5:'June'!$C$151,$B9,June!$D$5:'June'!$D$151)+SUMIF(June!$C$5:'June'!$C$151,$B9,June!$G$5:'June'!$G$151)+SUMIF(June!$C$5:'June'!$C$151,$B9,June!$H$5:'June'!$H$151)) -> 0 | N9: =M9-Expenses!H24 -> 0 | O9: =(SUMIF(July!$C$5:'July'!$C$150,$B9,July!$D$5:'July'!$D$150)+SUMIF(July!$C$5:'July'!$C$150,$B9,July!$G$5:'July'!$G$150)+SUMIF(July!$C$5:'July'!$C$150,$B9,July!$H$5:'July'!$H$150)) -> 0 | P9: =O9-Expenses!I24 -> 0 | Q9: =(SUMIF(August!$C$5:'August'!$C$149,$B9,August!$D$5:'August'!$D$149)+SUMIF(August!$C$5:'August'!$C$149,$B9,August!$G$5:'August'!$G$149)+SUMIF(August!$C$5:'August'!$C$149,$B9,August!$H$5:'August'!$H$149)) -> 0 | R9: =Q9-Expenses!J24 -> 0 | S9: =(SUMIF(September!$C$5:'September'!$C$153,$B9,September!$D$5:'September'!$D$153)+SUMIF(September!$C$5:'September'!$C$153,$B9,September!$G$5:'September'!$G$153)+SUMIF(September!$C$5:'September'!$C$153,$B9,September!$H$5:'September'!$H$153)) -> 0 | T9: =S9-Expenses!K24 -> 0 | U9: =(SUMIF(October!$C$5:'October'!$C$153,$B9,October!$D$5:'October'!$D$153)+SUMIF(October!$C$5:'October'!$C$153,$B9,October!$G$5:'October'!$G$153)+SUMIF(October!$C$5:'October'!$C$153,$B9,October!$H$5:'October'!$H$153)) -> 0 | V9: =U9-Expenses!L24 -> 0 | W9: =(SUMIF(November!$C$5:'November'!$C$149,$B9,November!$D$5:'November'!$D$149)+SUMIF(November!$C$5:'November'!$C$149,$B9,November!$G$5:'November'!$G$149)+SUMIF(November!$C$5:'November'!$C$149,$B9,November!$H$5:'November'!$H$149)) -> 0 | X9: =W9-Expenses!M24 -> 0 | Y9: =(SUMIF(December!$C$5:'December'!$C$151,$B9,December!$D$5:'December'!$D$151)+SUMIF(December!$C$5:'December'!$C$151,$B9,December!$G$5:'December'!$G$151)+SUMIF(December!$C$5:'December'!$C$151,$B9,December!$H$5:'December'!$H$151)) -> 0 | Z9: =Y9-Expenses!N24 -> 0 | AA9: 88.33 | AB9: -25.7
B10: =IF('Model Controls'!B7=0,"",'Model Controls'!B7) -> Food | C10: 300 | D10: =C10-Expenses!C25 -> -131.6 | E10: 300 | F10: =E10-Expenses!D25 -> 80.92 | G10: =SUMIF(March!$C$5:$C$151,$B10,March!$D$5:$D$151)+SUMIF(March!$C$5:$C$151,$B10,March!$G$5:$G$151)+SUMIF(March!$C$5:$C$151,$B10,March!$H$5:$H$151) -> 320.07 | H10: =G10-Expenses!E25 -> 0 | I10: 300 | J10: =I10-Expenses!F25 -> 153.84 | K10: =(SUMIF(May!$C$5:'May'!$C$151,$B10,May!$D$5:'May'!$D$151)+SUMIF(May!$C$5:'May'!$C$151,$B10,May!$G$5:'May'!$G$151)+SUMIF(May!$C$5:'May'!$C$151,$B10,May!$H$5:'May'!$H$151)) -> 0 | L10: =K10-Expenses!G25 -> 0 | M10: =(SUMIF(June!$C$5:'June'!$C$151,$B10,June!$D$5:'June'!$D$151)+SUMIF(June!$C$5:'June'!$C$151,$B10,June!$G$5:'June'!$G$151)+SUMIF(June!$C$5:'June'!$C$151,$B10,June!$H$5:'June'!$H$151)) -> 0 | N10: =M10-Expenses!H25 -> 0 | O10: =(SUMIF(July!$C$5:'July'!$C$150,$B10,July!$D$5:'July'!$D$150)+SUMIF(July!$C$5:'July'!$C$150,$B10,July!$G$5:'July'!$G$150)+SUMIF(July!$C$5:'July'!$C$150,$B10,July!$H$5:'July'!$H$150)) -> 0 | P10: =O10-Expenses!I25 -> 0 | Q10: =(SUMIF(August!$C$5:'August'!$C$149,$B10,August!$D$5:'August'!$D$149)+SUMIF(August!$C$5:'August'!$C$149,$B10,August!$G$5:'August'!$G$149)+SUMIF(August!$C$5:'August'!$C$149,$B10,August!$H$5:'August'!$H$149)) -> 0 | R10: =Q10-Expenses!J25 -> 0 | S10: =(SUMIF(September!$C$5:'September'!$C$153,$B10,September!$D$5:'September'!$D$153)+SUMIF(September!$C$5:'September'!$C$153,$B10,September!$G$5:'September'!$G$153)+SUMIF(September!$C$5:'September'!$C$153,$B10,September!$H$5:'September'!$H$153)) -> 0 | T10: =S10-Expenses!K25 -> 0 | U10: =(SUMIF(October!$C$5:'October'!$C$153,$B10,October!$D$5:'October'!$D$153)+SUMIF(October!$C$5:'October'!$C$153,$B10,October!$G$5:'October'!$G$153)+SUMIF(October!$C$5:'October'!$C$153,$B10,October!$H$5:'October'!$H$153)) -> 0 | V10: =U10-Expenses!L25 -> 0 | W10: =(SUMIF(November!$C$5:'November'!$C$149,$B10,November!$D$5:'November'!$D$149)+SUMIF(November!$C$5:'November'!$C$149,$B10,November!$G$5:'November'!$G$149)+SUMIF(November!$C$5:'November'!$C$149,$B10,November!$H$5:'November'!$H$149)) -> 0 | X10: =W10-Expenses!M25 -> 0 | Y10: =(SUMIF(December!$C$5:'December'!$C$151,$B10,December!$D$5:'December'!$D$151)+SUMIF(December!$C$5:'December'!$C$151,$B10,December!$G$5:'December'!$G$151)+SUMIF(December!$C$5:'December'!$C$151,$B10,December!$H$5:'December'!$H$151)) -> 0 | Z10: =Y10-Expenses!N25 -> 0 | AA10: 1220.07 | AB10: 103.16
B11: =IF('Model Controls'!B8=0,"",'Model Controls'!B8) -> Household | C11: 15 | D11: =C11-Expenses!C26 -> 5 | E11: 15 | F11: =E11-Expenses!D26 -> -12.59 | G11: =SUMIF(March!$C$5:$C$151,$B11,March!$D$5:$D$151)+SUMIF(March!$C$5:$C$151,$B11,March!$G$5:$G$151)+SUMIF(March!$C$5:$C$151,$B11,March!$H$5:$H$151) -> 15 | H11: =G11-Expenses!E26 -> 0 | I11: 20 | J11: =I11-Expenses!F26 -> 12.96 | K11: =(SUMIF(May!$C$5:'May'!$C$151,$B11,May!$D$5:'May'!$D$151)+SUMIF(May!$C$5:'May'!$C$151,$B11,May!$G$5:'May'!$G$151)+SUMIF(May!$C$5:'May'!$C$151,$B11,May!$H$5:'May'!$H$151)) -> 0 | L11: =K11-Expenses!G26 -> 0 | M11: =(SUMIF(June!$C$5:'June'!$C$151,$B11,June!$D$5:'June'!$D$151)+SUMIF(June!$C$5:'June'!$C$151,$B11,June!$G$5:'June'!$G$151)+SUMIF(June!$C$5:'June'!$C$151,$B11,June!$H$5:'June'!$H$151)) -> 0 | N11: =M11-Expenses!H26 -> 0 | O11: =(SUMIF(July!$C$5:'July'!$C$150,$B11,July!$D$5:'July'!$D$150)+SUMIF(July!$C$5:'July'!$C$150,$B11,July!$G$5:'July'!$G$150)+SUMIF(July!$C$5:'July'!$C$150,$B11,July!$H$5:'July'!$H$150)) -> 0 | P11: =O11-Expenses!I26 -> 0 | Q11: =(SUMIF(August!$C$5:'August'!$C$149,$B11,August!$D$5:'August'!$D$149)+SUMIF(August!$C$5:'August'!$C$149,$B11,August!$G$5:'August'!$G$149)+SUMIF(August!$C$5:'August'!$C$149,$B11,August!$H$5:'August'!$H$149)) -> 0 | R11: =Q11-Expenses!J26 -> 0 | S11: =(SUMIF(September!$C$5:'September'!$C$153,$B11,September!$D$5:'September'!$D$153)+SUMIF(September!$C$5:'September'!$C$153,$B11,September!$G$5:'September'!$G$153)+SUMIF(September!$C$5:'September'!$C$153,$B11,September!$H$5:'September'!$H$153)) -> 0 | T11: =S11-Expenses!K26 -> 0 | U11: =(SUMIF(October!$C$5:'October'!$C$153,$B11,October!$D$5:'October'!$D$153)+SUMIF(October!$C$5:'October'!$C$153,$B11,October!$G$5:'October'!$G$153)+SUMIF(October!$C$5:'October'!$C$153,$B11,October!$H$5:'October'!$H$153)) -> 0 | V11: =U11-Expenses!L26 -> 0 | W11: =(SUMIF(November!$C$5:'November'!$C$149,$B11,November!$D$5:'November'!$D$149)+SUMIF(November!$C$5:'November'!$C$149,$B11,November!$G$5:'November'!$G$149)+SUMIF(November!$C$5:'November'!$C$149,$B11,November!$H$5:'November'!$H$149)) -> 0 | X11: =W11-Expenses!M26 -> 0 | Y11: =(SUMIF(December!$C$5:'December'!$C$151,$B11,December!$D$5:'December'!$D$151)+SUMIF(December!$C$5:'December'!$C$151,$B11,December!$G$5:'December'!$G$151)+SUMIF(December!$C$5:'December'!$C$151,$B11,December!$H$5:'December'!$H$151)) -> 0 | Z11: =Y11-Expenses!N26 -> 0 | AA11: 65 | AB11: 5.37
B12: =IF('Model Controls'!B9=0,"",'Model Controls'!B9) -> Medical | C12: 25 | D12: =C12-Expenses!C27 -> -24.79 | E12: 25 | F12: =E12-Expenses!D27 -> -85.24 | G12: =SUMIF(March!$C$5:$C$151,$B12,March!$D$5:$D$151)+SUMIF(March!$C$5:$C$151,$B12,March!$G$5:$G$151)+SUMIF(March!$C$5:$C$151,$B12,March!$H$5:$H$151) -> 14.04 | H12: =G12-Expenses!E27 -> 0 | I12: 0 | J12: =I12-Expenses!F27 -> -9.31 | K12: =(SUMIF(May!$C$5:'May'!$C$151,$B12,May!$D$5:'May'!$D$151)+SUMIF(May!$C$5:'May'!$C$151,$B12,May!$G$5:'May'!$G$151)+SUMIF(May!$C$5:'May'!$C$151,$B12,May!$H$5:'May'!$H$151)) -> 0 | L12: =K12-Expenses!G27 -> 0 | M12: =(SUMIF(June!$C$5:'June'!$C$151,$B12,June!$D$5:'June'!$D$151)+SUMIF(June!$C$5:'June'!$C$151,$B12,June!$G$5:'June'!$G$151)+SUMIF(June!$C$5:'June'!$C$151,$B12,June!$H$5:'June'!$H$151)) -> 0 | N12: =M12-Expenses!H27 -> 0 | O12: =(SUMIF(July!$C$5:'July'!$C$150,$B12,July!$D$5:'July'!$D$150)+SUMIF(July!$C$5:'July'!$C$150,$B12,July!$G$5:'July'!$G$150)+SUMIF(July!$C$5:'July'!$C$150,$B12,July!$H$5:'July'!$H$150)) -> 0 | P12: =O12-Expenses!I27 -> 0 | Q12: =(SUMIF(August!$C$5:'August'!$C$149,$B12,August!$D$5:'August'!$D$149)+SUMIF(August!$C$5:'August'!$C$149,$B12,August!$G$5:'August'!$G$149)+SUMIF(August!$C$5:'August'!$C$149,$B12,August!$H$5:'August'!$H$149)) -> 0 | R12: =Q12-Expenses!J27 -> 0 | S12: =(SUMIF(September!$C$5:'September'!$C$153,$B12,September!$D$5:'September'!$D$153)+SUMIF(September!$C$5:'September'!$C$153,$B12,September!$G$5:'September'!$G$153)+SUMIF(September!$C$5:'September'!$C$153,$B12,September!$H$5:'September'!$H$153)) -> 0 | T12: =S12-Expenses!K27 -> 0 | U12: =(SUMIF(October!$C$5:'October'!$C$153,$B12,October!$D$5:'October'!$D$153)+SUMIF(October!$C$5:'October'!$C$153,$B12,October!$G$5:'October'!$G$153)+SUMIF(October!$C$5:'October'!$C$153,$B12,October!$H$5:'October'!$H$153)) -> 0 | V12: =U12-Expenses!L27 -> 0 | W12: =(SUMIF(November!$C$5:'November'!$C$149,$B12,November!$D$5:'November'!$D$149)+SUMIF(November!$C$5:'November'!$C$149,$B12,November!$G$5:'November'!$G$149)+SUMIF(November!$C$5:'November'!$C$149,$B12,November!$H$5:'November'!$H$149)) -> 0 | X12: =W12-Expenses!M27 -> 0 | Y12: =(SUMIF(December!$C$5:'December'!$C$151,$B12,December!$D$5:'December'!$D$151)+SUMIF(December!$C$5:'December'!$C$151,$B12,December!$G$5:'December'!$G$151)+SUMIF(December!$C$5:'December'!$C$151,$B12,December!$H$5:'December'!$H$151)) -> 0 | Z12: =Y12-Expenses!N27 -> 0 | AA12: 64.04 | AB12: -119.34
B13: =IF('Model Controls'!B10=0,"",'Model Controls'!B10) -> Misc | C13: 100 | D13: =C13-Expenses!C28 -> -11.63 | E13: 100 | F13: =E13-Expenses!D28 -> -235.97 | G13: =SUMIF(March!$C$5:$C$151,$B13,March!$D$5:$D$151)+SUMIF(March!$C$5:$C$151,$B13,March!$G$5:$G$151)+SUMIF(March!$C$5:$C$151,$B13,March!$H$5:$H$151) -> 44.54 | H13: =G13-Expenses!E28 -> 0 | I13: 100 | J13: =I13-Expenses!F28 -> -7.34 | K13: =(SUMIF(May!$C$5:'May'!$C$151,$B13,May!$D$5:'May'!$D$151)+SUMIF(May!$C$5:'May'!$C$151,$B13,May!$G$5:'May'!$G$151)+SUMIF(May!$C$5:'May'!$C$151,$B13,May!$H$5:'May'!$H$151)) -> 0 | L13: =K13-Expenses!G28 -> 0 | M13: =(SUMIF(June!$C$5:'June'!$C$151,$B13,June!$D$5:'June'!$D$151)+SUMIF(June!$C$5:'June'!$C$151,$B13,June!$G$5:'June'!$G$151)+SUMIF(June!$C$5:'June'!$C$151,$B13,June!$H$5:'June'!$H$151)) -> 0 | N13: =M13-Expenses!H28 -> 0 | O13: =(SUMIF(July!$C$5:'July'!$C$150,$B13,July!$D$5:'July'!$D$150)+SUMIF(July!$C$5:'July'!$C$150,$B13,July!$G$5:'July'!$G$150)+SUMIF(July!$C$5:'July'!$C$150,$B13,July!$H$5:'July'!$H$150)) -> 0 | P13: =O13-Expenses!I28 -> 0 | Q13: =(SUMIF(August!$C$5:'August'!$C$149,$B13,August!$D$5:'August'!$D$149)+SUMIF(August!$C$5:'August'!$C$149,$B13,August!$G$5:'August'!$G$149)+SUMIF(August!$C$5:'August'!$C$149,$B13,August!$H$5:'August'!$H$149)) -> 0 | R13: =Q13-Expenses!J28 -> 0 | S13: =(SUMIF(September!$C$5:'September'!$C$153,$B13,September!$D$5:'September'!$D$153)+SUMIF(September!$C$5:'September'!$C$153,$B13,September!$G$5:'September'!$G$153)+SUMIF(September!$C$5:'September'!$C$153,$B13,September!$H$5:'September'!$H$153)) -> 0 | T13: =S13-Expenses!K28 -> 0 | U13: =(SUMIF(October!$C$5:'October'!$C$153,$B13,October!$D$5:'October'!$D$153)+SUMIF(October!$C$5:'October'!$C$153,$B13,October!$G$5:'October'!$G$153)+SUMIF(October!$C$5:'October'!$C$153,$B13,October!$H$5:'October'!$H$153)) -> 0 | V13: =U13-Expenses!L28 -> 0 | W13: =(SUMIF(November!$C$5:'November'!$C$149,$B13,November!$D$5:'November'!$D$149)+SUMIF(November!$C$5:'November'!$C$149,$B13,November!$G$5:'November'!$G$149)+SUMIF(November!$C$5:'November'!$C$149,$B13,November!$H$5:'November'!$H$149)) -> 0 | X13: =W13-Expenses!M28 -> 0 | Y13: =(SUMIF(December!$C$5:'December'!$C$151,$B13,December!$D$5:'December'!$D$151)+SUMIF(December!$C$5:'December'!$C$151,$B13,December!$G$5:'December'!$G$151)+SUMIF(December!$C$5:'December'!$C$151,$B13,December!$H$5:'December'!$H$151)) -> 0 | Z13: =Y13-Expenses!N28 -> 0 | AA13: 344.54 | AB13: -254.94
B14: =IF('Model Controls'!B11=0,"",'Model Controls'!B11) -> Phone | C14: 142 | D14: =C14-Expenses!C29 -> 1.43 | E14: 142 | F14: =E14-Expenses!D29 -> 1.43 | G14: =SUMIF(March!$C$5:$C$151,$B14,March!$D$5:$D$151)+SUMIF(March!$C$5:$C$151,$B14,March!$G$5:$G$151)+SUMIF(March!$C$5:$C$151,$B14,March!$H$5:$H$151) -> 140.57 | H14: =G14-Expenses!E29 -> 0 | I14: 142 | J14: =I14-Expenses!F29 -> 142 | K14: =(SUMIF(May!$C$5:'May'!$C$151,$B14,May!$D$5:'May'!$D$151)+SUMIF(May!$C$5:'May'!$C$151,$B14,May!$G$5:'May'!$G$151)+SUMIF(May!$C$5:'May'!$C$151,$B14,May!$H$5:'May'!$H$151)) -> 0 | L14: =K14-Expenses!G29 -> 0 | M14: =(SUMIF(June!$C$5:'June'!$C$151,$B14,June!$D$5:'June'!$D$151)+SUMIF(June!$C$5:'June'!$C$151,$B14,June!$G$5:'June'!$G$151)+SUMIF(June!$C$5:'June'!$C$151,$B14,June!$H$5:'June'!$H$151)) -> 0 | N14: =M14-Expenses!H29 -> 0 | O14: =(SUMIF(July!$C$5:'July'!$C$150,$B14,July!$D$5:'July'!$D$150)+SUMIF(July!$C$5:'July'!$C$150,$B14,July!$G$5:'July'!$G$150)+SUMIF(July!$C$5:'July'!$C$150,$B14,July!$H$5:'July'!$H$150)) -> 0 | P14: =O14-Expenses!I29 -> 0 | Q14: =(SUMIF(August!$C$5:'August'!$C$149,$B14,August!$D$5:'August'!$D$149)+SUMIF(August!$C$5:'August'!$C$149,$B14,August!$G$5:'August'!$G$149)+SUMIF(August!$C$5:'August'!$C$149,$B14,August!$H$5:'August'!$H$149)) -> 0 | R14: =Q14-Expenses!J29 -> 0 | S14: =(SUMIF(September!$C$5:'September'!$C$153,$B14,September!$D$5:'September'!$D$153)+SUMIF(September!$C$5:'September'!$C$153,$B14,September!$G$5:'September'!$G$153)+SUMIF(September!$C$5:'September'!$C$153,$B14,September!$H$5:'September'!$H$153)) -> 0 | T14: =S14-Expenses!K29 -> 0 | U14: =(SUMIF(October!$C$5:'October'!$C$153,$B14,October!$D$5:'October'!$D$153)+SUMIF(October!$C$5:'October'!$C$153,$B14,October!$G$5:'October'!$G$153)+SUMIF(October!$C$5:'October'!$C$153,$B14,October!$H$5:'October'!$H$153)) -> 0 | V14: =U14-Expenses!L29 -> 0 | W14: =(SUMIF(November!$C$5:'November'!$C$149,$B14,November!$D$5:'November'!$D$149)+SUMIF(November!$C$5:'November'!$C$149,$B14,November!$G$5:'November'!$G$149)+SUMIF(November!$C$5:'November'!$C$149,$B14,November!$H$5:'November'!$H$149)) -> 0 | X14: =W14-Expenses!M29 -> 0 | Y14: =(SUMIF(December!$C$5:'December'!$C$151,$B14,December!$D$5:'December'!$D$151)+SUMIF(December!$C$5:'December'!$C$151,$B14,December!$G$5:'December'!$G$151)+SUMIF(December!$C$5:'December'!$C$151,$B14,December!$H$5:'December'!$H$151)) -> 0 | Z14: =Y14-Expenses!N29 -> 0 | AA14: 566.57 | AB14: 144.86
B15: =IF('Model Controls'!B12=0,"",'Model Controls'!B12) -> Rent | C15: 745 | D15: =C15-Expenses!C30 -> 168 | E15: 745 | F15: =E15-Expenses!D30 -> 0 | G15: =SUMIF(March!$C$5:$C$151,$B15,March!$D$5:$D$151)+SUMIF(March!$C$5:$C$151,$B15,March!$G$5:$G$151)+SUMIF(March!$C$5:$C$151,$B15,March!$H$5:$H$151) -> 745 | H15: =G15-Expenses!E30 -> 0 | I15: =(SUMIF(April!$C$5:'April'!$C$151,$B15,April!$D$5:'April'!$D$151)+SUMIF(April!$C$5:'April'!$C$151,$B15,April!$G$5:'April'!$G$151)+SUMIF(April!$C$5:'April'!$C$151,$B15,April!$H$5:'April'!$H$151)) -> 745 | J15: =I15-Expenses!F30 -> 0 | K15: =(SUMIF(May!$C$5:'May'!$C$151,$B15,May!$D$5:'May'!$D$151)+SUMIF(May!$C$5:'May'!$C$151,$B15,May!$G$5:'May'!$G$151)+SUMIF(May!$C$5:'May'!$C$151,$B15,May!$H$5:'May'!$H$151)) -> 0 | L15: =K15-Expenses!G30 -> 0 | M15: =(SUMIF(June!$C$5:'June'!$C$151,$B15,June!$D$5:'June'!$D$151)+SUMIF(June!$C$5:'June'!$C$151,$B15,June!$G$5:'June'!$G$151)+SUMIF(June!$C$5:'June'!$C$151,$B15,June!$H$5:'June'!$H$151)) -> 0 | N15: =M15-Expenses!H30 -> 0 | O15: =(SUMIF(July!$C$5:'July'!$C$150,$B15,July!$D$5:'July'!$D$150)+SUMIF(July!$C$5:'July'!$C$150,$B15,July!$G$5:'July'!$G$150)+SUMIF(July!$C$5:'July'!$C$150,$B15,July!$H$5:'July'!$H$150)) -> 0 | P15: =O15-Expenses!I30 -> 0 | Q15: =(SUMIF(August!$C$5:'August'!$C$149,$B15,August!$D$5:'August'!$D$149)+SUMIF(August!$C$5:'August'!$C$149,$B15,August!$G$5:'August'!$G$149)+SUMIF(August!$C$5:'August'!$C$149,$B15,August!$H$5:'August'!$H$149)) -> 0 | R15: =Q15-Expenses!J30 -> 0 | S15: =(SUMIF(September!$C$5:'September'!$C$153,$B15,September!$D$5:'September'!$D$153)+SUMIF(September!$C$5:'September'!$C$153,$B15,September!$G$5:'September'!$G$153)+SUMIF(September!$C$5:'September'!$C$153,$B15,September!$H$5:'September'!$H$153)) -> 0 | T15: =S15-Expenses!K30 -> 0 | U15: =(SUMIF(October!$C$5:'October'!$C$153,$B15,October!$D$5:'October'!$D$153)+SUMIF(October!$C$5:'October'!$C$153,$B15,October!$G$5:'October'!$G$153)+SUMIF(October!$C$5:'October'!$C$153,$B15,October!$H$5:'October'!$H$153)) -> 0 | V15: =U15-Expenses!L30 -> 0 | W15: =(SUMIF(November!$C$5:'November'!$C$149,$B15,November!$D$5:'November'!$D$149)+SUMIF(November!$C$5:'November'!$C$149,$B15,November!$G$5:'November'!$G$149)+SUMIF(November!$C$5:'November'!$C$149,$B15,November!$H$5:'November'!$H$149)) -> 0 | X15: =W15-Expenses!M30 -> 0 | Y15: =(SUMIF(December!$C$5:'December'!$C$151,$B15,December!$D$5:'December'!$D$151)+SUMIF(December!$C$5:'December'!$C$151,$B15,December!$G$5:'December'!$G$151)+SUMIF(December!$C$5:'December'!$C$151,$B15,December!$H$5:'December'!$H$151)) -> 0 | Z15: =Y15-Expenses!N30 -> 0 | AA15: 2980 | AB15: 168
B16: =IF('Model Controls'!B13=0,"",'Model Controls'!B13) -> School | C16: 200 | D16: =C16-Expenses!C31 -> 126.59 | E16: 200 | F16: =E16-Expenses!D31 -> 196.03 | G16: =SUMIF(March!$C$5:$C$151,$B16,March!$D$5:$D$151)+SUMIF(March!$C$5:$C$151,$B16,March!$G$5:$G$151)+SUMIF(March!$C$5:$C$151,$B16,March!$H$5:$H$151) -> 133.8 | H16: =G16-Expenses!E31 -> 0 | I16: 0 | J16: =I16-Expenses!F31 -> 0 | K16: =(SUMIF(May!$C$5:'May'!$C$151,$B16,May!$D$5:'May'!$D$151)+SUMIF(May!$C$5:'May'!$C$151,$B16,May!$G$5:'May'!$G$151)+SUMIF(May!$C$5:'May'!$C$151,$B16,May!$H$5:'May'!$H$151)) -> 0 | L16: =K16-Expenses!G31 -> 0 | M16: =(SUMIF(June!$C$5:'June'!$C$151,$B16,June!$D$5:'June'!$D$151)+SUMIF(June!$C$5:'June'!$C$151,$B16,June!$G$5:'June'!$G$151)+SUMIF(June!$C$5:'June'!$C$151,$B16,June!$H$5:'June'!$H$151)) -> 0 | N16: =M16-Expenses!H31 -> 0 | O16: =(SUMIF(July!$C$5:'July'!$C$150,$B16,July!$D$5:'July'!$D$150)+SUMIF(July!$C$5:'July'!$C$150,$B16,July!$G$5:'July'!$G$150)+SUMIF(July!$C$5:'July'!$C$150,$B16,July!$H$5:'July'!$H$150)) -> 0 | P16: =O16-Expenses!I31 -> 0 | Q16: =(SUMIF(August!$C$5:'August'!$C$149,$B16,August!$D$5:'August'!$D$149)+SUMIF(August!$C$5:'August'!$C$149,$B16,August!$G$5:'August'!$G$149)+SUMIF(August!$C$5:'August'!$C$149,$B16,August!$H$5:'August'!$H$149)) -> 0 | R16: =Q16-Expenses!J31 -> 0 | S16: =(SUMIF(September!$C$5:'September'!$C$153,$B16,September!$D$5:'September'!$D$153)+SUMIF(September!$C$5:'September'!$C$153,$B16,September!$G$5:'September'!$G$153)+SUMIF(September!$C$5:'September'!$C$153,$B16,September!$H$5:'September'!$H$153)) -> 0 | T16: =S16-Expenses!K31 -> 0 | U16: =(SUMIF(October!$C$5:'October'!$C$153,$B16,October!$D$5:'October'!$D$153)+SUMIF(October!$C$5:'October'!$C$153,$B16,October!$G$5:'October'!$G$153)+SUMIF(October!$C$5:'October'!$C$153,$B16,October!$H$5:'October'!$H$153)) -> 0 | V16: =U16-Expenses!L31 -> 0 | W16: =(SUMIF(November!$C$5:'November'!$C$149,$B16,November!$D$5:'November'!$D$149)+SUMIF(November!$C$5:'November'!$C$149,$B16,November!$G$5:'November'!$G$149)+SUMIF(November!$C$5:'November'!$C$149,$B16,November!$H$5:'November'!$H$149)) -> 0 | X16: =W16-Expenses!M31 -> 0 | Y16: =(SUMIF(December!$C$5:'December'!$C$151,$B16,December!$D$5:'December'!$D$151)+SUMIF(December!$C$5:'December'!$C$151,$B16,December!$G$5:'December'!$G$151)+SUMIF(December!$C$5:'December'!$C$151,$B16,December!$H$5:'December'!$H$151)) -> 0 | Z16: =Y16-Expenses!N31 -> 0 | AA16: 533.8 | AB16: 322.62
B17: =IF('Model Controls'!B14=0,"",'Model Controls'!B14) -> Transportation | C17: 100 | D17: =C17-Expenses!C32 -> -14.17 | E17: 100 | F17: =E17-Expenses!D32 -> -15.28 | G17: =SUMIF(March!$C$5:$C$151,$B17,March!$D$5:$D$151)+SUMIF(March!$C$5:$C$151,$B17,March!$G$5:$G$151)+SUMIF(March!$C$5:$C$151,$B17,March!$H$5:$H$151) -> 51 | H17: =G17-Expenses!E32 -> 0 | I17: 75 | J17: =I17-Expenses!F32 -> 43.85 | K17: =(SUMIF(May!$C$5:'May'!$C$151,$B17,May!$D$5:'May'!$D$151)+SUMIF(May!$C$5:'May'!$C$151,$B17,May!$G$5:'May'!$G$151)+SUMIF(May!$C$5:'May'!$C$151,$B17,May!$H$5:'May'!$H$151)) -> 0 | L17: =K17-Expenses!G32 -> 0 | M17: =(SUMIF(June!$C$5:'June'!$C$151,$B17,June!$D$5:'June'!$D$151)+SUMIF(June!$C$5:'June'!$C$151,$B17,June!$G$5:'June'!$G$151)+SUMIF(June!$C$5:'June'!$C$151,$B17,June!$H$5:'June'!$H$151)) -> 0 | N17: =M17-Expenses!H32 -> 0 | O17: =(SUMIF(July!$C$5:'July'!$C$150,$B17,July!$D$5:'July'!$D$150)+SUMIF(July!$C$5:'July'!$C$150,$B17,July!$G$5:'July'!$G$150)+SUMIF(July!$C$5:'July'!$C$150,$B17,July!$H$5:'July'!$H$150)) -> 0 | P17: =O17-Expenses!I32 -> 0 | Q17: =(SUMIF(August!$C$5:'August'!$C$149,$B17,August!$D$5:'August'!$D$149)+SUMIF(August!$C$5:'August'!$C$149,$B17,August!$G$5:'August'!$G$149)+SUMIF(August!$C$5:'August'!$C$149,$B17,August!$H$5:'August'!$H$149)) -> 0 | R17: =Q17-Expenses!J32 -> 0 | S17: =(SUMIF(September!$C$5:'September'!$C$153,$B17,September!$D$5:'September'!$D$153)+SUMIF(September!$C$5:'September'!$C$153,$B17,September!$G$5:'September'!$G$153)+SUMIF(September!$C$5:'September'!$C$153,$B17,September!$H$5:'September'!$H$153)) -> 0 | T17: =S17-Expenses!K32 -> 0 | U17: =(SUMIF(October!$C$5:'October'!$C$153,$B17,October!$D$5:'October'!$D$153)+SUMIF(October!$C$5:'October'!$C$153,$B17,October!$G$5:'October'!$G$153)+SUMIF(October!$C$5:'October'!$C$153,$B17,October!$H$5:'October'!$H$153)) -> 0 | V17: =U17-Expenses!L32 -> 0 | W17: =(SUMIF(November!$C$5:'November'!$C$149,$B17,November!$D$5:'November'!$D$149)+SUMIF(November!$C$5:'November'!$C$149,$B17,November!$G$5:'November'!$G$149)+SUMIF(November!$C$5:'November'!$C$149,$B17,November!$H$5:'November'!$H$149)) -> 0 | X17: =W17-Expenses!M32 -> 0 | Y17: =(SUMIF(December!$C$5:'December'!$C$151,$B17,December!$D$5:'December'!$D$151)+SUMIF(December!$C$5:'December'!$C$151,$B17,December!$G$5:'December'!$G$151)+SUMIF(December!$C$5:'December'!$C$151,$B17,December!$H$5:'December'!$H$151)) -> 0 | Z17: =Y17-Expenses!N32 -> 0 | AA17: 326 | AB17: 14.4
B18: =IF('Model Controls'!B15=0,"",'Model Controls'!B15) -> Travel | C18: 0 | D18: =C18-Expenses!C33 -> 0 | E18: 0 | F18: =E18-Expenses!D33 -> 0 | G18: =SUMIF(March!$C$5:$C$151,$B18,March!$D$5:$D$151)+SUMIF(March!$C$5:$C$151,$B18,March!$G$5:$G$151)+SUMIF(March!$C$5:$C$151,$B18,March!$H$5:$H$151) -> 0 | H18: =G18-Expenses!E33 -> 0 | I18: 600 | J18: =I18-Expenses!F33 -> 600 | K18: =(SUMIF(May!$C$5:'May'!$C$151,$B18,May!$D$5:'May'!$D$151)+SUMIF(May!$C$5:'May'!$C$151,$B18,May!$G$5:'May'!$G$151)+SUMIF(May!$C$5:'May'!$C$151,$B18,May!$H$5:'May'!$H$151)) -> 0 | L18: =K18-Expenses!G33 -> 0 | M18: =(SUMIF(June!$C$5:'June'!$C$151,$B18,June!$D$5:'June'!$D$151)+SUMIF(June!$C$5:'June'!$C$151,$B18,June!$G$5:'June'!$G$151)+SUMIF(June!$C$5:'June'!$C$151,$B18,June!$H$5:'June'!$H$151)) -> 0 | N18: =M18-Expenses!H33 -> 0 | O18: =(SUMIF(July!$C$5:'July'!$C$150,$B18,July!$D$5:'July'!$D$150)+SUMIF(July!$C$5:'July'!$C$150,$B18,July!$G$5:'July'!$G$150)+SUMIF(July!$C$5:'July'!$C$150,$B18,July!$H$5:'July'!$H$150)) -> 0 | P18: =O18-Expenses!I33 -> 0 | Q18: =(SUMIF(August!$C$5:'August'!$C$149,$B18,August!$D$5:'August'!$D$149)+SUMIF(August!$C$5:'August'!$C$149,$B18,August!$G$5:'August'!$G$149)+SUMIF(August!$C$5:'August'!$C$149,$B18,August!$H$5:'August'!$H$149)) -> 0 | R18: =Q18-Expenses!J33 -> 0 | S18: =(SUMIF(September!$C$5:'September'!$C$153,$B18,September!$D$5:'September'!$D$153)+SUMIF(September!$C$5:'September'!$C$153,$B18,September!$G$5:'September'!$G$153)+SUMIF(September!$C$5:'September'!$C$153,$B18,September!$H$5:'September'!$H$153)) -> 0 | T18: =S18-Expenses!K33 -> 0 | U18: =(SUMIF(October!$C$5:'October'!$C$153,$B18,October!$D$5:'October'!$D$153)+SUMIF(October!$C$5:'October'!$C$153,$B18,October!$G$5:'October'!$G$153)+SUMIF(October!$C$5:'October'!$C$153,$B18,October!$H$5:'October'!$H$153)) -> 0 | V18: =U18-Expenses!L33 -> 0 | W18: =(SUMIF(November!$C$5:'November'!$C$149,$B18,November!$D$5:'November'!$D$149)+SUMIF(November!$C$5:'November'!$C$149,$B18,November!$G$5:'November'!$G$149)+SUMIF(November!$C$5:'November'!$C$149,$B18,November!$H$5:'November'!$H$149)) -> 0 | X18: =W18-Expenses!M33 -> 0 | Y18: =(SUMIF(December!$C$5:'December'!$C$151,$B18,December!$D$5:'December'!$D$151)+SUMIF(December!$C$5:'December'!$C$151,$B18,December!$G$5:'December'!$G$151)+SUMIF(December!$C$5:'December'!$C$151,$B18,December!$H$5:'December'!$H$151)) -> 0 | Z18: =Y18-Expenses!N33 -> 0 | AA18: 600 | AB18: 600
B19: =IF('Model Controls'!B16=0,"",'Model Controls'!B16) -> Utilities | C19: 30 | D19: =C19-Expenses!C34 -> 3.55 | E19: 30 | F19: =E19-Expenses!D34 -> -0.45 | G19: 30 | H19: =G19-Expenses!E34 -> 3.37 | I19: 30 | J19: =I19-Expenses!F34 -> 30 | K19: =(SUMIF(May!$C$5:'May'!$C$151,$B19,May!$D$5:'May'!$D$151)+SUMIF(May!$C$5:'May'!$C$151,$B19,May!$G$5:'May'!$G$151)+SUMIF(May!$C$5:'May'!$C$151,$B19,May!$H$5:'May'!$H$151)) -> 0 | L19: =K19-Expenses!G34 -> 0 | M19: =(SUMIF(June!$C$5:'June'!$C$151,$B19,June!$D$5:'June'!$D$151)+SUMIF(June!$C$5:'June'!$C$151,$B19,June!$G$5:'June'!$G$151)+SUMIF(June!$C$5:'June'!$C$151,$B19,June!$H$5:'June'!$H$151)) -> 0 | N19: =M19-Expenses!H34 -> 0 | O19: =(SUMIF(July!$C$5:'July'!$C$150,$B19,July!$D$5:'July'!$D$150)+SUMIF(July!$C$5:'July'!$C$150,$B19,July!$G$5:'July'!$G$150)+SUMIF(July!$C$5:'July'!$C$150,$B19,July!$H$5:'July'!$H$150)) -> 0 | P19: =O19-Expenses!I34 -> 0 | Q19: =(SUMIF(August!$C$5:'August'!$C$149,$B19,August!$D$5:'August'!$D$149)+SUMIF(August!$C$5:'August'!$C$149,$B19,August!$G$5:'August'!$G$149)+SUMIF(August!$C$5:'August'!$C$149,$B19,August!$H$5:'August'!$H$149)) -> 0 | R19: =Q19-Expenses!J34 -> 0 | S19: =(SUMIF(September!$C$5:'September'!$C$153,$B19,September!$D$5:'September'!$D$153)+SUMIF(September!$C$5:'September'!$C$153,$B19,September!$G$5:'September'!$G$153)+SUMIF(September!$C$5:'September'!$C$153,$B19,September!$H$5:'September'!$H$153)) -> 0 | T19: =S19-Expenses!K34 -> 0 | U19: =(SUMIF(October!$C$5:'October'!$C$153,$B19,October!$D$5:'October'!$D$153)+SUMIF(October!$C$5:'October'!$C$153,$B19,October!$G$5:'October'!$G$153)+SUMIF(October!$C$5:'October'!$C$153,$B19,October!$H$5:'October'!$H$153)) -> 0 | V19: =U19-Expenses!L34 -> 0 | W19: =(SUMIF(November!$C$5:'November'!$C$149,$B19,November!$D$5:'November'!$D$149)+SUMIF(November!$C$5:'November'!$C$149,$B19,November!$G$5:'November'!$G$149)+SUMIF(November!$C$5:'November'!$C$149,$B19,November!$H$5:'November'!$H$149)) -> 0 | X19: =W19-Expenses!M34 -> 0 | Y19: =(SUMIF(December!$C$5:'December'!$C$151,$B19,December!$D$5:'December'!$D$151)+SUMIF(December!$C$5:'December'!$C$151,$B19,December!$G$5:'December'!$G$151)+SUMIF(December!$C$5:'December'!$C$151,$B19,December!$H$5:'December'!$H$151)) -> 0 | Z19: =Y19-Expenses!N34 -> 0 | AA19: 120 | AB19: 36.47
B20: =IF('Model Controls'!B17=0,"",'Model Controls'!B17) ->  | C20: =(SUMIF(January!$C$5:'January'!$C$151,$B20,January!$D$5:'January'!$D$151)+SUMIF(January!$C$5:'January'!$C$151,$B20,January!$G$5:'January'!$G$151)+SUMIF(January!$C$5:'January'!$C$151,$B20,January!$H$5:'January'!$H$151)) -> 0 | D20: =C20-Expenses!C35 -> 0 | E20: =(SUMIF(February!$C$5:'February'!$C$150,$B20,February!$D$5:'February'!$D$150)+SUMIF(February!$C$5:'February'!$C$150,$B20,February!$G$5:'February'!$G$150)+SUMIF(February!$C$5:'February'!$C$150,$B20,February!$H$5:'February'!$H$150)) -> 0 | F20: =E20-Expenses!D35 -> 0 | G20: =SUMIF(March!$C$5:$C$151,$B20,March!$D$5:$D$151)+SUMIF(March!$C$5:$C$151,$B20,March!$G$5:$G$151)+SUMIF(March!$C$5:$C$151,$B20,March!$H$5:$H$151) -> 0 | H20: =G20-Expenses!E35 -> 0 | I20: =(SUMIF(April!$C$5:'April'!$C$151,$B20,April!$D$5:'April'!$D$151)+SUMIF(April!$C$5:'April'!$C$151,$B20,April!$G$5:'April'!$G$151)+SUMIF(April!$C$5:'April'!$C$151,$B20,April!$H$5:'April'!$H$151)) -> 0 | J20: =I20-Expenses!F35 -> 0 | K20: =(SUMIF(May!$C$5:'May'!$C$151,$B20,May!$D$5:'May'!$D$151)+SUMIF(May!$C$5:'May'!$C$151,$B20,May!$G$5:'May'!$G$151)+SUMIF(May!$C$5:'May'!$C$151,$B20,May!$H$5:'May'!$H$151)) -> 0 | L20: =K20-Expenses!G35 -> 0 | M20: =(SUMIF(June!$C$5:'June'!$C$151,$B20,June!$D$5:'June'!$D$151)+SUMIF(June!$C$5:'June'!$C$151,$B20,June!$G$5:'June'!$G$151)+SUMIF(June!$C$5:'June'!$C$151,$B20,June!$H$5:'June'!$H$151)) -> 0 | N20: =M20-Expenses!H35 -> 0 | O20: =(SUMIF(July!$C$5:'July'!$C$150,$B20,July!$D$5:'July'!$D$150)+SUMIF(July!$C$5:'July'!$C$150,$B20,July!$G$5:'July'!$G$150)+SUMIF(July!$C$5:'July'!$C$150,$B20,July!$H$5:'July'!$H$150)) -> 0 | P20: =O20-Expenses!I35 -> 0 | Q20: =(SUMIF(August!$C$5:'August'!$C$149,$B20,August!$D$5:'August'!$D$149)+SUMIF(August!$C$5:'August'!$C$149,$B20,August!$G$5:'August'!$G$149)+SUMIF(August!$C$5:'August'!$C$149,$B20,August!$H$5:'August'!$H$149)) -> 0 | R20: =Q20-Expenses!J35 -> 0 | S20: =(SUMIF(September!$C$5:'September'!$C$153,$B20,September!$D$5:'September'!$D$153)+SUMIF(September!$C$5:'September'!$C$153,$B20,September!$G$5:'September'!$G$153)+SUMIF(September!$C$5:'September'!$C$153,$B20,September!$H$5:'September'!$H$153)) -> 0 | T20: =S20-Expenses!K35 -> 0 | U20: =(SUMIF(October!$C$5:'October'!$C$153,$B20,October!$D$5:'October'!$D$153)+SUMIF(October!$C$5:'October'!$C$153,$B20,October!$G$5:'October'!$G$153)+SUMIF(October!$C$5:'October'!$C$153,$B20,October!$H$5:'October'!$H$153)) -> 0 | V20: =U20-Expenses!L35 -> 0 | W20: =(SUMIF(November!$C$5:'November'!$C$149,$B20,November!$D$5:'November'!$D$149)+SUMIF(November!$C$5:'November'!$C$149,$B20,November!$G$5:'November'!$G$149)+SUMIF(November!$C$5:'November'!$C$149,$B20,November!$H$5:'November'!$H$149)) -> 0 | X20: =W20-Expenses!M35 -> 0 | Y20: =(SUMIF(December!$C$5:'December'!$C$151,$B20,December!$D$5:'December'!$D$151)+SUMIF(December!$C$5:'December'!$C$151,$B20,December!$G$5:'December'!$G$151)+SUMIF(December!$C$5:'December'!$C$151,$B20,December!$H$5:'December'!$H$151)) -> 0 | Z20: =Y20-Expenses!N35 -> 0 | AA20: 0 | AB20: 0
B21: =IF('Model Controls'!B18=0,"",'Model Controls'!B18) ->  | C21: =(SUMIF(January!$C$5:'January'!$C$151,$B21,January!$D$5:'January'!$D$151)+SUMIF(January!$C$5:'January'!$C$151,$B21,January!$G$5:'January'!$G$151)+SUMIF(January!$C$5:'January'!$C$151,$B21,January!$H$5:'January'!$H$151)) -> 0 | D21: =C21-Expenses!C36 -> 0 | E21: =(SUMIF(February!$C$5:'February'!$C$150,$B21,February!$D$5:'February'!$D$150)+SUMIF(February!$C$5:'February'!$C$150,$B21,February!$G$5:'February'!$G$150)+SUMIF(February!$C$5:'February'!$C$150,$B21,February!$H$5:'February'!$H$150)) -> 0 | F21: =E21-Expenses!D36 -> 0 | G21: =SUMIF(March!$C$5:$C$151,$B21,March!$D$5:$D$151)+SUMIF(March!$C$5:$C$151,$B21,March!$G$5:$G$151)+SUMIF(March!$C$5:$C$151,$B21,March!$H$5:$H$151) -> 0 | H21: =G21-Expenses!E36 -> 0 | I21: =(SUMIF(April!$C$5:'April'!$C$151,$B21,April!$D$5:'April'!$D$151)+SUMIF(April!$C$5:'April'!$C$151,$B21,April!$G$5:'April'!$G$151)+SUMIF(April!$C$5:'April'!$C$151,$B21,April!$H$5:'April'!$H$151)) -> 0 | J21: =I21-Expenses!F36 -> 0 | K21: =(SUMIF(May!$C$5:'May'!$C$151,$B21,May!$D$5:'May'!$D$151)+SUMIF(May!$C$5:'May'!$C$151,$B21,May!$G$5:'May'!$G$151)+SUMIF(May!$C$5:'May'!$C$151,$B21,May!$H$5:'May'!$H$151)) -> 0 | L21: =K21-Expenses!G36 -> 0 | M21: =(SUMIF(June!$C$5:'June'!$C$151,$B21,June!$D$5:'June'!$D$151)+SUMIF(June!$C$5:'June'!$C$151,$B21,June!$G$5:'June'!$G$151)+SUMIF(June!$C$5:'June'!$C$151,$B21,June!$H$5:'June'!$H$151)) -> 0 | N21: =M21-Expenses!H36 -> 0 | O21: =(SUMIF(July!$C$5:'July'!$C$150,$B21,July!$D$5:'July'!$D$150)+SUMIF(July!$C$5:'July'!$C$150,$B21,July!$G$5:'July'!$G$150)+SUMIF(July!$C$5:'July'!$C$150,$B21,July!$H$5:'July'!$H$150)) -> 0 | P21: =O21-Expenses!I36 -> 0 | Q21: =(SUMIF(August!$C$5:'August'!$C$149,$B21,August!$D$5:'August'!$D$149)+SUMIF(August!$C$5:'August'!$C$149,$B21,August!$G$5:'August'!$G$149)+SUMIF(August!$C$5:'August'!$C$149,$B21,August!$H$5:'August'!$H$149)) -> 0 | R21: =Q21-Expenses!J36 -> 0 | S21: =(SUMIF(September!$C$5:'September'!$C$153,$B21,September!$D$5:'September'!$D$153)+SUMIF(September!$C$5:'September'!$C$153,$B21,September!$G$5:'September'!$G$153)+SUMIF(September!$C$5:'September'!$C$153,$B21,September!$H$5:'September'!$H$153)) -> 0 | T21: =S21-Expenses!K36 -> 0 | U21: =(SUMIF(October!$C$5:'October'!$C$153,$B21,October!$D$5:'October'!$D$153)+SUMIF(October!$C$5:'October'!$C$153,$B21,October!$G$5:'October'!$G$153)+SUMIF(October!$C$5:'October'!$C$153,$B21,October!$H$5:'October'!$H$153)) -> 0 | V21: =U21-Expenses!L36 -> 0 | W21: =(SUMIF(November!$C$5:'November'!$C$149,$B21,November!$D$5:'November'!$D$149)+SUMIF(November!$C$5:'November'!$C$149,$B21,November!$G$5:'November'!$G$149)+SUMIF(November!$C$5:'November'!$C$149,$B21,November!$H$5:'November'!$H$149)) -> 0 | X21: =W21-Expenses!M36 -> 0 | Y21: =(SUMIF(December!$C$5:'December'!$C$151,$B21,December!$D$5:'December'!$D$151)+SUMIF(December!$C$5:'December'!$C$151,$B21,December!$G$5:'December'!$G$151)+SUMIF(December!$C$5:'December'!$C$151,$B21,December!$H$5:'December'!$H$151)) -> 0 | Z21: =Y21-Expenses!N36 -> 0 | AA21: 0 | AB21: 0
B22: =IF('Model Controls'!B19=0,"",'Model Controls'!B19) ->  | C22: =(SUMIF(January!$C$5:'January'!$C$151,$B22,January!$D$5:'January'!$D$151)+SUMIF(January!$C$5:'January'!$C$151,$B22,January!$G$5:'January'!$G$151)+SUMIF(January!$C$5:'January'!$C$151,$B22,January!$H$5:'January'!$H$151)) -> 0 | D22: =C22-Expenses!C37 -> 0 | E22: =(SUMIF(February!$C$5:'February'!$C$150,$B22,February!$D$5:'February'!$D$150)+SUMIF(February!$C$5:'February'!$C$150,$B22,February!$G$5:'February'!$G$150)+SUMIF(February!$C$5:'February'!$C$150,$B22,February!$H$5:'February'!$H$150)) -> 0 | F22: =E22-Expenses!D37 -> 0 | G22: =SUMIF(March!$C$5:$C$151,$B22,March!$D$5:$D$151)+SUMIF(March!$C$5:$C$151,$B22,March!$G$5:$G$151)+SUMIF(March!$C$5:$C$151,$B22,March!$H$5:$H$151) -> 0 | H22: =G22-Expenses!E37 -> 0 | I22: =(SUMIF(April!$C$5:'April'!$C$151,$B22,April!$D$5:'April'!$D$151)+SUMIF(April!$C$5:'April'!$C$151,$B22,April!$G$5:'April'!$G$151)+SUMIF(April!$C$5:'April'!$C$151,$B22,April!$H$5:'April'!$H$151)) -> 0 | J22: =I22-Expenses!F37 -> 0 | K22: =(SUMIF(May!$C$5:'May'!$C$151,$B22,May!$D$5:'May'!$D$151)+SUMIF(May!$C$5:'May'!$C$151,$B22,May!$G$5:'May'!$G$151)+SUMIF(May!$C$5:'May'!$C$151,$B22,May!$H$5:'May'!$H$151)) -> 0 | L22: =K22-Expenses!G37 -> 0 | M22: =(SUMIF(June!$C$5:'June'!$C$151,$B22,June!$D$5:'June'!$D$151)+SUMIF(June!$C$5:'June'!$C$151,$B22,June!$G$5:'June'!$G$151)+SUMIF(June!$C$5:'June'!$C$151,$B22,June!$H$5:'June'!$H$151)) -> 0 | N22: =M22-Expenses!H37 -> 0 | O22: =(SUMIF(July!$C$5:'July'!$C$150,$B22,July!$D$5:'July'!$D$150)+SUMIF(July!$C$5:'July'!$C$150,$B22,July!$G$5:'July'!$G$150)+SUMIF(July!$C$5:'July'!$C$150,$B22,July!$H$5:'July'!$H$150)) -> 0 | P22: =O22-Expenses!I37 -> 0 | Q22: =(SUMIF(August!$C$5:'August'!$C$149,$B22,August!$D$5:'August'!$D$149)+SUMIF(August!$C$5:'August'!$C$149,$B22,August!$G$5:'August'!$G$149)+SUMIF(August!$C$5:'August'!$C$149,$B22,August!$H$5:'August'!$H$149)) -> 0 | R22: =Q22-Expenses!J37 -> 0 | S22: =(SUMIF(September!$C$5:'September'!$C$153,$B22,September!$D$5:'September'!$D$153)+SUMIF(September!$C$5:'September'!$C$153,$B22,September!$G$5:'September'!$G$153)+SUMIF(September!$C$5:'September'!$C$153,$B22,September!$H$5:'September'!$H$153)) -> 0 | T22: =S22-Expenses!K37 -> 0 | U22: =(SUMIF(October!$C$5:'October'!$C$153,$B22,October!$D$5:'October'!$D$153)+SUMIF(October!$C$5:'October'!$C$153,$B22,October!$G$5:'October'!$G$153)+SUMIF(October!$C$5:'October'!$C$153,$B22,October!$H$5:'October'!$H$153)) -> 0 | V22: =U22-Expenses!L37 -> 0 | W22: =(SUMIF(November!$C$5:'November'!$C$149,$B22,November!$D$5:'November'!$D$149)+SUMIF(November!$C$5:'November'!$C$149,$B22,November!$G$5:'November'!$G$149)+SUMIF(November!$C$5:'November'!$C$149,$B22,November!$H$5:'November'!$H$149)) -> 0 | X22: =W22-Expenses!M37 -> 0 | Y22: =(SUMIF(December!$C$5:'December'!$C$151,$B22,December!$D$5:'December'!$D$151)+SUMIF(December!$C$5:'December'!$C$151,$B22,December!$G$5:'December'!$G$151)+SUMIF(December!$C$5:'December'!$C$151,$B22,December!$H$5:'December'!$H$151)) -> 0 | Z22: =Y22-Expenses!N37 -> 0 | AA22: 0 | AB22: 0
B23: Total | C23: =SUM(C5:C22) -> 1782 | D23: =SUM(D5:D22) -> -214.422 | E23: =SUM(E5:E22) -> 1782 | F23: -654.61 | G23: 1765.08 | H23: -537.22 | I23: 2127 | J23: 717.33 | K23: 0 | L23: 0 | M23: 0 | N23: 0 | O23: 0 | P23: 0 | Q23: =SUM(Q5:Q22) -> 0 | R23: =SUM(R5:R22) -> 0 | S23: 0 | T23: 0 | U23: 0 | V23: 0 | W23: 0 | X23: 0 | Y23: 0 | Z23: 0 | AA23: =SUM(AA5:AA22) -> 7456.08 | AB23: =SUM(AB5:AB22) -> -688.922

Sheet Income
B2: Income Trends
B21: Income (Total) | D21: January | E21: February | F21: March | G21: April | H21: May | I21: June | J21: July | K21: August | L21: September | M21: October | N21: November | O21: December | P21: YTD TOTAL | Q21: Trends
B22: =IF('Model Controls'!D2=0,"",'Model Controls'!D2) -> TRH | D22: =SUM(D34,D46) -> 2571 | E22: 2055 | F22: 2226 | G22: 963 | H22: 0 | I22: 0 | J22: 0 | K22: 0 | L22: 0 | M22: 0 | N22: 0 | O22: 0 | P22: =SUM(D22:O22) -> 7815
B23: =IF('Model Controls'!D3=0,"",'Model Controls'!D3) -> BYU | D23: =SUM(D35,D47) -> 584.76 | E23: 1078.26 | F23: 1553.66 | G23: 745.99 | H23: 0 | I23: 0 | J23: 0 | K23: 0 | L23: 0 | M23: 0 | N23: 0 | O23: 0 | P23: =SUM(D23:O23) -> 3962.67
B24: =IF('Model Controls'!D4=0,"",'Model Controls'!D4) -> MGF | D24: =SUM(D36,D48) -> 243.8 | E24: 716.18 | F24: 731.76 | G24: 560.63 | H24: 0 | I24: 0 | J24: 0 | K24: 0 | L24: 0 | M24: 0 | N24: 0 | O24: 0 | P24: 2252.37
B25: =IF('Model Controls'!D5=0,"",'Model Controls'!D5) -> FAMILY | D25: =SUM(D37,D49) -> 0 | E25: 0 | F25: 0 | G25: 0 | H25: 0 | I25: 0 | J25: 0 | K25: 0 | L25: 0 | M25: 0 | N25: 0 | O25: 0 | P25: 0
B26: =IF('Model Controls'!D6=0,"",'Model Controls'!D6) -> MISC | D26: =SUM(D38,D50) -> 40 | E26: 0 | F26: 473 | G26: 0 | H26: 0 | I26: 0 | J26: 0 | K26: 0 | L26: 0 | M26: 0 | N26: 0 | O26: 0 | P26: 513
B27: =IF('Model Controls'!D7=0,"",'Model Controls'!D7) -> FORD | D27: =SUM(D39,D51) -> 0 | E27: 0 | F27: 0 | G27: 0 | H27: 0 | I27: 0 | J27: 0 | K27: 0 | L27: 0 | M27: 0 | N27: 0 | O27: 0 | P27: 0
B28: =IF('Model Controls'!D8=0,"",'Model Controls'!D8) ->  | D28: =SUM(D40,D52) -> 0 | E28: 0 | F28: 0 | G28: 0 | H28: 0 | I28: 0 | J28: 0 | K28: 0 | L28: 0 | M28: 0 | N28: 0 | O28: 0 | P28: =SUM(D28:O28) -> 0
B29: =IF('Model Controls'!D9=0,"",'Model Controls'!D9) ->  | D29: =SUM(D41,D53) -> 0 | E29: 0 | F29: 0 | G29: 0 | H29: 0 | I29: 0 | J29: 0 | K29: 0 | L29: 0 | M29: 0 | N29: 0 | O29: 0 | P29: 0
B30: =IF('Model Controls'!D10=0,"",'Model Controls'!D10) ->  | D30: =SUM(D42,D54) -> 0 | E30: 0 | F30: 0 | G30: 0 | H30: 0 | I30: 0 | J30: 0 | K30: 0 | L30: 0 | M30: 0 | N30: 0 | O30: 0 | P30: 0
B31: Total | C31: 0 | D31: =SUM(D22:D30) -> 3439.56 | E31: 3849.44 | F31: 4984.42 | G31: 2269.62 | H31: 0 | I31: 0 | J31: 0 | K31: 0 | L31: 0 | M31: 0 | N31: 0 | O31: 0 | P31: 14543.04
B33: Income (Useable) | D33: January | E33: February | F33: March | G33: April | H33: May | I33: June | J33: July | K33: August | L33: September | M33: October | N33: November | O33: December | P33: YTD TOTAL
B34: =IF('Model Controls'!D2=0,"",'Model Controls'!D2) -> TRH | D34: =SUMIF(January!$C$5:'January'!$C$151,B34,January!$E$5:'January'!$E$151) -> 2055 | E34: =SUMIF(February!$C$5:'February'!$C$150,B34,February!$E$5:'February'!$E$150) -> 1642 | F34: =SUMIF(March!$C$5:'March'!$C$151,B34,March!$E$5:'March'!$E$151) -> 1779 | G34: =SUMIF(April!$C$5:'April'!$C$151,B34,April!$E$5:'April'!$E$151) -> 771 | H34: =SUMIF(May!$C$5:'May'!$C$151,B34,May!$E$5:'May'!$E$151) -> 0 | I34: =SUMIF(June!$C$5:'June'!$C$151,B34,June!$E$5:'June'!$E$151) -> 0 | J34: =SUMIF(July!$C$5:'July'!$C$150,B34,July!$E$5:'July'!$E$150) -> 0 | K34: =SUMIF(August!$C$5:'August'!$C$149,B34,August!$E$5:'August'!$E$149) -> 0 | L34: =SUMIF(September!$C$5:'September'!$C$153,B34,September!$E$5:'September'!$E$153) -> 0 | M34: =SUMIF(October!$C$5:'October'!$C$153,B34,October!$E$5:'October'!$E$153) -> 0 | N34: =SUMIF(November!$C$5:'November'!$C$149,B34,November!$E$5:'November'!$E$149) -> 0 | O34: =SUMIF(December!$C$5:'December'!$C$151,B34,December!$E$5:'December'!$E$151) -> 0 | P34: =SUM(D34:O34) -> 6247
B35: =IF('Model Controls'!D3=0,"",'Model Controls'!D3) -> BYU | D35: =SUMIF(January!$C$5:'January'!$C$151,B35,January!$E$5:'January'!$E$151) -> 467.76 | E35: =SUMIF(February!$C$5:'February'!$C$150,B35,February!$E$5:'February'!$E$150) -> 863.26 | F35: =SUMIF(March!$C$5:'March'!$C$151,B35,March!$E$5:'March'!$E$151) -> 1243.66 | G35: =SUMIF(April!$C$5:'April'!$C$151,B35,April!$E$5:'April'!$E$151) -> 596.99 | H35: =SUMIF(May!$C$5:'May'!$C$151,B35,May!$E$5:'May'!$E$151) -> 0 | I35: =SUMIF(June!$C$5:'June'!$C$151,B35,June!$E$5:'June'!$E$151) -> 0 | J35: =SUMIF(July!$C$5:'July'!$C$150,B35,July!$E$5:'July'!$E$150) -> 0 | K35: =SUMIF(August!$C$5:'August'!$C$149,B35,August!$E$5:'August'!$E$149) -> 0 | L35: =SUMIF(September!$C$5:'September'!$C$153,B35,September!$E$5:'September'!$E$153) -> 0 | M35: =SUMIF(October!$C$5:'October'!$C$153,B35,October!$E$5:'October'!$E$153) -> 0 | N35: =SUMIF(November!$C$5:'November'!$C$149,B35,November!$E$5:'November'!$E$149) -> 0 | O35: =SUMIF(December!$C$5:'December'!$C$151,B35,December!$E$5:'December'!$E$151) -> 0 | P35: 3171.67
B36: =IF('Model Controls'!D4=0,"",'Model Controls'!D4) -> MGF | D36: =SUMIF(January!$C$5:'January'!$C$151,B36,January!$E$5:'January'!$E$151) -> 194.8 | E36: =SUMIF(February!$C$5:'February'!$C$150,B36,February!$E$5:'February'!$E$150) -> 573.18 | F36: =SUMIF(March!$C$5:'March'!$C$151,B36,March!$E$5:'March'!$E$151) -> 585.76 | G36: =SUMIF(April!$C$5:'April'!$C$151,B36,April!$E$5:'April'!$E$151) -> 448.63 | H36: =SUMIF(May!$C$5:'May'!$C$151,B36,May!$E$5:'May'!$E$151) -> 0 | I36: =SUMIF(June!$C$5:'June'!$C$151,B36,June!$E$5:'June'!$E$151) -> 0 | J36: =SUMIF(July!$C$5:'July'!$C$150,B36,July!$E$5:'July'!$E$150) -> 0 | K36: =SUMIF(August!$C$5:'August'!$C$149,B36,August!$E$5:'August'!$E$149) -> 0 | L36: =SUMIF(September!$C$5:'September'!$C$153,B36,September!$E$5:'September'!$E$153) -> 0 | M36: =SUMIF(October!$C$5:'October'!$C$153,B36,October!$E$5:'October'!$E$153) -> 0 | N36: =SUMIF(November!$C$5:'November'!$C$149,B36,November!$E$5:'November'!$E$149) -> 0 | O36: =SUMIF(December!$C$5:'December'!$C$151,B36,December!$E$5:'December'!$E$151) -> 0 | P36: 1802.37
B37: =IF('Model Controls'!D5=0,"",'Model Controls'!D5) -> FAMILY | D37: =SUMIF(January!$C$5:'January'!$C$151,B37,January!$E$5:'January'!$E$151) -> 0 | E37: =SUMIF(February!$C$5:'February'!$C$150,B37,February!$E$5:'February'!$E$150) -> 0 | F37: =SUMIF(March!$C$5:'March'!$C$151,B37,March!$E$5:'March'!$E$151) -> 0 | G37: =SUMIF(April!$C$5:'April'!$C$151,B37,April!$E$5:'April'!$E$151) -> 0 | H37: =SUMIF(May!$C$5:'May'!$C$151,B37,May!$E$5:'May'!$E$151) -> 0 | I37: =SUMIF(June!$C$5:'June'!$C$151,B37,June!$E$5:'June'!$E$151) -> 0 | J37: =SUMIF(July!$C$5:'July'!$C$150,B37,July!$E$5:'July'!$E$150) -> 0 | K37: =SUMIF(August!$C$5:'August'!$C$149,B37,August!$E$5:'August'!$E$149) -> 0 | L37: =SUMIF(September!$C$5:'September'!$C$153,B37,September!$E$5:'September'!$E$153) -> 0 | M37: =SUMIF(October!$C$5:'October'!$C$153,B37,October!$E$5:'October'!$E$153) -> 0 | N37: =SUMIF(November!$C$5:'November'!$C$149,B37,November!$E$5:'November'!$E$149) -> 0 | O37: =SUMIF(December!$C$5:'December'!$C$151,B37,December!$E$5:'December'!$E$151) -> 0 | P37: 0
B38: =IF('Model Controls'!D6=0,"",'Model Controls'!D6) -> MISC | D38: =SUMIF(January!$C$5:'January'!$C$151,B38,January!$E$5:'January'!$E$151) -> 35 | E38: =SUMIF(February!$C$5:'February'!$C$150,B38,February!$E$5:'February'!$E$150) -> 0 | F38: =SUMIF(March!$C$5:'March'!$C$151,B38,March!$E$5:'March'!$E$151) -> 48 | G38: =SUMIF(April!$C$5:'April'!$C$151,B38,April!$E$5:'April'!$E$151) -> 0 | H38: =SUMIF(May!$C$5:'May'!$C$151,B38,May!$E$5:'May'!$E$151) -> 0 | I38: =SUMIF(June!$C$5:'June'!$C$151,B38,June!$E$5:'June'!$E$151) -> 0 | J38: =SUMIF(July!$C$5:'July'!$C$150,B38,July!$E$5:'July'!$E$150) -> 0 | K38: =SUMIF(August!$C$5:'August'!$C$149,B38,August!$E$5:'August'!$E$149) -> 0 | L38: =SUMIF(September!$C$5:'September'!$C$153,B38,September!$E$5:'September'!$E$153) -> 0 | M38: =SUMIF(October!$C$5:'October'!$C$153,B38,October!$E$5:'October'!$E$153) -> 0 | N38: =SUMIF(November!$C$5:'November'!$C$149,B38,November!$E$5:'November'!$E$149) -> 0 | O38: =SUMIF(December!$C$5:'December'!$C$151,B38,December!$E$5:'December'!$E$151) -> 0 | P38: 83
B39: =IF('Model Controls'!D7=0,"",'Model Controls'!D7) -> FORD | D39: =SUMIF(January!$C$5:'January'!$C$151,B39,January!$E$5:'January'!$E$151) -> 0 | E39: =SUMIF(February!$C$5:'February'!$C$150,B39,February!$E$5:'February'!$E$150) -> 0 | F39: =SUMIF(March!$C$5:'March'!$C$151,B39,March!$E$5:'March'!$E$151) -> 0 | G39: =SUMIF(April!$C$5:'April'!$C$151,B39,April!$E$5:'April'!$E$151) -> 0 | H39: =SUMIF(May!$C$5:'May'!$C$151,B39,May!$E$5:'May'!$E$151) -> 0 | I39: =SUMIF(June!$C$5:'June'!$C$151,B39,June!$E$5:'June'!$E$151) -> 0 | J39: =SUMIF(July!$C$5:'July'!$C$150,B39,July!$E$5:'July'!$E$150) -> 0 | K39: =SUMIF(August!$C$5:'August'!$C$149,B39,August!$E$5:'August'!$E$149) -> 0 | L39: =SUMIF(September!$C$5:'September'!$C$153,B39,September!$E$5:'September'!$E$153) -> 0 | M39: =SUMIF(October!$C$5:'October'!$C$153,B39,October!$E$5:'October'!$E$153) -> 0 | N39: =SUMIF(November!$C$5:'November'!$C$149,B39,November!$E$5:'November'!$E$149) -> 0 | O39: =SUMIF(December!$C$5:'December'!$C$151,B39,December!$E$5:'December'!$E$151) -> 0 | P39: 0
B40: =IF('Model Controls'!D8=0,"",'Model Controls'!D8) ->  | D40: =SUMIF(January!$C$5:'January'!$C$151,B40,January!$E$5:'January'!$E$151) -> 0 | E40: =SUMIF(February!$C$5:'February'!$C$150,B40,February!$E$5:'February'!$E$150) -> 0 | F40: =SUMIF(March!$C$5:'March'!$C$151,B40,March!$E$5:'March'!$E$151) -> 0 | G40: =SUMIF(April!$C$5:'April'!$C$151,B40,April!$E$5:'April'!$E$151) -> 0 | H40: =SUMIF(May!$C$5:'May'!$C$151,B40,May!$E$5:'May'!$E$151) -> 0 | I40: =SUMIF(June!$C$5:'June'!$C$151,B40,June!$E$5:'June'!$E$151) -> 0 | J40: =SUMIF(July!$C$5:'July'!$C$150,B40,July!$E$5:'July'!$E$150) -> 0 | K40: =SUMIF(August!$C$5:'August'!$C$149,B40,August!$E$5:'August'!$E$149) -> 0 | L40: =SUMIF(September!$C$5:'September'!$C$153,B40,September!$E$5:'September'!$E$153) -> 0 | M40: =SUMIF(October!$C$5:'October'!$C$153,B40,October!$E$5:'October'!$E$153) -> 0 | N40: =SUMIF(November!$C$5:'November'!$C$149,B40,November!$E$5:'November'!$E$149) -> 0 | O40: =SUMIF(December!$C$5:'December'!$C$151,B40,December!$E$5:'December'!$E$151) -> 0 | P40: =SUM(D40:O40) -> 0
B41: =IF('Model Controls'!D9=0,"",'Model Controls'!D9) ->  | D41: =SUMIF(January!$C$5:'January'!$C$151,B41,January!$E$5:'January'!$E$151) -> 0 | E41: =SUMIF(February!$C$5:'February'!$C$150,B41,February!$E$5:'February'!$E$150) -> 0 | F41: =SUMIF(March!$C$5:'March'!$C$151,B41,March!$E$5:'March'!$E$151) -> 0 | G41: =SUMIF(April!$C$5:'April'!$C$151,B41,April!$E$5:'April'!$E$151) -> 0 | H41: =SUMIF(May!$C$5:'May'!$C$151,B41,May!$E$5:'May'!$E$151) -> 0 | I41: =SUMIF(June!$C$5:'June'!$C$151,B41,June!$E$5:'June'!$E$151) -> 0 | J41: =SUMIF(July!$C$5:'July'!$C$150,B41,July!$E$5:'July'!$E$150) -> 0 | K41: =SUMIF(August!$C$5:'August'!$C$149,B41,August!$E$5:'August'!$E$149) -> 0 | L41: =SUMIF(September!$C$5:'September'!$C$153,B41,September!$E$5:'September'!$E$153) -> 0 | M41: =SUMIF(October!$C$5:'October'!$C$153,B41,October!$E$5:'October'!$E$153) -> 0 | N41: =SUMIF(November!$C$5:'November'!$C$149,B41,November!$E$5:'November'!$E$149) -> 0 | O41: =SUMIF(December!$C$5:'December'!$C$151,B41,December!$E$5:'December'!$E$151) -> 0 | P41: 0
B42: =IF('Model Controls'!D10=0,"",'Model Controls'!D10) ->  | D42: =SUMIF(January!$C$5:'January'!$C$151,B42,January!$E$5:'January'!$E$151) -> 0 | E42: =SUMIF(February!$C$5:'February'!$C$150,B42,February!$E$5:'February'!$E$150) -> 0 | F42: =SUMIF(March!$C$5:'March'!$C$151,B42,March!$E$5:'March'!$E$151) -> 0 | G42: =SUMIF(April!$C$5:'April'!$C$151,B42,April!$E$5:'April'!$E$151) -> 0 | H42: =SUMIF(May!$C$5:'May'!$C$151,B42,May!$E$5:'May'!$E$151) -> 0 | I42: =SUMIF(June!$C$5:'June'!$C$151,B42,June!$E$5:'June'!$E$151) -> 0 | J42: =SUMIF(July!$C$5:'July'!$C$150,B42,July!$E$5:'July'!$E$150) -> 0 | K42: =SUMIF(August!$C$5:'August'!$C$149,B42,August!$E$5:'August'!$E$149) -> 0 | L42: =SUMIF(September!$C$5:'September'!$C$153,B42,September!$E$5:'September'!$E$153) -> 0 | M42: =SUMIF(October!$C$5:'October'!$C$153,B42,October!$E$5:'October'!$E$153) -> 0 | N42: =SUMIF(November!$C$5:'November'!$C$149,B42,November!$E$5:'November'!$E$149) -> 0 | O42: =SUMIF(December!$C$5:'December'!$C$151,B42,December!$E$5:'December'!$E$151) -> 0 | P42: 0
B43: Total | C43: 0 | D43: =SUM(D34:D42) -> 2752.56 | E43: 3078.44 | F43: 3656.42 | G43: 1816.62 | H43: 0 | I43: 0 | J43: 0 | K43: 0 | L43: 0 | M43: 0 | N43: 0 | O43: 0 | P43: 11304.04
B45: Income (Saved) | D45: January | E45: February | F45: March | G45: April | H45: May | I45: June | J45: July | K45: August | L45: September | M45: October | N45: November | O45: December | P45: YTD TOTAL
B46: =IF('Model Controls'!D2=0,"",'Model Controls'!D2) -> TRH | D46: =SUMIF(January!$C$5:'January'!$C$151,B46,January!$I$5:'January'!$I$151) -> 516 | E46: =SUMIF(February!$C$5:'February'!$C$150,B46,February!$I$5:'February'!$I$150) -> 413 | F46: =SUMIF(March!$C$5:'March'!$C$151,B46,March!$I$5:'March'!$I$151) -> 447 | G46: =SUMIF(April!$C$5:'April'!$C$151,B46,April!$I$5:'April'!$I$151) -> 192 | H46: =SUMIF(May!$C$5:'May'!$C$151,B46,May!$I$5:'May'!$I$151) -> 0 | I46: =SUMIF(June!$C$5:'June'!$C$151,B46,June!$I$5:'June'!$I$151) -> 0 | J46: =SUMIF(July!$C$5:'July'!$C$150,B46,July!$I$5:'July'!$I$150) -> 0 | K46: =SUMIF(August!$C$5:'August'!$C$149,B46,August!$I$5:'August'!$I$149) -> 0 | L46: =SUMIF(September!$C$5:'September'!$C$153,B46,September!$I$5:'September'!$I$153) -> 0 | M46: =SUMIF(October!$C$5:'October'!$C$153,B46,October!$I$5:'October'!$I$153) -> 0 | N46: =SUMIF(November!$C$5:'November'!$C$149,B46,November!$I$5:'November'!$I$149) -> 0 | O46: =SUMIF(December!$C$5:'December'!$C$151,B46,December!$I$5:'December'!$I$151) -> 0 | P46: =SUM(D46:O46) -> 1568
B47: =IF('Model Controls'!D3=0,"",'Model Controls'!D3) -> BYU | D47: =SUMIF(January!$C$5:'January'!$C$151,B47,January!$I$5:'January'!$I$151) -> 117 | E47: =SUMIF(February!$C$5:'February'!$C$150,B47,February!$I$5:'February'!$I$150) -> 215 | F47: =SUMIF(March!$C$5:'March'!$C$151,B47,March!$I$5:'March'!$I$151) -> 310 | G47: =SUMIF(April!$C$5:'April'!$C$151,B47,April!$I$5:'April'!$I$151) -> 149 | H47: =SUMIF(May!$C$5:'May'!$C$151,B47,May!$I$5:'May'!$I$151) -> 0 | I47: =SUMIF(June!$C$5:'June'!$C$151,B47,June!$I$5:'June'!$I$151) -> 0 | J47: =SUMIF(July!$C$5:'July'!$C$150,B47,July!$I$5:'July'!$I$150) -> 0 | K47: =SUMIF(August!$C$5:'August'!$C$149,B47,August!$I$5:'August'!$I$149) -> 0 | L47: =SUMIF(September!$C$5:'September'!$C$153,B47,September!$I$5:'September'!$I$153) -> 0 | M47: =SUMIF(October!$C$5:'October'!$C$153,B47,October!$I$5:'October'!$I$153) -> 0 | N47: =SUMIF(November!$C$5:'November'!$C$149,B47,November!$I$5:'November'!$I$149) -> 0 | O47: =SUMIF(December!$C$5:'December'!$C$151,B47,December!$I$5:'December'!$I$151) -> 0 | P47: 791
B48: =IF('Model Controls'!D4=0,"",'Model Controls'!D4) -> MGF | D48: =SUMIF(January!$C$5:'January'!$C$151,B48,January!$I$5:'January'!$I$151) -> 49 | E48: =SUMIF(February!$C$5:'February'!$C$150,B48,February!$I$5:'February'!$I$150) -> 143 | F48: =SUMIF(March!$C$5:'March'!$C$151,B48,March!$I$5:'March'!$I$151) -> 146 | G48: =SUMIF(April!$C$5:'April'!$C$151,B48,April!$I$5:'April'!$I$151) -> 112 | H48: =SUMIF(May!$C$5:'May'!$C$151,B48,May!$I$5:'May'!$I$151) -> 0 | I48: =SUMIF(June!$C$5:'June'!$C$151,B48,June!$I$5:'June'!$I$151) -> 0 | J48: =SUMIF(July!$C$5:'July'!$C$150,B48,July!$I$5:'July'!$I$150) -> 0 | K48: =SUMIF(August!$C$5:'August'!$C$149,B48,August!$I$5:'August'!$I$149) -> 0 | L48: =SUMIF(September!$C$5:'September'!$C$153,B48,September!$I$5:'September'!$I$153) -> 0 | M48: =SUMIF(October!$C$5:'October'!$C$153,B48,October!$I$5:'October'!$I$153) -> 0 | N48: =SUMIF(November!$C$5:'November'!$C$149,B48,November!$I$5:'November'!$I$149) -> 0 | O48: =SUMIF(December!$C$5:'December'!$C$151,B48,December!$I$5:'December'!$I$151) -> 0 | P48: 450
B49: =IF('Model Controls'!D5=0,"",'Model Controls'!D5) -> FAMILY | D49: =SUMIF(January!$C$5:'January'!$C$151,B49,January!$I$5:'January'!$I$151) -> 0 | E49: =SUMIF(February!$C$5:'February'!$C$150,B49,February!$I$5:'February'!$I$150) -> 0 | F49: =SUMIF(March!$C$5:'March'!$C$151,B49,March!$I$5:'March'!$I$151) -> 0 | G49: =SUMIF(April!$C$5:'April'!$C$151,B49,April!$I$5:'April'!$I$151) -> 0 | H49: =SUMIF(May!$C$5:'May'!$C$151,B49,May!$I$5:'May'!$I$151) -> 0 | I49: =SUMIF(June!$C$5:'June'!$C$151,B49,June!$I$5:'June'!$I$151) -> 0 | J49: =SUMIF(July!$C$5:'July'!$C$150,B49,July!$I$5:'July'!$I$150) -> 0 | K49: =SUMIF(August!$C$5:'August'!$C$149,B49,August!$I$5:'August'!$I$149) -> 0 | L49: =SUMIF(September!$C$5:'September'!$C$153,B49,September!$I$5:'September'!$I$153) -> 0 | M49: =SUMIF(October!$C$5:'October'!$C$153,B49,October!$I$5:'October'!$I$153) -> 0 | N49: =SUMIF(November!$C$5:'November'!$C$149,B49,November!$I$5:'November'!$I$149) -> 0 | O49: =SUMIF(December!$C$5:'December'!$C$151,B49,December!$I$5:'December'!$I$151) -> 0 | P49: 0
B50: =IF('Model Controls'!D6=0,"",'Model Controls'!D6) -> MISC | D50: =SUMIF(January!$C$5:'January'!$C$151,B50,January!$I$5:'January'!$I$151) -> 5 | E50: =SUMIF(February!$C$5:'February'!$C$150,B50,February!$I$5:'February'!$I$150) -> 0 | F50: =SUMIF(March!$C$5:'March'!$C$151,B50,March!$I$5:'March'!$I$151) -> 425 | G50: =SUMIF(April!$C$5:'April'!$C$151,B50,April!$I$5:'April'!$I$151) -> 0 | H50: =SUMIF(May!$C$5:'May'!$C$151,B50,May!$I$5:'May'!$I$151) -> 0 | I50: =SUMIF(June!$C$5:'June'!$C$151,B50,June!$I$5:'June'!$I$151) -> 0 | J50: =SUMIF(July!$C$5:'July'!$C$150,B50,July!$I$5:'July'!$I$150) -> 0 | K50: =SUMIF(August!$C$5:'August'!$C$149,B50,August!$I$5:'August'!$I$149) -> 0 | L50: =SUMIF(September!$C$5:'September'!$C$153,B50,September!$I$5:'September'!$I$153) -> 0 | M50: =SUMIF(October!$C$5:'October'!$C$153,B50,October!$I$5:'October'!$I$153) -> 0 | N50: =SUMIF(November!$C$5:'November'!$C$149,B50,November!$I$5:'November'!$I$149) -> 0 | O50: =SUMIF(December!$C$5:'December'!$C$151,B50,December!$I$5:'December'!$I$151) -> 0 | P50: 430
B51: =IF('Model Controls'!D7=0,"",'Model Controls'!D7) -> FORD | D51: =SUMIF(January!$C$5:'January'!$C$151,B51,January!$I$5:'January'!$I$151) -> 0 | E51: =SUMIF(February!$C$5:'February'!$C$150,B51,February!$I$5:'February'!$I$150) -> 0 | F51: =SUMIF(March!$C$5:'March'!$C$151,B51,March!$I$5:'March'!$I$151) -> 0 | G51: =SUMIF(April!$C$5:'April'!$C$151,B51,April!$I$5:'April'!$I$151) -> 0 | H51: =SUMIF(May!$C$5:'May'!$C$151,B51,May!$I$5:'May'!$I$151) -> 0 | I51: =SUMIF(June!$C$5:'June'!$C$151,B51,June!$I$5:'June'!$I$151) -> 0 | J51: =SUMIF(July!$C$5:'July'!$C$150,B51,July!$I$5:'July'!$I$150) -> 0 | K51: =SUMIF(August!$C$5:'August'!$C$149,B51,August!$I$5:'August'!$I$149) -> 0 | L51: =SUMIF(September!$C$5:'September'!$C$153,B51,September!$I$5:'September'!$I$153) -> 0 | M51: =SUMIF(October!$C$5:'October'!$C$153,B51,October!$I$5:'October'!$I$153) -> 0 | N51: =SUMIF(November!$C$5:'November'!$C$149,B51,November!$I$5:'November'!$I$149) -> 0 | O51: =SUMIF(December!$C$5:'December'!$C$151,B51,December!$I$5:'December'!$I$151) -> 0 | P51: 0
B52: =IF('Model Controls'!D8=0,"",'Model Controls'!D8) ->  | D52: =SUMIF(January!$C$5:'January'!$C$151,B52,January!$I$5:'January'!$I$151) -> 0 | E52: =SUMIF(February!$C$5:'February'!$C$150,B52,February!$I$5:'February'!$I$150) -> 0 | F52: =SUMIF(March!$C$5:'March'!$C$151,B52,March!$I$5:'March'!$I$151) -> 0 | G52: =SUMIF(April!$C$5:'April'!$C$151,B52,April!$I$5:'April'!$I$151) -> 0 | H52: =SUMIF(May!$C$5:'May'!$C$151,B52,May!$I$5:'May'!$I$151) -> 0 | I52: =SUMIF(June!$C$5:'June'!$C$151,B52,June!$I$5:'June'!$I$151) -> 0 | J52: =SUMIF(July!$C$5:'July'!$C$150,B52,July!$I$5:'July'!$I$150) -> 0 | K52: =SUMIF(August!$C$5:'August'!$C$149,B52,August!$I$5:'August'!$I$149) -> 0 | L52: =SUMIF(September!$C$5:'September'!$C$153,B52,September!$I$5:'September'!$I$153) -> 0 | M52: =SUMIF(October!$C$5:'October'!$C$153,B52,October!$I$5:'October'!$I$153) -> 0 | N52: =SUMIF(November!$C$5:'November'!$C$149,B52,November!$I$5:'November'!$I$149) -> 0 | O52: =SUMIF(December!$C$5:'December'!$C$151,B52,December!$I$5:'December'!$I$151) -> 0 | P52: =SUM(D52:O52) -> 0
B53: =IF('Model Controls'!D9=0,"",'Model Controls'!D9) ->  | D53: =SUMIF(January!$C$5:'January'!$C$151,B53,January!$I$5:'January'!$I$151) -> 0 | E53: =SUMIF(February!$C$5:'February'!$C$150,B53,February!$I$5:'February'!$I$150) -> 0 | F53: =SUMIF(March!$C$5:'March'!$C$151,B53,March!$I$5:'March'!$I$151) -> 0 | G53: =SUMIF(April!$C$5:'April'!$C$151,B53,April!$I$5:'April'!$I$151) -> 0 | H53: =SUMIF(May!$C$5:'May'!$C$151,B53,May!$I$5:'May'!$I$151) -> 0 | I53: =SUMIF(June!$C$5:'June'!$C$151,B53,June!$I$5:'June'!$I$151) -> 0 | J53: =SUMIF(July!$C$5:'July'!$C$150,B53,July!$I$5:'July'!$I$150) -> 0 | K53: =SUMIF(August!$C$5:'August'!$C$149,B53,August!$I$5:'August'!$I$149) -> 0 | L53: =SUMIF(September!$C$5:'September'!$C$153,B53,September!$I$5:'September'!$I$153) -> 0 | M53: =SUMIF(October!$C$5:'October'!$C$153,B53,October!$I$5:'October'!$I$153) -> 0 | N53: =SUMIF(November!$C$5:'November'!$C$149,B53,November!$I$5:'November'!$I$149) -> 0 | O53: =SUMIF(December!$C$5:'December'!$C$151,B53,December!$I$5:'December'!$I$151) -> 0 | P53: 0
B54: =IF('Model Controls'!D10=0,"",'Model Controls'!D10) ->  | D54: =SUMIF(January!$C$5:'January'!$C$151,B54,January!$I$5:'January'!$I$151) -> 0 | E54: =SUMIF(February!$C$5:'February'!$C$150,B54,February!$I$5:'February'!$I$150) -> 0 | F54: =SUMIF(March!$C$5:'March'!$C$151,B54,March!$I$5:'March'!$I$151) -> 0 | G54: =SUMIF(April!$C$5:'April'!$C$151,B54,April!$I$5:'April'!$I$151) -> 0 | H54: =SUMIF(May!$C$5:'May'!$C$151,B54,May!$I$5:'May'!$I$151) -> 0 | I54: =SUMIF(June!$C$5:'June'!$C$151,B54,June!$I$5:'June'!$I$151) -> 0 | J54: =SUMIF(July!$C$5:'July'!$C$150,B54,July!$I$5:'July'!$I$150) -> 0 | K54: =SUMIF(August!$C$5:'August'!$C$149,B54,August!$I$5:'August'!$I$149) -> 0 | L54: =SUMIF(September!$C$5:'September'!$C$153,B54,September!$I$5:'September'!$I$153) -> 0 | M54: =SUMIF(October!$C$5:'October'!$C$153,B54,October!$I$5:'October'!$I$153) -> 0 | N54: =SUMIF(November!$C$5:'November'!$C$149,B54,November!$I$5:'November'!$I$149) -> 0 | O54: =SUMIF(December!$C$5:'December'!$C$151,B54,December!$I$5:'December'!$I$151) -> 0 | P54: 0
B55: Total | C55: 0 | D55: =SUM(D46:D54) -> 687 | E55: 771 | F55: 1328 | G55: 453 | H55: 0 | I55: 0 | J55: 0 | K55: 0 | L55: 0 | M55: 0 | N55: 0 | O55: 0 | P55: 3239
C56: 0 | D56: =D55 -> 687 | E56: =D56+E55 -> 1458 | F56: =E56+F55 -> 2786 | G56: 3239 | H56: 3239 | I56: 3239 | J56: 3239 | K56: 3239 | L56: 3239 | M56: 3239 | N56: 3239 | O56: 3239

Sheet Expenses
B2: Expense Trends
B19: Expenses | C19: January | D19: February | E19: March | F19: April | G19: May | H19: June | I19: July | J19: August | K19: September | L19: October | M19: November | N19: December | O19: YTD Total | P19: Trend
B20: =IF('Model Controls'!B2=0,"",'Model Controls'!B2) -> Church | C20: =(SUMIF(January!$C$5:'January'!$C$151,$B20,January!$D$5:'January'!$D$151)+SUMIF(January!$C$5:'January'!$C$151,$B20,January!$G$5:'January'!$G$151)+SUMIF(January!$C$5:'January'!$C$151,$B20,January!$H$5:'January'!$H$151)) -> 348.952 | D20: =(SUMIF(February!$C$5:'February'!$C$150,$B20,February!$D$5:'February'!$D$150)+SUMIF(February!$C$5:'February'!$C$150,$B20,February!$G$5:'February'!$G$150)+SUMIF(February!$C$5:'February'!$C$150,$B20,February!$H$5:'February'!$H$150)) -> 434.95 | E20: =SUMIF(March!$C$5:$C$151,$B20,March!$D$5:$D$151)+SUMIF(March!$C$5:$C$151,$B20,March!$G$5:$G$151)+SUMIF(March!$C$5:$C$151,$B20,March!$H$5:$H$151) -> 498.45 | F20: =(SUMIF(April!$C$5:'April'!$C$151,$B20,April!$D$5:'April'!$D$151)+SUMIF(April!$C$5:'April'!$C$151,$B20,April!$G$5:'April'!$G$151)+SUMIF(April!$C$5:'April'!$C$151,$B20,April!$H$5:'April'!$H$151)) -> 226.96 | G20: =(SUMIF(May!$C$5:'May'!$C$151,$B20,May!$D$5:'May'!$D$151)+SUMIF(May!$C$5:'May'!$C$151,$B20,May!$G$5:'May'!$G$151)+SUMIF(May!$C$5:'May'!$C$151,$B20,May!$H$5:'May'!$H$151)) -> 0 | H20: =(SUMIF(June!$C$5:'June'!$C$151,$B20,June!$D$5:'June'!$D$151)+SUMIF(June!$C$5:'June'!$C$151,$B20,June!$G$5:'June'!$G$151)+SUMIF(June!$C$5:'June'!$C$151,$B20,June!$H$5:'June'!$H$151)) -> 0 | I20: =(SUMIF(July!$C$5:'July'!$C$150,$B20,July!$D$5:'July'!$D$150)+SUMIF(July!$C$5:'July'!$C$150,$B20,July!$G$5:'July'!$G$150)+SUMIF(July!$C$5:'July'!$C$150,$B20,July!$H$5:'July'!$H$150)) -> 0 | J20: =(SUMIF(August!$C$5:'August'!$C$149,$B20,August!$D$5:'August'!$D$149)+SUMIF(August!$C$5:'August'!$C$149,$B20,August!$G$5:'August'!$G$149)+SUMIF(August!$C$5:'August'!$C$149,$B20,August!$H$5:'August'!$H$149)) -> 0 | K20: =(SUMIF(September!$C$5:'September'!$C$153,$B20,September!$D$5:'September'!$D$153)+SUMIF(September!$C$5:'September'!$C$153,$B20,September!$G$5:'September'!$G$153)+SUMIF(September!$C$5:'September'!$C$153,$B20,September!$H$5:'September'!$H$153)) -> 0 | L20: =(SUMIF(October!$C$5:'October'!$C$153,$B20,October!$D$5:'October'!$D$153)+SUMIF(October!$C$5:'October'!$C$153,$B20,October!$G$5:'October'!$G$153)+SUMIF(October!$C$5:'October'!$C$153,$B20,October!$H$5:'October'!$H$153)) -> 0 | M20: =(SUMIF(November!$C$5:'November'!$C$149,$B20,November!$D$5:'November'!$D$149)+SUMIF(November!$C$5:'November'!$C$149,$B20,November!$G$5:'November'!$G$149)+SUMIF(November!$C$5:'November'!$C$149,$B20,November!$H$5:'November'!$H$149)) -> 0 | N20: =(SUMIF(December!$C$5:'December'!$C$151,$B20,December!$D$5:'December'!$D$151)+SUMIF(December!$C$5:'December'!$C$151,$B20,December!$G$5:'December'!$G$151)+SUMIF(December!$C$5:'December'!$C$151,$B20,December!$H$5:'December'!$H$151)) -> 0 | O20: =SUM(C20:N20) -> 1509.312
B21: =IF('Model Controls'!B3=0,"",'Model Controls'!B3) -> Clothes | C21: =(SUMIF(January!$C$5:'January'!$C$151,$B21,January!$D$5:'January'!$D$151)+SUMIF(January!$C$5:'January'!$C$151,$B21,January!$G$5:'January'!$G$151)+SUMIF(January!$C$5:'January'!$C$151,$B21,January!$H$5:'January'!$H$151)) -> 0 | D21: =(SUMIF(February!$C$5:'February'!$C$150,$B21,February!$D$5:'February'!$D$150)+SUMIF(February!$C$5:'February'!$C$150,$B21,February!$G$5:'February'!$G$150)+SUMIF(February!$C$5:'February'!$C$150,$B21,February!$H$5:'February'!$H$150)) -> 69.33 | E21: =SUMIF(March!$C$5:$C$151,$B21,March!$D$5:$D$151)+SUMIF(March!$C$5:$C$151,$B21,March!$G$5:$G$151)+SUMIF(March!$C$5:$C$151,$B21,March!$H$5:$H$151) -> 157.14 | F21: =(SUMIF(April!$C$5:'April'!$C$151,$B21,April!$D$5:'April'!$D$151)+SUMIF(April!$C$5:'April'!$C$151,$B21,April!$G$5:'April'!$G$151)+SUMIF(April!$C$5:'April'!$C$151,$B21,April!$H$5:'April'!$H$151)) -> 28 | G21: =(SUMIF(May!$C$5:'May'!$C$151,$B21,May!$D$5:'May'!$D$151)+SUMIF(May!$C$5:'May'!$C$151,$B21,May!$G$5:'May'!$G$151)+SUMIF(May!$C$5:'May'!$C$151,$B21,May!$H$5:'May'!$H$151)) -> 0 | H21: =(SUMIF(June!$C$5:'June'!$C$151,$B21,June!$D$5:'June'!$D$151)+SUMIF(June!$C$5:'June'!$C$151,$B21,June!$G$5:'June'!$G$151)+SUMIF(June!$C$5:'June'!$C$151,$B21,June!$H$5:'June'!$H$151)) -> 0 | I21: =(SUMIF(July!$C$5:'July'!$C$150,$B21,July!$D$5:'July'!$D$150)+SUMIF(July!$C$5:'July'!$C$150,$B21,July!$G$5:'July'!$G$150)+SUMIF(July!$C$5:'July'!$C$150,$B21,July!$H$5:'July'!$H$150)) -> 0 | J21: =(SUMIF(August!$C$5:'August'!$C$149,$B21,August!$D$5:'August'!$D$149)+SUMIF(August!$C$5:'August'!$C$149,$B21,August!$G$5:'August'!$G$149)+SUMIF(August!$C$5:'August'!$C$149,$B21,August!$H$5:'August'!$H$149)) -> 0 | K21: =(SUMIF(September!$C$5:'September'!$C$153,$B21,September!$D$5:'September'!$D$153)+SUMIF(September!$C$5:'September'!$C$153,$B21,September!$G$5:'September'!$G$153)+SUMIF(September!$C$5:'September'!$C$153,$B21,September!$H$5:'September'!$H$153)) -> 0 | L21: =(SUMIF(October!$C$5:'October'!$C$153,$B21,October!$D$5:'October'!$D$153)+SUMIF(October!$C$5:'October'!$C$153,$B21,October!$G$5:'October'!$G$153)+SUMIF(October!$C$5:'October'!$C$153,$B21,October!$H$5:'October'!$H$153)) -> 0 | M21: =(SUMIF(November!$C$5:'November'!$C$149,$B21,November!$D$5:'November'!$D$149)+SUMIF(November!$C$5:'November'!$C$149,$B21,November!$G$5:'November'!$G$149)+SUMIF(November!$C$5:'November'!$C$149,$B21,November!$H$5:'November'!$H$149)) -> 0 | N21: =(SUMIF(December!$C$5:'December'!$C$151,$B21,December!$D$5:'December'!$D$151)+SUMIF(December!$C$5:'December'!$C$151,$B21,December!$G$5:'December'!$G$151)+SUMIF(December!$C$5:'December'!$C$151,$B21,December!$H$5:'December'!$H$151)) -> 0 | O21: =SUM(C21:N21) -> 254.47
B22: =IF('Model Controls'!B4=0,"",'Model Controls'!B4) -> Cosmetics | C22: =(SUMIF(January!$C$5:'January'!$C$151,$B22,January!$D$5:'January'!$D$151)+SUMIF(January!$C$5:'January'!$C$151,$B22,January!$G$5:'January'!$G$151)+SUMIF(January!$C$5:'January'!$C$151,$B22,January!$H$5:'January'!$H$151)) -> 0 | D22: =(SUMIF(February!$C$5:'February'!$C$150,$B22,February!$D$5:'February'!$D$150)+SUMIF(February!$C$5:'February'!$C$150,$B22,February!$G$5:'February'!$G$150)+SUMIF(February!$C$5:'February'!$C$150,$B22,February!$H$5:'February'!$H$150)) -> 0 | E22: =SUMIF(March!$C$5:$C$151,$B22,March!$D$5:$D$151)+SUMIF(March!$C$5:$C$151,$B22,March!$G$5:$G$151)+SUMIF(March!$C$5:$C$151,$B22,March!$H$5:$H$151) -> 0 | F22: =(SUMIF(April!$C$5:'April'!$C$151,$B22,April!$D$5:'April'!$D$151)+SUMIF(April!$C$5:'April'!$C$151,$B22,April!$G$5:'April'!$G$151)+SUMIF(April!$C$5:'April'!$C$151,$B22,April!$H$5:'April'!$H$151)) -> 37.03 | G22: =(SUMIF(May!$C$5:'May'!$C$151,$B22,May!$D$5:'May'!$D$151)+SUMIF(May!$C$5:'May'!$C$151,$B22,May!$G$5:'May'!$G$151)+SUMIF(May!$C$5:'May'!$C$151,$B22,May!$H$5:'May'!$H$151)) -> 0 | H22: =(SUMIF(June!$C$5:'June'!$C$151,$B22,June!$D$5:'June'!$D$151)+SUMIF(June!$C$5:'June'!$C$151,$B22,June!$G$5:'June'!$G$151)+SUMIF(June!$C$5:'June'!$C$151,$B22,June!$H$5:'June'!$H$151)) -> 0 | I22: =(SUMIF(July!$C$5:'July'!$C$150,$B22,July!$D$5:'July'!$D$150)+SUMIF(July!$C$5:'July'!$C$150,$B22,July!$G$5:'July'!$G$150)+SUMIF(July!$C$5:'July'!$C$150,$B22,July!$H$5:'July'!$H$150)) -> 0 | J22: =(SUMIF(August!$C$5:'August'!$C$149,$B22,August!$D$5:'August'!$D$149)+SUMIF(August!$C$5:'August'!$C$149,$B22,August!$G$5:'August'!$G$149)+SUMIF(August!$C$5:'August'!$C$149,$B22,August!$H$5:'August'!$H$149)) -> 0 | K22: =(SUMIF(September!$C$5:'September'!$C$153,$B22,September!$D$5:'September'!$D$153)+SUMIF(September!$C$5:'September'!$C$153,$B22,September!$G$5:'September'!$G$153)+SUMIF(September!$C$5:'September'!$C$153,$B22,September!$H$5:'September'!$H$153)) -> 0 | L22: =(SUMIF(October!$C$5:'October'!$C$153,$B22,October!$D$5:'October'!$D$153)+SUMIF(October!$C$5:'October'!$C$153,$B22,October!$G$5:'October'!$G$153)+SUMIF(October!$C$5:'October'!$C$153,$B22,October!$H$5:'October'!$H$153)) -> 0 | M22: =(SUMIF(November!$C$5:'November'!$C$149,$B22,November!$D$5:'November'!$D$149)+SUMIF(November!$C$5:'November'!$C$149,$B22,November!$G$5:'November'!$G$149)+SUMIF(November!$C$5:'November'!$C$149,$B22,November!$H$5:'November'!$H$149)) -> 0 | N22: =(SUMIF(December!$C$5:'December'!$C$151,$B22,December!$D$5:'December'!$D$151)+SUMIF(December!$C$5:'December'!$C$151,$B22,December!$G$5:'December'!$G$151)+SUMIF(December!$C$5:'December'!$C$151,$B22,December!$H$5:'December'!$H$151)) -> 0 | O22: 37.03
B23: =IF('Model Controls'!B5=0,"",'Model Controls'!B5) -> Eat Out | C23: =(SUMIF(January!$C$5:'January'!$C$151,$B23,January!$D$5:'January'!$D$151)+SUMIF(January!$C$5:'January'!$C$151,$B23,January!$G$5:'January'!$G$151)+SUMIF(January!$C$5:'January'!$C$151,$B23,January!$H$5:'January'!$H$151)) -> 58.75 | D23: =(SUMIF(February!$C$5:'February'!$C$150,$B23,February!$D$5:'February'!$D$150)+SUMIF(February!$C$5:'February'!$C$150,$B23,February!$G$5:'February'!$G$150)+SUMIF(February!$C$5:'February'!$C$150,$B23,February!$H$5:'February'!$H$150)) -> 187.58 | E23: =SUMIF(March!$C$5:$C$151,$B23,March!$D$5:$D$151)+SUMIF(March!$C$5:$C$151,$B23,March!$G$5:$G$151)+SUMIF(March!$C$5:$C$151,$B23,March!$H$5:$H$151) -> 142.73 | F23: =(SUMIF(April!$C$5:'April'!$C$151,$B23,April!$D$5:'April'!$D$151)+SUMIF(April!$C$5:'April'!$C$151,$B23,April!$G$5:'April'!$G$151)+SUMIF(April!$C$5:'April'!$C$151,$B23,April!$H$5:'April'!$H$151)) -> 41.68 | G23: =(SUMIF(May!$C$5:'May'!$C$151,$B23,May!$D$5:'May'!$D$151)+SUMIF(May!$C$5:'May'!$C$151,$B23,May!$G$5:'May'!$G$151)+SUMIF(May!$C$5:'May'!$C$151,$B23,May!$H$5:'May'!$H$151)) -> 0 | H23: =(SUMIF(June!$C$5:'June'!$C$151,$B23,June!$D$5:'June'!$D$151)+SUMIF(June!$C$5:'June'!$C$151,$B23,June!$G$5:'June'!$G$151)+SUMIF(June!$C$5:'June'!$C$151,$B23,June!$H$5:'June'!$H$151)) -> 0 | I23: =(SUMIF(July!$C$5:'July'!$C$150,$B23,July!$D$5:'July'!$D$150)+SUMIF(July!$C$5:'July'!$C$150,$B23,July!$G$5:'July'!$G$150)+SUMIF(July!$C$5:'July'!$C$150,$B23,July!$H$5:'July'!$H$150)) -> 0 | J23: =(SUMIF(August!$C$5:'August'!$C$149,$B23,August!$D$5:'August'!$D$149)+SUMIF(August!$C$5:'August'!$C$149,$B23,August!$G$5:'August'!$G$149)+SUMIF(August!$C$5:'August'!$C$149,$B23,August!$H$5:'August'!$H$149)) -> 0 | K23: =(SUMIF(September!$C$5:'September'!$C$153,$B23,September!$D$5:'September'!$D$153)+SUMIF(September!$C$5:'September'!$C$153,$B23,September!$G$5:'September'!$G$153)+SUMIF(September!$C$5:'September'!$C$153,$B23,September!$H$5:'September'!$H$153)) -> 0 | L23: =(SUMIF(October!$C$5:'October'!$C$153,$B23,October!$D$5:'October'!$D$153)+SUMIF(October!$C$5:'October'!$C$153,$B23,October!$G$5:'October'!$G$153)+SUMIF(October!$C$5:'October'!$C$153,$B23,October!$H$5:'October'!$H$153)) -> 0 | M23: =(SUMIF(November!$C$5:'November'!$C$149,$B23,November!$D$5:'November'!$D$149)+SUMIF(November!$C$5:'November'!$C$149,$B23,November!$G$5:'November'!$G$149)+SUMIF(November!$C$5:'November'!$C$149,$B23,November!$H$5:'November'!$H$149)) -> 0 | N23: =(SUMIF(December!$C$5:'December'!$C$151,$B23,December!$D$5:'December'!$D$151)+SUMIF(December!$C$5:'December'!$C$151,$B23,December!$G$5:'December'!$G$151)+SUMIF(December!$C$5:'December'!$C$151,$B23,December!$H$5:'December'!$H$151)) -> 0 | O23: 430.74
B24: =IF('Model Controls'!B6=0,"",'Model Controls'!B6) -> Entertainment | C24: =(SUMIF(January!$C$5:'January'!$C$151,$B24,January!$D$5:'January'!$D$151)+SUMIF(January!$C$5:'January'!$C$151,$B24,January!$G$5:'January'!$G$151)+SUMIF(January!$C$5:'January'!$C$151,$B24,January!$H$5:'January'!$H$151)) -> 54.1 | D24: =(SUMIF(February!$C$5:'February'!$C$150,$B24,February!$D$5:'February'!$D$150)+SUMIF(February!$C$5:'February'!$C$150,$B24,February!$G$5:'February'!$G$150)+SUMIF(February!$C$5:'February'!$C$150,$B24,February!$H$5:'February'!$H$150)) -> 16.6 | E24: =SUMIF(March!$C$5:$C$151,$B24,March!$D$5:$D$151)+SUMIF(March!$C$5:$C$151,$B24,March!$G$5:$G$151)+SUMIF(March!$C$5:$C$151,$B24,March!$H$5:$H$151) -> 13.33 | F24: =(SUMIF(April!$C$5:'April'!$C$151,$B24,April!$D$5:'April'!$D$151)+SUMIF(April!$C$5:'April'!$C$151,$B24,April!$G$5:'April'!$G$151)+SUMIF(April!$C$5:'April'!$C$151,$B24,April!$H$5:'April'!$H$151)) -> 30 | G24: =(SUMIF(May!$C$5:'May'!$C$151,$B24,May!$D$5:'May'!$D$151)+SUMIF(May!$C$5:'May'!$C$151,$B24,May!$G$5:'May'!$G$151)+SUMIF(May!$C$5:'May'!$C$151,$B24,May!$H$5:'May'!$H$151)) -> 0 | H24: =(SUMIF(June!$C$5:'June'!$C$151,$B24,June!$D$5:'June'!$D$151)+SUMIF(June!$C$5:'June'!$C$151,$B24,June!$G$5:'June'!$G$151)+SUMIF(June!$C$5:'June'!$C$151,$B24,June!$H$5:'June'!$H$151)) -> 0 | I24: =(SUMIF(July!$C$5:'July'!$C$150,$B24,July!$D$5:'July'!$D$150)+SUMIF(July!$C$5:'July'!$C$150,$B24,July!$G$5:'July'!$G$150)+SUMIF(July!$C$5:'July'!$C$150,$B24,July!$H$5:'July'!$H$150)) -> 0 | J24: =(SUMIF(August!$C$5:'August'!$C$149,$B24,August!$D$5:'August'!$D$149)+SUMIF(August!$C$5:'August'!$C$149,$B24,August!$G$5:'August'!$G$149)+SUMIF(August!$C$5:'August'!$C$149,$B24,August!$H$5:'August'!$H$149)) -> 0 | K24: =(SUMIF(September!$C$5:'September'!$C$153,$B24,September!$D$5:'September'!$D$153)+SUMIF(September!$C$5:'September'!$C$153,$B24,September!$G$5:'September'!$G$153)+SUMIF(September!$C$5:'September'!$C$153,$B24,September!$H$5:'September'!$H$153)) -> 0 | L24: =(SUMIF(October!$C$5:'October'!$C$153,$B24,October!$D$5:'October'!$D$153)+SUMIF(October!$C$5:'October'!$C$153,$B24,October!$G$5:'October'!$G$153)+SUMIF(October!$C$5:'October'!$C$153,$B24,October!$H$5:'October'!$H$153)) -> 0 | M24: =(SUMIF(November!$C$5:'November'!$C$149,$B24,November!$D$5:'November'!$D$149)+SUMIF(November!$C$5:'November'!$C$149,$B24,November!$G$5:'November'!$G$149)+SUMIF(November!$C$5:'November'!$C$149,$B24,November!$H$5:'November'!$H$149)) -> 0 | N24: =(SUMIF(December!$C$5:'December'!$C$151,$B24,December!$D$5:'December'!$D$151)+SUMIF(December!$C$5:'December'!$C$151,$B24,December!$G$5:'December'!$G$151)+SUMIF(December!$C$5:'December'!$C$151,$B24,December!$H$5:'December'!$H$151)) -> 0 | O24: 114.03
B25: =IF('Model Controls'!B7=0,"",'Model Controls'!B7) -> Food | C25: =(SUMIF(January!$C$5:'January'!$C$151,$B25,January!$D$5:'January'!$D$151)+SUMIF(January!$C$5:'January'!$C$151,$B25,January!$G$5:'January'!$G$151)+SUMIF(January!$C$5:'January'!$C$151,$B25,January!$H$5:'January'!$H$151)) -> 431.6 | D25: =(SUMIF(February!$C$5:'February'!$C$150,$B25,February!$D$5:'February'!$D$150)+SUMIF(February!$C$5:'February'!$C$150,$B25,February!$G$5:'February'!$G$150)+SUMIF(February!$C$5:'February'!$C$150,$B25,February!$H$5:'February'!$H$150)) -> 219.08 | E25: =SUMIF(March!$C$5:$C$151,$B25,March!$D$5:$D$151)+SUMIF(March!$C$5:$C$151,$B25,March!$G$5:$G$151)+SUMIF(March!$C$5:$C$151,$B25,March!$H$5:$H$151) -> 320.07 | F25: =(SUMIF(April!$C$5:'April'!$C$151,$B25,April!$D$5:'April'!$D$151)+SUMIF(April!$C$5:'April'!$C$151,$B25,April!$G$5:'April'!$G$151)+SUMIF(April!$C$5:'April'!$C$151,$B25,April!$H$5:'April'!$H$151)) -> 146.16 | G25: =(SUMIF(May!$C$5:'May'!$C$151,$B25,May!$D$5:'May'!$D$151)+SUMIF(May!$C$5:'May'!$C$151,$B25,May!$G$5:'May'!$G$151)+SUMIF(May!$C$5:'May'!$C$151,$B25,May!$H$5:'May'!$H$151)) -> 0 | H25: =(SUMIF(June!$C$5:'June'!$C$151,$B25,June!$D$5:'June'!$D$151)+SUMIF(June!$C$5:'June'!$C$151,$B25,June!$G$5:'June'!$G$151)+SUMIF(June!$C$5:'June'!$C$151,$B25,June!$H$5:'June'!$H$151)) -> 0 | I25: =(SUMIF(July!$C$5:'July'!$C$150,$B25,July!$D$5:'July'!$D$150)+SUMIF(July!$C$5:'July'!$C$150,$B25,July!$G$5:'July'!$G$150)+SUMIF(July!$C$5:'July'!$C$150,$B25,July!$H$5:'July'!$H$150)) -> 0 | J25: =(SUMIF(August!$C$5:'August'!$C$149,$B25,August!$D$5:'August'!$D$149)+SUMIF(August!$C$5:'August'!$C$149,$B25,August!$G$5:'August'!$G$149)+SUMIF(August!$C$5:'August'!$C$149,$B25,August!$H$5:'August'!$H$149)) -> 0 | K25: =(SUMIF(September!$C$5:'September'!$C$153,$B25,September!$D$5:'September'!$D$153)+SUMIF(September!$C$5:'September'!$C$153,$B25,September!$G$5:'September'!$G$153)+SUMIF(September!$C$5:'September'!$C$153,$B25,September!$H$5:'September'!$H$153)) -> 0 | L25: =(SUMIF(October!$C$5:'October'!$C$153,$B25,October!$D$5:'October'!$D$153)+SUMIF(October!$C$5:'October'!$C$153,$B25,October!$G$5:'October'!$G$153)+SUMIF(October!$C$5:'October'!$C$153,$B25,October!$H$5:'October'!$H$153)) -> 0 | M25: =(SUMIF(November!$C$5:'November'!$C$149,$B25,November!$D$5:'November'!$D$149)+SUMIF(November!$C$5:'November'!$C$149,$B25,November!$G$5:'November'!$G$149)+SUMIF(November!$C$5:'November'!$C$149,$B25,November!$H$5:'November'!$H$149)) -> 0 | N25: =(SUMIF(December!$C$5:'December'!$C$151,$B25,December!$D$5:'December'!$D$151)+SUMIF(December!$C$5:'December'!$C$151,$B25,December!$G$5:'December'!$G$151)+SUMIF(December!$C$5:'December'!$C$151,$B25,December!$H$5:'December'!$H$151)) -> 0 | O25: 1116.91
B26: =IF('Model Controls'!B8=0,"",'Model Controls'!B8) -> Household | C26: =(SUMIF(January!$C$5:'January'!$C$151,$B26,January!$D$5:'January'!$D$151)+SUMIF(January!$C$5:'January'!$C$151,$B26,January!$G$5:'January'!$G$151)+SUMIF(January!$C$5:'January'!$C$151,$B26,January!$H$5:'January'!$H$151)) -> 10 | D26: =(SUMIF(February!$C$5:'February'!$C$150,$B26,February!$D$5:'February'!$D$150)+SUMIF(February!$C$5:'February'!$C$150,$B26,February!$G$5:'February'!$G$150)+SUMIF(February!$C$5:'February'!$C$150,$B26,February!$H$5:'February'!$H$150)) -> 27.59 | E26: =SUMIF(March!$C$5:$C$151,$B26,March!$D$5:$D$151)+SUMIF(March!$C$5:$C$151,$B26,March!$G$5:$G$151)+SUMIF(March!$C$5:$C$151,$B26,March!$H$5:$H$151) -> 15 | F26: =(SUMIF(April!$C$5:'April'!$C$151,$B26,April!$D$5:'April'!$D$151)+SUMIF(April!$C$5:'April'!$C$151,$B26,April!$G$5:'April'!$G$151)+SUMIF(April!$C$5:'April'!$C$151,$B26,April!$H$5:'April'!$H$151)) -> 7.04 | G26: =(SUMIF(May!$C$5:'May'!$C$151,$B26,May!$D$5:'May'!$D$151)+SUMIF(May!$C$5:'May'!$C$151,$B26,May!$G$5:'May'!$G$151)+SUMIF(May!$C$5:'May'!$C$151,$B26,May!$H$5:'May'!$H$151)) -> 0 | H26: =(SUMIF(June!$C$5:'June'!$C$151,$B26,June!$D$5:'June'!$D$151)+SUMIF(June!$C$5:'June'!$C$151,$B26,June!$G$5:'June'!$G$151)+SUMIF(June!$C$5:'June'!$C$151,$B26,June!$H$5:'June'!$H$151)) -> 0 | I26: =(SUMIF(July!$C$5:'July'!$C$150,$B26,July!$D$5:'July'!$D$150)+SUMIF(July!$C$5:'July'!$C$150,$B26,July!$G$5:'July'!$G$150)+SUMIF(July!$C$5:'July'!$C$150,$B26,July!$H$5:'July'!$H$150)) -> 0 | J26: =(SUMIF(August!$C$5:'August'!$C$149,$B26,August!$D$5:'August'!$D$149)+SUMIF(August!$C$5:'August'!$C$149,$B26,August!$G$5:'August'!$G$149)+SUMIF(August!$C$5:'August'!$C$149,$B26,August!$H$5:'August'!$H$149)) -> 0 | K26: =(SUMIF(September!$C$5:'September'!$C$153,$B26,September!$D$5:'September'!$D$153)+SUMIF(September!$C$5:'September'!$C$153,$B26,September!$G$5:'September'!$G$153)+SUMIF(September!$C$5:'September'!$C$153,$B26,September!$H$5:'September'!$H$153)) -> 0 | L26: =(SUMIF(October!$C$5:'October'!$C$153,$B26,October!$D$5:'October'!$D$153)+SUMIF(October!$C$5:'October'!$C$153,$B26,October!$G$5:'October'!$G$153)+SUMIF(October!$C$5:'October'!$C$153,$B26,October!$H$5:'October'!$H$153)) -> 0 | M26: =(SUMIF(November!$C$5:'November'!$C$149,$B26,November!$D$5:'November'!$D$149)+SUMIF(November!$C$5:'November'!$C$149,$B26,November!$G$5:'November'!$G$149)+SUMIF(November!$C$5:'November'!$C$149,$B26,November!$H$5:'November'!$H$149)) -> 0 | N26: =(SUMIF(December!$C$5:'December'!$C$151,$B26,December!$D$5:'December'!$D$151)+SUMIF(December!$C$5:'December'!$C$151,$B26,December!$G$5:'December'!$G$151)+SUMIF(December!$C$5:'December'!$C$151,$B26,December!$H$5:'December'!$H$151)) -> 0 | O26: 59.63
B27: =IF('Model Controls'!B9=0,"",'Model Controls'!B9) -> Medical | C27: =(SUMIF(January!$C$5:'January'!$C$151,$B27,January!$D$5:'January'!$D$151)+SUMIF(January!$C$5:'January'!$C$151,$B27,January!$G$5:'January'!$G$151)+SUMIF(January!$C$5:'January'!$C$151,$B27,January!$H$5:'January'!$H$151)) -> 49.79 | D27: =(SUMIF(February!$C$5:'February'!$C$150,$B27,February!$D$5:'February'!$D$150)+SUMIF(February!$C$5:'February'!$C$150,$B27,February!$G$5:'February'!$G$150)+SUMIF(February!$C$5:'February'!$C$150,$B27,February!$H$5:'February'!$H$150)) -> 110.24 | E27: =SUMIF(March!$C$5:$C$151,$B27,March!$D$5:$D$151)+SUMIF(March!$C$5:$C$151,$B27,March!$G$5:$G$151)+SUMIF(March!$C$5:$C$151,$B27,March!$H$5:$H$151) -> 14.04 | F27: =(SUMIF(April!$C$5:'April'!$C$151,$B27,April!$D$5:'April'!$D$151)+SUMIF(April!$C$5:'April'!$C$151,$B27,April!$G$5:'April'!$G$151)+SUMIF(April!$C$5:'April'!$C$151,$B27,April!$H$5:'April'!$H$151)) -> 9.31 | G27: =(SUMIF(May!$C$5:'May'!$C$151,$B27,May!$D$5:'May'!$D$151)+SUMIF(May!$C$5:'May'!$C$151,$B27,May!$G$5:'May'!$G$151)+SUMIF(May!$C$5:'May'!$C$151,$B27,May!$H$5:'May'!$H$151)) -> 0 | H27: =(SUMIF(June!$C$5:'June'!$C$151,$B27,June!$D$5:'June'!$D$151)+SUMIF(June!$C$5:'June'!$C$151,$B27,June!$G$5:'June'!$G$151)+SUMIF(June!$C$5:'June'!$C$151,$B27,June!$H$5:'June'!$H$151)) -> 0 | I27: =(SUMIF(July!$C$5:'July'!$C$150,$B27,July!$D$5:'July'!$D$150)+SUMIF(July!$C$5:'July'!$C$150,$B27,July!$G$5:'July'!$G$150)+SUMIF(July!$C$5:'July'!$C$150,$B27,July!$H$5:'July'!$H$150)) -> 0 | J27: =(SUMIF(August!$C$5:'August'!$C$149,$B27,August!$D$5:'August'!$D$149)+SUMIF(August!$C$5:'August'!$C$149,$B27,August!$G$5:'August'!$G$149)+SUMIF(August!$C$5:'August'!$C$149,$B27,August!$H$5:'August'!$H$149)) -> 0 | K27: =(SUMIF(September!$C$5:'September'!$C$153,$B27,September!$D$5:'September'!$D$153)+SUMIF(September!$C$5:'September'!$C$153,$B27,September!$G$5:'September'!$G$153)+SUMIF(September!$C$5:'September'!$C$153,$B27,September!$H$5:'September'!$H$153)) -> 0 | L27: =(SUMIF(October!$C$5:'October'!$C$153,$B27,October!$D$5:'October'!$D$153)+SUMIF(October!$C$5:'October'!$C$153,$B27,October!$G$5:'October'!$G$153)+SUMIF(October!$C$5:'October'!$C$153,$B27,October!$H$5:'October'!$H$153)) -> 0 | M27: =(SUMIF(November!$C$5:'November'!$C$149,$B27,November!$D$5:'November'!$D$149)+SUMIF(November!$C$5:'November'!$C$149,$B27,November!$G$5:'November'!$G$149)+SUMIF(November!$C$5:'November'!$C$149,$B27,November!$H$5:'November'!$H$149)) -> 0 | N27: =(SUMIF(December!$C$5:'December'!$C$151,$B27,December!$D$5:'December'!$D$151)+SUMIF(December!$C$5:'December'!$C$151,$B27,December!$G$5:'December'!$G$151)+SUMIF(December!$C$5:'December'!$C$151,$B27,December!$H$5:'December'!$H$151)) -> 0 | O27: 183.38
B28: =IF('Model Controls'!B10=0,"",'Model Controls'!B10) -> Misc | C28: =(SUMIF(January!$C$5:'January'!$C$151,$B28,January!$D$5:'January'!$D$151)+SUMIF(January!$C$5:'January'!$C$151,$B28,January!$G$5:'January'!$G$151)+SUMIF(January!$C$5:'January'!$C$151,$B28,January!$H$5:'January'!$H$151)) -> 111.63 | D28: =(SUMIF(February!$C$5:'February'!$C$150,$B28,February!$D$5:'February'!$D$150)+SUMIF(February!$C$5:'February'!$C$150,$B28,February!$G$5:'February'!$G$150)+SUMIF(February!$C$5:'February'!$C$150,$B28,February!$H$5:'February'!$H$150)) -> 335.97 | E28: =SUMIF(March!$C$5:$C$151,$B28,March!$D$5:$D$151)+SUMIF(March!$C$5:$C$151,$B28,March!$G$5:$G$151)+SUMIF(March!$C$5:$C$151,$B28,March!$H$5:$H$151) -> 44.54 | F28: =(SUMIF(April!$C$5:'April'!$C$151,$B28,April!$D$5:'April'!$D$151)+SUMIF(April!$C$5:'April'!$C$151,$B28,April!$G$5:'April'!$G$151)+SUMIF(April!$C$5:'April'!$C$151,$B28,April!$H$5:'April'!$H$151)) -> 107.34 | G28: =(SUMIF(May!$C$5:'May'!$C$151,$B28,May!$D$5:'May'!$D$151)+SUMIF(May!$C$5:'May'!$C$151,$B28,May!$G$5:'May'!$G$151)+SUMIF(May!$C$5:'May'!$C$151,$B28,May!$H$5:'May'!$H$151)) -> 0 | H28: =(SUMIF(June!$C$5:'June'!$C$151,$B28,June!$D$5:'June'!$D$151)+SUMIF(June!$C$5:'June'!$C$151,$B28,June!$G$5:'June'!$G$151)+SUMIF(June!$C$5:'June'!$C$151,$B28,June!$H$5:'June'!$H$151)) -> 0 | I28: =(SUMIF(July!$C$5:'July'!$C$150,$B28,July!$D$5:'July'!$D$150)+SUMIF(July!$C$5:'July'!$C$150,$B28,July!$G$5:'July'!$G$150)+SUMIF(July!$C$5:'July'!$C$150,$B28,July!$H$5:'July'!$H$150)) -> 0 | J28: =(SUMIF(August!$C$5:'August'!$C$149,$B28,August!$D$5:'August'!$D$149)+SUMIF(August!$C$5:'August'!$C$149,$B28,August!$G$5:'August'!$G$149)+SUMIF(August!$C$5:'August'!$C$149,$B28,August!$H$5:'August'!$H$149)) -> 0 | K28: =(SUMIF(September!$C$5:'September'!$C$153,$B28,September!$D$5:'September'!$D$153)+SUMIF(September!$C$5:'September'!$C$153,$B28,September!$G$5:'September'!$G$153)+SUMIF(September!$C$5:'September'!$C$153,$B28,September!$H$5:'September'!$H$153)) -> 0 | L28: =(SUMIF(October!$C$5:'October'!$C$153,$B28,October!$D$5:'October'!$D$153)+SUMIF(October!$C$5:'October'!$C$153,$B28,October!$G$5:'October'!$G$153)+SUMIF(October!$C$5:'October'!$C$153,$B28,October!$H$5:'October'!$H$153)) -> 0 | M28: =(SUMIF(November!$C$5:'November'!$C$149,$B28,November!$D$5:'November'!$D$149)+SUMIF(November!$C$5:'November'!$C$149,$B28,November!$G$5:'November'!$G$149)+SUMIF(November!$C$5:'November'!$C$149,$B28,November!$H$5:'November'!$H$149)) -> 0 | N28: =(SUMIF(December!$C$5:'December'!$C$151,$B28,December!$D$5:'December'!$D$151)+SUMIF(December!$C$5:'December'!$C$151,$B28,December!$G$5:'December'!$G$151)+SUMIF(December!$C$5:'December'!$C$151,$B28,December!$H$5:'December'!$H$151)) -> 0 | O28: 599.48
B29: =IF('Model Controls'!B11=0,"",'Model Controls'!B11) -> Phone | C29: =(SUMIF(January!$C$5:'January'!$C$151,$B29,January!$D$5:'January'!$D$151)+SUMIF(January!$C$5:'January'!$C$151,$B29,January!$G$5:'January'!$G$151)+SUMIF(January!$C$5:'January'!$C$151,$B29,January!$H$5:'January'!$H$151)) -> 140.57 | D29: =(SUMIF(February!$C$5:'February'!$C$150,$B29,February!$D$5:'February'!$D$150)+SUMIF(February!$C$5:'February'!$C$150,$B29,February!$G$5:'February'!$G$150)+SUMIF(February!$C$5:'February'!$C$150,$B29,February!$H$5:'February'!$H$150)) -> 140.57 | E29: =SUMIF(March!$C$5:$C$151,$B29,March!$D$5:$D$151)+SUMIF(March!$C$5:$C$151,$B29,March!$G$5:$G$151)+SUMIF(March!$C$5:$C$151,$B29,March!$H$5:$H$151) -> 140.57 | F29: =(SUMIF(April!$C$5:'April'!$C$151,$B29,April!$D$5:'April'!$D$151)+SUMIF(April!$C$5:'April'!$C$151,$B29,April!$G$5:'April'!$G$151)+SUMIF(April!$C$5:'April'!$C$151,$B29,April!$H$5:'April'!$H$151)) -> 0 | G29: =(SUMIF(May!$C$5:'May'!$C$151,$B29,May!$D$5:'May'!$D$151)+SUMIF(May!$C$5:'May'!$C$151,$B29,May!$G$5:'May'!$G$151)+SUMIF(May!$C$5:'May'!$C$151,$B29,May!$H$5:'May'!$H$151)) -> 0 | H29: =(SUMIF(June!$C$5:'June'!$C$151,$B29,June!$D$5:'June'!$D$151)+SUMIF(June!$C$5:'June'!$C$151,$B29,June!$G$5:'June'!$G$151)+SUMIF(June!$C$5:'June'!$C$151,$B29,June!$H$5:'June'!$H$151)) -> 0 | I29: =(SUMIF(July!$C$5:'July'!$C$150,$B29,July!$D$5:'July'!$D$150)+SUMIF(July!$C$5:'July'!$C$150,$B29,July!$G$5:'July'!$G$150)+SUMIF(July!$C$5:'July'!$C$150,$B29,July!$H$5:'July'!$H$150)) -> 0 | J29: =(SUMIF(August!$C$5:'August'!$C$149,$B29,August!$D$5:'August'!$D$149)+SUMIF(August!$C$5:'August'!$C$149,$B29,August!$G$5:'August'!$G$149)+SUMIF(August!$C$5:'August'!$C$149,$B29,August!$H$5:'August'!$H$149)) -> 0 | K29: =(SUMIF(September!$C$5:'September'!$C$153,$B29,September!$D$5:'September'!$D$153)+SUMIF(September!$C$5:'September'!$C$153,$B29,September!$G$5:'September'!$G$153)+SUMIF(September!$C$5:'September'!$C$153,$B29,September!$H$5:'September'!$H$153)) -> 0 | L29: =(SUMIF(October!$C$5:'October'!$C$153,$B29,October!$D$5:'October'!$D$153)+SUMIF(October!$C$5:'October'!$C$153,$B29,October!$G$5:'October'!$G$153)+SUMIF(October!$C$5:'October'!$C$153,$B29,October!$H$5:'October'!$H$153)) -> 0 | M29: =(SUMIF(November!$C$5:'November'!$C$149,$B29,November!$D$5:'November'!$D$149)+SUMIF(November!$C$5:'November'!$C$149,$B29,November!$G$5:'November'!$G$149)+SUMIF(November!$C$5:'November'!$C$149,$B29,November!$H$5:'November'!$H$149)) -> 0 | N29: =(SUMIF(December!$C$5:'December'!$C$151,$B29,December!$D$5:'December'!$D$151)+SUMIF(December!$C$5:'December'!$C$151,$B29,December!$G$5:'December'!$G$151)+SUMIF(December!$C$5:'December'!$C$151,$B29,December!$H$5:'December'!$H$151)) -> 0 | O29: 421.71
B30: =IF('Model Controls'!B12=0,"",'Model Controls'!B12) -> Rent | C30: =(SUMIF(January!$C$5:'January'!$C$151,$B30,January!$D$5:'January'!$D$151)+SUMIF(January!$C$5:'January'!$C$151,$B30,January!$G$5:'January'!$G$151)+SUMIF(January!$C$5:'January'!$C$151,$B30,January!$H$5:'January'!$H$151)) -> 577 | D30: =(SUMIF(February!$C$5:'February'!$C$150,$B30,February!$D$5:'February'!$D$150)+SUMIF(February!$C$5:'February'!$C$150,$B30,February!$G$5:'February'!$G$150)+SUMIF(February!$C$5:'February'!$C$150,$B30,February!$H$5:'February'!$H$150)) -> 745 | E30: =SUMIF(March!$C$5:$C$151,$B30,March!$D$5:$D$151)+SUMIF(March!$C$5:$C$151,$B30,March!$G$5:$G$151)+SUMIF(March!$C$5:$C$151,$B30,March!$H$5:$H$151) -> 745 | F30: =(SUMIF(April!$C$5:'April'!$C$151,$B30,April!$D$5:'April'!$D$151)+SUMIF(April!$C$5:'April'!$C$151,$B30,April!$G$5:'April'!$G$151)+SUMIF(April!$C$5:'April'!$C$151,$B30,April!$H$5:'April'!$H$151)) -> 745 | G30: =(SUMIF(May!$C$5:'May'!$C$151,$B30,May!$D$5:'May'!$D$151)+SUMIF(May!$C$5:'May'!$C$151,$B30,May!$G$5:'May'!$G$151)+SUMIF(May!$C$5:'May'!$C$151,$B30,May!$H$5:'May'!$H$151)) -> 0 | H30: =(SUMIF(June!$C$5:'June'!$C$151,$B30,June!$D$5:'June'!$D$151)+SUMIF(June!$C$5:'June'!$C$151,$B30,June!$G$5:'June'!$G$151)+SUMIF(June!$C$5:'June'!$C$151,$B30,June!$H$5:'June'!$H$151)) -> 0 | I30: =(SUMIF(July!$C$5:'July'!$C$150,$B30,July!$D$5:'July'!$D$150)+SUMIF(July!$C$5:'July'!$C$150,$B30,July!$G$5:'July'!$G$150)+SUMIF(July!$C$5:'July'!$C$150,$B30,July!$H$5:'July'!$H$150)) -> 0 | J30: =(SUMIF(August!$C$5:'August'!$C$149,$B30,August!$D$5:'August'!$D$149)+SUMIF(August!$C$5:'August'!$C$149,$B30,August!$G$5:'August'!$G$149)+SUMIF(August!$C$5:'August'!$C$149,$B30,August!$H$5:'August'!$H$149)) -> 0 | K30: =(SUMIF(September!$C$5:'September'!$C$153,$B30,September!$D$5:'September'!$D$153)+SUMIF(September!$C$5:'September'!$C$153,$B30,September!$G$5:'September'!$G$153)+SUMIF(September!$C$5:'September'!$C$153,$B30,September!$H$5:'September'!$H$153)) -> 0 | L30: =(SUMIF(October!$C$5:'October'!$C$153,$B30,October!$D$5:'October'!$D$153)+SUMIF(October!$C$5:'October'!$C$153,$B30,October!$G$5:'October'!$G$153)+SUMIF(October!$C$5:'October'!$C$153,$B30,October!$H$5:'October'!$H$153)) -> 0 | M30: =(SUMIF(November!$C$5:'November'!$C$149,$B30,November!$D$5:'November'!$D$149)+SUMIF(November!$C$5:'November'!$C$149,$B30,November!$G$5:'November'!$G$149)+SUMIF(November!$C$5:'November'!$C$149,$B30,November!$H$5:'November'!$H$149)) -> 0 | N30: =(SUMIF(December!$C$5:'December'!$C$151,$B30,December!$D$5:'December'!$D$151)+SUMIF(December!$C$5:'December'!$C$151,$B30,December!$G$5:'December'!$G$151)+SUMIF(December!$C$5:'December'!$C$151,$B30,December!$H$5:'December'!$H$151)) -> 0 | O30: 2812
B31: =IF('Model Controls'!B13=0,"",'Model Controls'!B13) -> School | C31: =(SUMIF(January!$C$5:'January'!$C$151,$B31,January!$D$5:'January'!$D$151)+SUMIF(January!$C$5:'January'!$C$151,$B31,January!$G$5:'January'!$G$151)+SUMIF(January!$C$5:'January'!$C$151,$B31,January!$H$5:'January'!$H$151)) -> 73.41 | D31: =(SUMIF(February!$C$5:'February'!$C$150,$B31,February!$D$5:'February'!$D$150)+SUMIF(February!$C$5:'February'!$C$150,$B31,February!$G$5:'February'!$G$150)+SUMIF(February!$C$5:'February'!$C$150,$B31,February!$H$5:'February'!$H$150)) -> 3.97 | E31: =SUMIF(March!$C$5:$C$151,$B31,March!$D$5:$D$151)+SUMIF(March!$C$5:$C$151,$B31,March!$G$5:$G$151)+SUMIF(March!$C$5:$C$151,$B31,March!$H$5:$H$151) -> 133.8 | F31: =(SUMIF(April!$C$5:'April'!$C$151,$B31,April!$D$5:'April'!$D$151)+SUMIF(April!$C$5:'April'!$C$151,$B31,April!$G$5:'April'!$G$151)+SUMIF(April!$C$5:'April'!$C$151,$B31,April!$H$5:'April'!$H$151)) -> 0 | G31: =(SUMIF(May!$C$5:'May'!$C$151,$B31,May!$D$5:'May'!$D$151)+SUMIF(May!$C$5:'May'!$C$151,$B31,May!$G$5:'May'!$G$151)+SUMIF(May!$C$5:'May'!$C$151,$B31,May!$H$5:'May'!$H$151)) -> 0 | H31: =(SUMIF(June!$C$5:'June'!$C$151,$B31,June!$D$5:'June'!$D$151)+SUMIF(June!$C$5:'June'!$C$151,$B31,June!$G$5:'June'!$G$151)+SUMIF(June!$C$5:'June'!$C$151,$B31,June!$H$5:'June'!$H$151)) -> 0 | I31: =(SUMIF(July!$C$5:'July'!$C$150,$B31,July!$D$5:'July'!$D$150)+SUMIF(July!$C$5:'July'!$C$150,$B31,July!$G$5:'July'!$G$150)+SUMIF(July!$C$5:'July'!$C$150,$B31,July!$H$5:'July'!$H$150)) -> 0 | J31: =(SUMIF(August!$C$5:'August'!$C$149,$B31,August!$D$5:'August'!$D$149)+SUMIF(August!$C$5:'August'!$C$149,$B31,August!$G$5:'August'!$G$149)+SUMIF(August!$C$5:'August'!$C$149,$B31,August!$H$5:'August'!$H$149)) -> 0 | K31: =(SUMIF(September!$C$5:'September'!$C$153,$B31,September!$D$5:'September'!$D$153)+SUMIF(September!$C$5:'September'!$C$153,$B31,September!$G$5:'September'!$G$153)+SUMIF(September!$C$5:'September'!$C$153,$B31,September!$H$5:'September'!$H$153)) -> 0 | L31: =(SUMIF(October!$C$5:'October'!$C$153,$B31,October!$D$5:'October'!$D$153)+SUMIF(October!$C$5:'October'!$C$153,$B31,October!$G$5:'October'!$G$153)+SUMIF(October!$C$5:'October'!$C$153,$B31,October!$H$5:'October'!$H$153)) -> 0 | M31: =(SUMIF(November!$C$5:'November'!$C$149,$B31,November!$D$5:'November'!$D$149)+SUMIF(November!$C$5:'November'!$C$149,$B31,November!$G$5:'November'!$G$149)+SUMIF(November!$C$5:'November'!$C$149,$B31,November!$H$5:'November'!$H$149)) -> 0 | N31: =(SUMIF(December!$C$5:'December'!$C$151,$B31,December!$D$5:'December'!$D$151)+SUMIF(December!$C$5:'December'!$C$151,$B31,December!$G$5:'December'!$G$151)+SUMIF(December!$C$5:'December'!$C$151,$B31,December!$H$5:'December'!$H$151)) -> 0 | O31: 211.18
B32: =IF('Model Controls'!B14=0,"",'Model Controls'!B14) -> Transportation | C32: =(SUMIF(January!$C$5:'January'!$C$151,$B32,January!$D$5:'January'!$D$151)+SUMIF(January!$C$5:'January'!$C$151,$B32,January!$G$5:'January'!$G$151)+SUMIF(January!$C$5:'January'!$C$151,$B32,January!$H$5:'January'!$H$151)) -> 114.17 | D32: =(SUMIF(February!$C$5:'February'!$C$150,$B32,February!$D$5:'February'!$D$150)+SUMIF(February!$C$5:'February'!$C$150,$B32,February!$G$5:'February'!$G$150)+SUMIF(February!$C$5:'February'!$C$150,$B32,February!$H$5:'February'!$H$150)) -> 115.28 | E32: =SUMIF(March!$C$5:$C$151,$B32,March!$D$5:$D$151)+SUMIF(March!$C$5:$C$151,$B32,March!$G$5:$G$151)+SUMIF(March!$C$5:$C$151,$B32,March!$H$5:$H$151) -> 51 | F32: =(SUMIF(April!$C$5:'April'!$C$151,$B32,April!$D$5:'April'!$D$151)+SUMIF(April!$C$5:'April'!$C$151,$B32,April!$G$5:'April'!$G$151)+SUMIF(April!$C$5:'April'!$C$151,$B32,April!$H$5:'April'!$H$151)) -> 31.15 | G32: =(SUMIF(May!$C$5:'May'!$C$151,$B32,May!$D$5:'May'!$D$151)+SUMIF(May!$C$5:'May'!$C$151,$B32,May!$G$5:'May'!$G$151)+SUMIF(May!$C$5:'May'!$C$151,$B32,May!$H$5:'May'!$H$151)) -> 0 | H32: =(SUMIF(June!$C$5:'June'!$C$151,$B32,June!$D$5:'June'!$D$151)+SUMIF(June!$C$5:'June'!$C$151,$B32,June!$G$5:'June'!$G$151)+SUMIF(June!$C$5:'June'!$C$151,$B32,June!$H$5:'June'!$H$151)) -> 0 | I32: =(SUMIF(July!$C$5:'July'!$C$150,$B32,July!$D$5:'July'!$D$150)+SUMIF(July!$C$5:'July'!$C$150,$B32,July!$G$5:'July'!$G$150)+SUMIF(July!$C$5:'July'!$C$150,$B32,July!$H$5:'July'!$H$150)) -> 0 | J32: =(SUMIF(August!$C$5:'August'!$C$149,$B32,August!$D$5:'August'!$D$149)+SUMIF(August!$C$5:'August'!$C$149,$B32,August!$G$5:'August'!$G$149)+SUMIF(August!$C$5:'August'!$C$149,$B32,August!$H$5:'August'!$H$149)) -> 0 | K32: =(SUMIF(September!$C$5:'September'!$C$153,$B32,September!$D$5:'September'!$D$153)+SUMIF(September!$C$5:'September'!$C$153,$B32,September!$G$5:'September'!$G$153)+SUMIF(September!$C$5:'September'!$C$153,$B32,September!$H$5:'September'!$H$153)) -> 0 | L32: =(SUMIF(October!$C$5:'October'!$C$153,$B32,October!$D$5:'October'!$D$153)+SUMIF(October!$C$5:'October'!$C$153,$B32,October!$G$5:'October'!$G$153)+SUMIF(October!$C$5:'October'!$C$153,$B32,October!$H$5:'October'!$H$153)) -> 0 | M32: =(SUMIF(November!$C$5:'November'!$C$149,$B32,November!$D$5:'November'!$D$149)+SUMIF(November!$C$5:'November'!$C$149,$B32,November!$G$5:'November'!$G$149)+SUMIF(November!$C$5:'November'!$C$149,$B32,November!$H$5:'November'!$H$149)) -> 0 | N32: =(SUMIF(December!$C$5:'December'!$C$151,$B32,December!$D$5:'December'!$D$151)+SUMIF(December!$C$5:'December'!$C$151,$B32,December!$G$5:'December'!$G$151)+SUMIF(December!$C$5:'December'!$C$151,$B32,December!$H$5:'December'!$H$151)) -> 0 | O32: 311.6
B33: =IF('Model Controls'!B15=0,"",'Model Controls'!B15) -> Travel | C33: =(SUMIF(January!$C$5:'January'!$C$151,$B33,January!$D$5:'January'!$D$151)+SUMIF(January!$C$5:'January'!$C$151,$B33,January!$G$5:'January'!$G$151)+SUMIF(January!$C$5:'January'!$C$151,$B33,January!$H$5:'January'!$H$151)) -> 0 | D33: =(SUMIF(February!$C$5:'February'!$C$150,$B33,February!$D$5:'February'!$D$150)+SUMIF(February!$C$5:'February'!$C$150,$B33,February!$G$5:'February'!$G$150)+SUMIF(February!$C$5:'February'!$C$150,$B33,February!$H$5:'February'!$H$150)) -> 0 | E33: =SUMIF(March!$C$5:$C$151,$B33,March!$D$5:$D$151)+SUMIF(March!$C$5:$C$151,$B33,March!$G$5:$G$151)+SUMIF(March!$C$5:$C$151,$B33,March!$H$5:$H$151) -> 0 | F33: =(SUMIF(April!$C$5:'April'!$C$151,$B33,April!$D$5:'April'!$D$151)+SUMIF(April!$C$5:'April'!$C$151,$B33,April!$G$5:'April'!$G$151)+SUMIF(April!$C$5:'April'!$C$151,$B33,April!$H$5:'April'!$H$151)) -> 0 | G33: =(SUMIF(May!$C$5:'May'!$C$151,$B33,May!$D$5:'May'!$D$151)+SUMIF(May!$C$5:'May'!$C$151,$B33,May!$G$5:'May'!$G$151)+SUMIF(May!$C$5:'May'!$C$151,$B33,May!$H$5:'May'!$H$151)) -> 0 | H33: =(SUMIF(June!$C$5:'June'!$C$151,$B33,June!$D$5:'June'!$D$151)+SUMIF(June!$C$5:'June'!$C$151,$B33,June!$G$5:'June'!$G$151)+SUMIF(June!$C$5:'June'!$C$151,$B33,June!$H$5:'June'!$H$151)) -> 0 | I33: =(SUMIF(July!$C$5:'July'!$C$150,$B33,July!$D$5:'July'!$D$150)+SUMIF(July!$C$5:'July'!$C$150,$B33,July!$G$5:'July'!$G$150)+SUMIF(July!$C$5:'July'!$C$150,$B33,July!$H$5:'July'!$H$150)) -> 0 | J33: =(SUMIF(August!$C$5:'August'!$C$149,$B33,August!$D$5:'August'!$D$149)+SUMIF(August!$C$5:'August'!$C$149,$B33,August!$G$5:'August'!$G$149)+SUMIF(August!$C$5:'August'!$C$149,$B33,August!$H$5:'August'!$H$149)) -> 0 | K33: =(SUMIF(September!$C$5:'September'!$C$153,$B33,September!$D$5:'September'!$D$153)+SUMIF(September!$C$5:'September'!$C$153,$B33,September!$G$5:'September'!$G$153)+SUMIF(September!$C$5:'September'!$C$153,$B33,September!$H$5:'September'!$H$153)) -> 0 | L33: =(SUMIF(October!$C$5:'October'!$C$153,$B33,October!$D$5:'October'!$D$153)+SUMIF(October!$C$5:'October'!$C$153,$B33,October!$G$5:'October'!$G$153)+SUMIF(October!$C$5:'October'!$C$153,$B33,October!$H$5:'October'!$H$153)) -> 0 | M33: =(SUMIF(November!$C$5:'November'!$C$149,$B33,November!$D$5:'November'!$D$149)+SUMIF(November!$C$5:'November'!$C$149,$B33,November!$G$5:'November'!$G$149)+SUMIF(November!$C$5:'November'!$C$149,$B33,November!$H$5:'November'!$H$149)) -> 0 | N33: =(SUMIF(December!$C$5:'December'!$C$151,$B33,December!$D$5:'December'!$D$151)+SUMIF(December!$C$5:'December'!$C$151,$B33,December!$G$5:'December'!$G$151)+SUMIF(December!$C$5:'December'!$C$151,$B33,December!$H$5:'December'!$H$151)) -> 0 | O33: 0
B34: =IF('Model Controls'!B16=0,"",'Model Controls'!B16) -> Utilities | C34: =(SUMIF(January!$C$5:'January'!$C$151,$B34,January!$D$5:'January'!$D$151)+SUMIF(January!$C$5:'January'!$C$151,$B34,January!$G$5:'January'!$G$151)+SUMIF(January!$C$5:'January'!$C$151,$B34,January!$H$5:'January'!$H$151)) -> 26.45 | D34: =(SUMIF(February!$C$5:'February'!$C$150,$B34,February!$D$5:'February'!$D$150)+SUMIF(February!$C$5:'February'!$C$150,$B34,February!$G$5:'February'!$G$150)+SUMIF(February!$C$5:'February'!$C$150,$B34,February!$H$5:'February'!$H$150)) -> 30.45 | E34: =SUMIF(March!$C$5:$C$151,$B34,March!$D$5:$D$151)+SUMIF(March!$C$5:$C$151,$B34,March!$G$5:$G$151)+SUMIF(March!$C$5:$C$151,$B34,March!$H$5:$H$151) -> 26.63 | F34: =(SUMIF(April!$C$5:'April'!$C$151,$B34,April!$D$5:'April'!$D$151)+SUMIF(April!$C$5:'April'!$C$151,$B34,April!$G$5:'April'!$G$151)+SUMIF(April!$C$5:'April'!$C$151,$B34,April!$H$5:'April'!$H$151)) -> 0 | G34: =(SUMIF(May!$C$5:'May'!$C$151,$B34,May!$D$5:'May'!$D$151)+SUMIF(May!$C$5:'May'!$C$151,$B34,May!$G$5:'May'!$G$151)+SUMIF(May!$C$5:'May'!$C$151,$B34,May!$H$5:'May'!$H$151)) -> 0 | H34: =(SUMIF(June!$C$5:'June'!$C$151,$B34,June!$D$5:'June'!$D$151)+SUMIF(June!$C$5:'June'!$C$151,$B34,June!$G$5:'June'!$G$151)+SUMIF(June!$C$5:'June'!$C$151,$B34,June!$H$5:'June'!$H$151)) -> 0 | I34: =(SUMIF(July!$C$5:'July'!$C$150,$B34,July!$D$5:'July'!$D$150)+SUMIF(July!$C$5:'July'!$C$150,$B34,July!$G$5:'July'!$G$150)+SUMIF(July!$C$5:'July'!$C$150,$B34,July!$H$5:'July'!$H$150)) -> 0 | J34: =(SUMIF(August!$C$5:'August'!$C$149,$B34,August!$D$5:'August'!$D$149)+SUMIF(August!$C$5:'August'!$C$149,$B34,August!$G$5:'August'!$G$149)+SUMIF(August!$C$5:'August'!$C$149,$B34,August!$H$5:'August'!$H$149)) -> 0 | K34: =(SUMIF(September!$C$5:'September'!$C$153,$B34,September!$D$5:'September'!$D$153)+SUMIF(September!$C$5:'September'!$C$153,$B34,September!$G$5:'September'!$G$153)+SUMIF(September!$C$5:'September'!$C$153,$B34,September!$H$5:'September'!$H$153)) -> 0 | L34: =(SUMIF(October!$C$5:'October'!$C$153,$B34,October!$D$5:'October'!$D$153)+SUMIF(October!$C$5:'October'!$C$153,$B34,October!$G$5:'October'!$G$153)+SUMIF(October!$C$5:'October'!$C$153,$B34,October!$H$5:'October'!$H$153)) -> 0 | M34: =(SUMIF(November!$C$5:'November'!$C$149,$B34,November!$D$5:'November'!$D$149)+SUMIF(November!$C$5:'November'!$C$149,$B34,November!$G$5:'November'!$G$149)+SUMIF(November!$C$5:'November'!$C$149,$B34,November!$H$5:'November'!$H$149)) -> 0 | N34: =(SUMIF(December!$C$5:'December'!$C$151,$B34,December!$D$5:'December'!$D$151)+SUMIF(December!$C$5:'December'!$C$151,$B34,December!$G$5:'December'!$G$151)+SUMIF(December!$C$5:'December'!$C$151,$B34,December!$H$5:'December'!$H$151)) -> 0 | O34: 83.53
B35: =IF('Model Controls'!B17=0,"",'Model Controls'!B17) ->  | C35: =(SUMIF(January!$C$5:'January'!$C$151,$B35,January!$D$5:'January'!$D$151)+SUMIF(January!$C$5:'January'!$C$151,$B35,January!$G$5:'January'!$G$151)+SUMIF(January!$C$5:'January'!$C$151,$B35,January!$H$5:'January'!$H$151)) -> 0 | D35: =(SUMIF(February!$C$5:'February'!$C$150,$B35,February!$D$5:'February'!$D$150)+SUMIF(February!$C$5:'February'!$C$150,$B35,February!$G$5:'February'!$G$150)+SUMIF(February!$C$5:'February'!$C$150,$B35,February!$H$5:'February'!$H$150)) -> 0 | E35: =SUMIF(March!$C$5:$C$151,$B35,March!$D$5:$D$151)+SUMIF(March!$C$5:$C$151,$B35,March!$G$5:$G$151)+SUMIF(March!$C$5:$C$151,$B35,March!$H$5:$H$151) -> 0 | F35: =(SUMIF(April!$C$5:'April'!$C$151,$B35,April!$D$5:'April'!$D$151)+SUMIF(April!$C$5:'April'!$C$151,$B35,April!$G$5:'April'!$G$151)+SUMIF(April!$C$5:'April'!$C$151,$B35,April!$H$5:'April'!$H$151)) -> 0 | G35: =(SUMIF(May!$C$5:'May'!$C$151,$B35,May!$D$5:'May'!$D$151)+SUMIF(May!$C$5:'May'!$C$151,$B35,May!$G$5:'May'!$G$151)+SUMIF(May!$C$5:'May'!$C$151,$B35,May!$H$5:'May'!$H$151)) -> 0 | H35: =(SUMIF(June!$C$5:'June'!$C$151,$B35,June!$D$5:'June'!$D$151)+SUMIF(June!$C$5:'June'!$C$151,$B35,June!$G$5:'June'!$G$151)+SUMIF(June!$C$5:'June'!$C$151,$B35,June!$H$5:'June'!$H$151)) -> 0 | I35: =(SUMIF(July!$C$5:'July'!$C$150,$B35,July!$D$5:'July'!$D$150)+SUMIF(July!$C$5:'July'!$C$150,$B35,July!$G$5:'July'!$G$150)+SUMIF(July!$C$5:'July'!$C$150,$B35,July!$H$5:'July'!$H$150)) -> 0 | J35: =(SUMIF(August!$C$5:'August'!$C$149,$B35,August!$D$5:'August'!$D$149)+SUMIF(August!$C$5:'August'!$C$149,$B35,August!$G$5:'August'!$G$149)+SUMIF(August!$C$5:'August'!$C$149,$B35,August!$H$5:'August'!$H$149)) -> 0 | K35: =(SUMIF(September!$C$5:'September'!$C$153,$B35,September!$D$5:'September'!$D$153)+SUMIF(September!$C$5:'September'!$C$153,$B35,September!$G$5:'September'!$G$153)+SUMIF(September!$C$5:'September'!$C$153,$B35,September!$H$5:'September'!$H$153)) -> 0 | L35: =(SUMIF(October!$C$5:'October'!$C$153,$B35,October!$D$5:'October'!$D$153)+SUMIF(October!$C$5:'October'!$C$153,$B35,October!$G$5:'October'!$G$153)+SUMIF(October!$C$5:'October'!$C$153,$B35,October!$H$5:'October'!$H$153)) -> 0 | M35: =(SUMIF(November!$C$5:'November'!$C$149,$B35,November!$D$5:'November'!$D$149)+SUMIF(November!$C$5:'November'!$C$149,$B35,November!$G$5:'November'!$G$149)+SUMIF(November!$C$5:'November'!$C$149,$B35,November!$H$5:'November'!$H$149)) -> 0 | N35: =(SUMIF(December!$C$5:'December'!$C$151,$B35,December!$D$5:'December'!$D$151)+SUMIF(December!$C$5:'December'!$C$151,$B35,December!$G$5:'December'!$G$151)+SUMIF(December!$C$5:'December'!$C$151,$B35,December!$H$5:'December'!$H$151)) -> 0 | O35: =SUM(C35:N35) -> 0
B36: =IF('Model Controls'!B18=0,"",'Model Controls'!B18) ->  | C36: =(SUMIF(January!$C$5:'January'!$C$151,$B36,January!$D$5:'January'!$D$151)+SUMIF(January!$C$5:'January'!$C$151,$B36,January!$G$5:'January'!$G$151)+SUMIF(January!$C$5:'January'!$C$151,$B36,January!$H$5:'January'!$H$151)) -> 0 | D36: =(SUMIF(February!$C$5:'February'!$C$150,$B36,February!$D$5:'February'!$D$150)+SUMIF(February!$C$5:'February'!$C$150,$B36,February!$G$5:'February'!$G$150)+SUMIF(February!$C$5:'February'!$C$150,$B36,February!$H$5:'February'!$H$150)) -> 0 | E36: =SUMIF(March!$C$5:$C$151,$B36,March!$D$5:$D$151)+SUMIF(March!$C$5:$C$151,$B36,March!$G$5:$G$151)+SUMIF(March!$C$5:$C$151,$B36,March!$H$5:$H$151) -> 0 | F36: =(SUMIF(April!$C$5:'April'!$C$151,$B36,April!$D$5:'April'!$D$151)+SUMIF(April!$C$5:'April'!$C$151,$B36,April!$G$5:'April'!$G$151)+SUMIF(April!$C$5:'April'!$C$151,$B36,April!$H$5:'April'!$H$151)) -> 0 | G36: =(SUMIF(May!$C$5:'May'!$C$151,$B36,May!$D$5:'May'!$D$151)+SUMIF(May!$C$5:'May'!$C$151,$B36,May!$G$5:'May'!$G$151)+SUMIF(May!$C$5:'May'!$C$151,$B36,May!$H$5:'May'!$H$151)) -> 0 | H36: =(SUMIF(June!$C$5:'June'!$C$151,$B36,June!$D$5:'June'!$D$151)+SUMIF(June!$C$5:'June'!$C$151,$B36,June!$G$5:'June'!$G$151)+SUMIF(June!$C$5:'June'!$C$151,$B36,June!$H$5:'June'!$H$151)) -> 0 | I36: =(SUMIF(July!$C$5:'July'!$C$150,$B36,July!$D$5:'July'!$D$150)+SUMIF(July!$C$5:'July'!$C$150,$B36,July!$G$5:'July'!$G$150)+SUMIF(July!$C$5:'July'!$C$150,$B36,July!$H$5:'July'!$H$150)) -> 0 | J36: =(SUMIF(August!$C$5:'August'!$C$149,$B36,August!$D$5:'August'!$D$149)+SUMIF(August!$C$5:'August'!$C$149,$B36,August!$G$5:'August'!$G$149)+SUMIF(August!$C$5:'August'!$C$149,$B36,August!$H$5:'August'!$H$149)) -> 0 | K36: =(SUMIF(September!$C$5:'September'!$C$153,$B36,September!$D$5:'September'!$D$153)+SUMIF(September!$C$5:'September'!$C$153,$B36,September!$G$5:'September'!$G$153)+SUMIF(September!$C$5:'September'!$C$153,$B36,September!$H$5:'September'!$H$153)) -> 0 | L36: =(SUMIF(October!$C$5:'October'!$C$153,$B36,October!$D$5:'October'!$D$153)+SUMIF(October!$C$5:'October'!$C$153,$B36,October!$G$5:'October'!$G$153)+SUMIF(October!$C$5:'October'!$C$153,$B36,October!$H$5:'October'!$H$153)) -> 0 | M36: =(SUMIF(November!$C$5:'November'!$C$149,$B36,November!$D$5:'November'!$D$149)+SUMIF(November!$C$5:'November'!$C$149,$B36,November!$G$5:'November'!$G$149)+SUMIF(November!$C$5:'November'!$C$149,$B36,November!$H$5:'November'!$H$149)) -> 0 | N36: =(SUMIF(December!$C$5:'December'!$C$151,$B36,December!$D$5:'December'!$D$151)+SUMIF(December!$C$5:'December'!$C$151,$B36,December!$G$5:'December'!$G$151)+SUMIF(December!$C$5:'December'!$C$151,$B36,December!$H$5:'December'!$H$151)) -> 0 | O36: 0
B37: =IF('Model Controls'!B19=0,"",'Model Controls'!B19) ->  | C37: =(SUMIF(January!$C$5:'January'!$C$151,$B37,January!$D$5:'January'!$D$151)+SUMIF(January!$C$5:'January'!$C$151,$B37,January!$G$5:'January'!$G$151)+SUMIF(January!$C$5:'January'!$C$151,$B37,January!$H$5:'January'!$H$151)) -> 0 | D37: =(SUMIF(February!$C$5:'February'!$C$150,$B37,February!$D$5:'February'!$D$150)+SUMIF(February!$C$5:'February'!$C$150,$B37,February!$G$5:'February'!$G$150)+SUMIF(February!$C$5:'February'!$C$150,$B37,February!$H$5:'February'!$H$150)) -> 0 | E37: =SUMIF(March!$C$5:$C$151,$B37,March!$D$5:$D$151)+SUMIF(March!$C$5:$C$151,$B37,March!$G$5:$G$151)+SUMIF(March!$C$5:$C$151,$B37,March!$H$5:$H$151) -> 0 | F37: =(SUMIF(April!$C$5:'April'!$C$151,$B37,April!$D$5:'April'!$D$151)+SUMIF(April!$C$5:'April'!$C$151,$B37,April!$G$5:'April'!$G$151)+SUMIF(April!$C$5:'April'!$C$151,$B37,April!$H$5:'April'!$H$151)) -> 0 | G37: =(SUMIF(May!$C$5:'May'!$C$151,$B37,May!$D$5:'May'!$D$151)+SUMIF(May!$C$5:'May'!$C$151,$B37,May!$G$5:'May'!$G$151)+SUMIF(May!$C$5:'May'!$C$151,$B37,May!$H$5:'May'!$H$151)) -> 0 | H37: =(SUMIF(June!$C$5:'June'!$C$151,$B37,June!$D$5:'June'!$D$151)+SUMIF(June!$C$5:'June'!$C$151,$B37,June!$G$5:'June'!$G$151)+SUMIF(June!$C$5:'June'!$C$151,$B37,June!$H$5:'June'!$H$151)) -> 0 | I37: =(SUMIF(July!$C$5:'July'!$C$150,$B37,July!$D$5:'July'!$D$150)+SUMIF(July!$C$5:'July'!$C$150,$B37,July!$G$5:'July'!$G$150)+SUMIF(July!$C$5:'July'!$C$150,$B37,July!$H$5:'July'!$H$150)) -> 0 | J37: =(SUMIF(August!$C$5:'August'!$C$149,$B37,August!$D$5:'August'!$D$149)+SUMIF(August!$C$5:'August'!$C$149,$B37,August!$G$5:'August'!$G$149)+SUMIF(August!$C$5:'August'!$C$149,$B37,August!$H$5:'August'!$H$149)) -> 0 | K37: =(SUMIF(September!$C$5:'September'!$C$153,$B37,September!$D$5:'September'!$D$153)+SUMIF(September!$C$5:'September'!$C$153,$B37,September!$G$5:'September'!$G$153)+SUMIF(September!$C$5:'September'!$C$153,$B37,September!$H$5:'September'!$H$153)) -> 0 | L37: =(SUMIF(October!$C$5:'October'!$C$153,$B37,October!$D$5:'October'!$D$153)+SUMIF(October!$C$5:'October'!$C$153,$B37,October!$G$5:'October'!$G$153)+SUMIF(October!$C$5:'October'!$C$153,$B37,October!$H$5:'October'!$H$153)) -> 0 | M37: =(SUMIF(November!$C$5:'November'!$C$149,$B37,November!$D$5:'November'!$D$149)+SUMIF(November!$C$5:'November'!$C$149,$B37,November!$G$5:'November'!$G$149)+SUMIF(November!$C$5:'November'!$C$149,$B37,November!$H$5:'November'!$H$149)) -> 0 | N37: =(SUMIF(December!$C$5:'December'!$C$151,$B37,December!$D$5:'December'!$D$151)+SUMIF(December!$C$5:'December'!$C$151,$B37,December!$G$5:'December'!$G$151)+SUMIF(December!$C$5:'December'!$C$151,$B37,December!$H$5:'December'!$H$151)) -> 0 | O37: 0
B38: Total | C38: =SUM(C20:C34) -> 1996.422 | D38: =SUM(D20:D34) -> 2436.61 | E38: 2302.3 | F38: 1409.67 | G38: 0 | H38: 0 | I38: 0 | J38: 0 | K38: 0 | L38: 0 | M38: 0 | N38: 0 | O38: 8145.002
B39: Total w/o Tithing | C39: =C38-C20 -> 1647.47 | D39: =D38-D20 -> 2001.66 | E39: 1803.85 | F39: 1182.71 | G39: 0 | H39: 0 | I39: 0 | J39: 0 | K39: 0 | L39: 0 | M39: 0 | N39: 0 | O39: 6635.69

Sheet December (hidden)
A1: =January!A1 -> 2016 | O1: Current Balance
A2: INFORMATION | D2: CASH | G2: DEBT | I2: SAVINGS | L2: TOTAL | O2: ='Model Controls'!J2 -> Discover | P2: =SUM(G5:G253)+November!P2 -> 291.57
A3: Date | B3: Description | C3: Category | D3: Expense | E3: Income | F3: Available | G3: ='Model Controls'!J2 -> Discover | H3: ='Model Controls'!J3 -> Gesa | I3: Deposit | J3: Withdral | K3: IN BANK? | L3: Spending | M3: Savings | O3: ='Model Controls'!J3 -> Gesa | P3: =SUM(H5:H253)+September!P3 -> 0
A4: December
F5: =INDEX(November!$F$5:$F$151,COUNTA(November!$F$5:$F$151))-D5+E5 -> 3724.858 | L5: =INDEX(November!$L$5:$L$151,COUNTA(November!$L$5:$L$151))-G5-H5-D5+E5 -> 3433.288 | M5: =INDEX(November!$M$5:$M$151,COUNTA(November!$M$5:$M$151))-J5+I5 -> 9434
F6: =F5-D6+E6 -> 3724.858 | L6: =L5-G6-H6-D6+E6 -> 3433.288 | M6: =M5-J6+I6 -> 9434
F7: =F6-D7+E7 -> 3724.858 | L7: =L6-G7-H7-D7+E7 -> 3433.288 | M7: =M6-J7+I7 -> 9434
F8: 3724.858 | L8: 3433.288 | M8: 9434
F9: 3724.858 | L9: 3433.288 | M9: 9434
F10: 3724.858 | L10: 3433.288 | M10: 9434
F11: 3724.858 | L11: 3433.288 | M11: 9434
F12: 3724.858 | L12: 3433.288 | M12: 9434
F13: 3724.858 | L13: 3433.288 | M13: 9434
F14: 3724.858 | L14: 3433.288 | M14: 9434
F15: 3724.858 | L15: 3433.288 | M15: 9434
F16: 3724.858 | L16: 3433.288 | M16: 9434
F17: 3724.858 | L17: 3433.288 | M17: 9434
F18: 3724.858 | L18: 3433.288 | M18: 9434
F19: 3724.858 | L19: 3433.288 | M19: 9434
F20: 3724.858 | L20: 3433.288 | M20: 9434
F21: 3724.858 | L21: 3433.288 | M21: 9434
F22: 3724.858 | L22: 3433.288 | M22: 9434
F23: 3724.858 | L23: 3433.288 | M23: 9434
F24: 3724.858 | L24: 3433.288 | M24: 9434
F25: 3724.858 | L25: 3433.288 | M25: 9434
F26: 3724.858 | L26: 3433.288 | M26: 9434
F27: 3724.858 | L27: 3433.288 | M27: 9434
F28: 3724.858 | L28: 3433.288 | M28: 9434
F29: 3724.858 | L29: 3433.288 | M29: 9434
F30: 3724.858 | L30: 3433.288 | M30: 9434
F31: 3724.858 | L31: 3433.288 | M31: 9434
F32: 3724.858 | L32: 3433.288 | M32: 9434
F33: 3724.858 | L33: 3433.288 | M33: 9434
F34: 3724.858 | L34: 3433.288 | M34: 9434
F35: 3724.858 | L35: 3433.288 | M35: 9434
F36: 3724.858 | L36: 3433.288 | M36: 9434
F37: 3724.858 | L37: 3433.288 | M37: 9434
F38: 3724.858 | L38: 3433.288 | M38: 9434
F39: 3724.858 | L39: 3433.288 | M39: 9434
F40: 3724.858 | L40: 3433.288 | M40: 9434
F41: 3724.858 | L41: 3433.288 | M41: 9434
F42: 3724.858 | L42: 3433.288 | M42: 9434
F43: 3724.858 | L43: 3433.288 | M43: 9434
F44: 3724.858 | L44: 3433.288 | M44: 9434
F45: 3724.858 | L45: 3433.288 | M45: 9434
F46: 3724.858 | L46: 3433.288 | M46: 9434
F47: 3724.858 | L47: 3433.288 | M47: 9434
F48: 3724.858 | L48: 3433.288 | M48: 9434
F49: 3724.858 | L49: 3433.288 | M49: 9434
F50: 3724.858 | L50: 3433.288 | M50: 9434
F51: 3724.858 | L51: 3433.288 | M51: 9434
F52: 3724.858 | L52: 3433.288 | M52: 9434
F53: 3724.858 | L53: 3433.288 | M53: 9434
F54: 3724.858 | L54: 3433.288 | M54: 9434
F55: 3724.858 | L55: 3433.288 | M55: 9434
F56: 3724.858 | L56: 3433.288 | M56: 9434
F57: 3724.858 | L57: 3433.288 | M57: 9434
F58: 3724.858 | L58: 3433.288 | M58: 9434
F59: 3724.858 | L59: 3433.288 | M59: 9434
F60: 3724.858 | L60: 3433.288 | M60: 9434
F61: 3724.858 | L61: 3433.288 | M61: 9434
F62: 3724.858 | L62: 3433.288 | M62: 9434
F63: 3724.858 | L63: 3433.288 | M63: 9434
F64: 3724.858 | L64: 3433.288 | M64: 9434
F65: 3724.858 | L65: 3433.288 | M65: 9434
F66: 3724.858 | L66: 3433.288 | M66: 9434
F67: 3724.858 | L67: 3433.288 | M67: 9434
F68: 3724.858 | L68: 3433.288 | M68: 9434
F69: 3724.858 | L69: 3433.288 | M69: 9434
F70: 3724.858 | L70: 3433.288 | M70: 9434
F71: =F70-D71+E71 -> 3724.858 | L71: =L70-G71-H71-D71+E71 -> 3433.288 | M71: =M70-J71+I71 -> 9434
F72: 3724.858 | L72: 3433.288 | M72: 9434
F73: 3724.858 | L73: 3433.288 | M73: 9434
F74: 3724.858 | L74: 3433.288 | M74: 9434
F75: 3724.858 | L75: 3433.288 | M75: 9434
F76: 3724.858 | L76: 3433.288 | M76: 9434
F77: 3724.858 | L77: 3433.288 | M77: 9434
F78: 3724.858 | L78: 3433.288 | M78: 9434
F79: 3724.858 | L79: 3433.288 | M79: 9434
F80: 3724.858 | L80: 3433.288 | M80: 9434
F81: 3724.858 | L81: 3433.288 | M81: 9434
F82: 3724.858 | L82: 3433.288 | M82: 9434
F83: 3724.858 | L83: 3433.288 | M83: 9434
F84: 3724.858 | L84: 3433.288 | M84: 9434
F85: 3724.858 | L85: 3433.288 | M85: 9434
F86: 3724.858 | L86: 3433.288 | M86: 9434
F87: 3724.858 | L87: 3433.288 | M87: 9434
F88: 3724.858 | L88: 3433.288 | M88: 9434
F89: 3724.858 | L89: 3433.288 | M89: 9434
F90: 3724.858 | L90: 3433.288 | M90: 9434
F91: 3724.858 | L91: 3433.288 | M91: 9434
F92: 3724.858 | L92: 3433.288 | M92: 9434
F93: 3724.858 | L93: 3433.288 | M93: 9434
F94: 3724.858 | L94: 3433.288 | M94: 9434
F95: 3724.858 | L95: 3433.288 | M95: 9434
F96: 3724.858 | L96: 3433.288 | M96: 9434
F97: 3724.858 | L97: 3433.288 | M97: 9434
F98: 3724.858 | L98: 3433.288 | M98: 9434
F99: 3724.858 | L99: 3433.288 | M99: 9434
F100: 3724.858 | L100: 3433.288 | M100: 9434
F101: 3724.858 | L101: 3433.288 | M101: 9434
F102: 3724.858 | L102: 3433.288 | M102: 9434
F103: 3724.858 | L103: 3433.288 | M103: 9434
F104: 3724.858 | L104: 3433.288 | M104: 9434
F105: 3724.858 | L105: 3433.288 | M105: 9434
F106: 3724.858 | L106: 3433.288 | M106: 9434
F107: 3724.858 | L107: 3433.288 | M107: 9434
F108: 3724.858 | L108: 3433.288 | M108: 9434
F109: 3724.858 | L109: 3433.288 | M109: 9434
F110: 3724.858 | L110: 3433.288 | M110: 9434
F111: 3724.858 | L111: 3433.288 | M111: 9434
F112: 3724.858 | L112: 3433.288 | M112: 9434
F113: 3724.858 | L113: 3433.288 | M113: 9434
F114: 3724.858 | L114: 3433.288 | M114: 9434
F115: 3724.858 | L115: 3433.288 | M115: 9434
F116: 3724.858 | L116: 3433.288 | M116: 9434
F117: 3724.858 | L117: 3433.288 | M117: 9434
F118: 3724.858 | L118: 3433.288 | M118: 9434
F119: 3724.858 | L119: 3433.288 | M119: 9434
F120: 3724.858 | L120: 3433.288 | M120: 9434
F121: 3724.858 | L121: 3433.288 | M121: 9434
F122: 3724.858 | L122: 3433.288 | M122: 9434
F123: 3724.858 | L123: 3433.288 | M123: 9434
F124: 3724.858 | L124: 3433.288 | M124: 9434
F125: 3724.858 | L125: 3433.288 | M125: 9434
F126: 3724.858 | L126: 3433.288 | M126: 9434
F127: 3724.858 | L127: 3433.288 | M127: 9434
F128: 3724.858 | L128: 3433.288 | M128: 9434
F129: 3724.858 | L129: 3433.288 | M129: 9434
F130: 3724.858 | L130: 3433.288 | M130: 9434
F131: 3724.858 | L131: 3433.288 | M131: 9434
F132: 3724.858 | L132: 3433.288 | M132: 9434
F133: 3724.858 | L133: 3433.288 | M133: 9434
F134: 3724.858 | L134: 3433.288 | M134: 9434
F135: =F134-D135+E135 -> 3724.858 | L135: =L134-G135-H135-D135+E135 -> 3433.288 | M135: =M134-J135+I135 -> 9434
F136: 3724.858 | L136: 3433.288 | M136: 9434
F137: 3724.858 | L137: 3433.288 | M137: 9434
F138: 3724.858 | L138: 3433.288 | M138: 9434
F139: 3724.858 | L139: 3433.288 | M139: 9434
F140: 3724.858 | L140: 3433.288 | M140: 9434
F141: 3724.858 | L141: 3433.288 | M141: 9434
F142: 3724.858 | L142: 3433.288 | M142: 9434
F143: 3724.858 | L143: 3433.288 | M143: 9434
F144: 3724.858 | L144: 3433.288 | M144: 9434
F145: 3724.858 | L145: 3433.288 | M145: 9434
F146: 3724.858 | L146: 3433.288 | M146: 9434
F147: 3724.858 | L147: 3433.288 | M147: 9434
F148: 3724.858 | L148: 3433.288 | M148: 9434
F149: 3724.858 | L149: 3433.288 | M149: 9434
F150: 3724.858 | L150: 3433.288 | M150: 9434
F151: 3724.858 | L151: 3433.288 | M151: 9434

Sheet November (hidden)
A1: =January!A1 -> 2016 | O1: Current Balance
A2: INFORMATION | D2: CASH | G2: DEBT | I2: SAVINGS | L2: TOTAL | O2: ='Model Controls'!J2 -> Discover | P2: =SUM(G5:G251)+October!P2 -> 291.57
A3: Date | B3: Description | C3: Category | D3: Expense | E3: Income | F3: Available | G3: ='Model Controls'!J2 -> Discover | H3: ='Model Controls'!J3 -> Gesa | I3: Deposit | J3: Withdral | K3: IN BANK? | L3: Spending | M3: Savings | O3: ='Model Controls'!J3 -> Gesa | P3: =SUM(H5:H251)+September!P3 -> 0
A4: November
F5: =INDEX(October!$F$5:$F$151,COUNTA(October!$F$5:$F$151))-D5+E5 -> 3724.858 | L5: =INDEX(October!$L$5:$L$151,COUNTA(October!$L$5:$L$151))-G5-H5-D5+E5 -> 3433.288 | M5: =INDEX(October!$M$5:$M$151,COUNTA(October!$M$5:$M$151))-J5+I5 -> 9434
F6: =F5-D6+E6 -> 3724.858 | L6: =L5-G6-H6-D6+E6 -> 3433.288 | M6: =M5-J6+I6 -> 9434
F7: =F6-D7+E7 -> 3724.858 | L7: =L6-G7-H7-D7+E7 -> 3433.288 | M7: =M6-J7+I7 -> 9434
F8: 3724.858 | L8: 3433.288 | M8: 9434
F9: 3724.858 | L9: 3433.288 | M9: 9434
F10: 3724.858 | L10: 3433.288 | M10: 9434
F11: 3724.858 | L11: 3433.288 | M11: 9434
F12: 3724.858 | L12: 3433.288 | M12: 9434
F13: 3724.858 | L13: 3433.288 | M13: 9434
F14: 3724.858 | L14: 3433.288 | M14: 9434
F15: 3724.858 | L15: 3433.288 | M15: 9434
F16: 3724.858 | L16: 3433.288 | M16: 9434
F17: 3724.858 | L17: 3433.288 | M17: 9434
F18: 3724.858 | L18: 3433.288 | M18: 9434
F19: 3724.858 | L19: 3433.288 | M19: 9434
F20: 3724.858 | L20: 3433.288 | M20: 9434
F21: 3724.858 | L21: 3433.288 | M21: 9434
F22: 3724.858 | L22: 3433.288 | M22: 9434
F23: 3724.858 | L23: 3433.288 | M23: 9434
F24: 3724.858 | L24: 3433.288 | M24: 9434
F25: 3724.858 | L25: 3433.288 | M25: 9434
F26: 3724.858 | L26: 3433.288 | M26: 9434
F27: 3724.858 | L27: 3433.288 | M27: 9434
F28: 3724.858 | L28: 3433.288 | M28: 9434
F29: 3724.858 | L29: 3433.288 | M29: 9434
F30: 3724.858 | L30: 3433.288 | M30: 9434
F31: 3724.858 | L31: 3433.288 | M31: 9434
F32: 3724.858 | L32: 3433.288 | M32: 9434
F33: 3724.858 | L33: 3433.288 | M33: 9434
F34: 3724.858 | L34: 3433.288 | M34: 9434
F35: 3724.858 | L35: 3433.288 | M35: 9434
F36: 3724.858 | L36: 3433.288 | M36: 9434
F37: 3724.858 | L37: 3433.288 | M37: 9434
F38: 3724.858 | L38: 3433.288 | M38: 9434
F39: 3724.858 | L39: 3433.288 | M39: 9434
F40: 3724.858 | L40: 3433.288 | M40: 9434
F41: 3724.858 | L41: 3433.288 | M41: 9434
F42: 3724.858 | L42: 3433.288 | M42: 9434
F43: 3724.858 | L43: 3433.288 | M43: 9434
F44: 3724.858 | L44: 3433.288 | M44: 9434
F45: 3724.858 | L45: 3433.288 | M45: 9434
F46: 3724.858 | L46: 3433.288 | M46: 9434
F47: 3724.858 | L47: 3433.288 | M47: 9434
F48: 3724.858 | L48: 3433.288 | M48: 9434
F49: 3724.858 | L49: 3433.288 | M49: 9434
F50: 3724.858 | L50: 3433.288 | M50: 9434
F51: 3724.858 | L51: 3433.288 | M51: 9434
F52: 3724.858 | L52: 3433.288 | M52: 9434
F53: 3724.858 | L53: 3433.288 | M53: 9434
F54: 3724.858 | L54: 3433.288 | M54: 9434
F55: 3724.858 | L55: 3433.288 | M55: 9434
F56: 3724.858 | L56: 3433.288 | M56: 9434
F57: 3724.858 | L57: 3433.288 | M57: 9434
F58: 3724.858 | L58: 3433.288 | M58: 9434
F59: 3724.858 | L59: 3433.288 | M59: 9434
F60: 3724.858 | L60: 3433.288 | M60: 9434
F61: 3724.858 | L61: 3433.288 | M61: 9434
F62: 3724.858 | L62: 3433.288 | M62: 9434
F63: 3724.858 | L63: 3433.288 | M63: 9434
F64: 3724.858 | L64: 3433.288 | M64: 9434
F65: 3724.858 | L65: 3433.288 | M65: 9434
F66: 3724.858 | L66: 3433.288 | M66: 9434
F67: 3724.858 | L67: 3433.288 | M67: 9434
F68: 3724.858 | L68: 3433.288 | M68: 9434
F69: 3724.858 | L69: 3433.288 | M69: 9434
F70: 3724.858 | L70: 3433.288 | M70: 9434
F71: =F70-D71+E71 -> 3724.858 | L71: =L70-G71-H71-D71+E71 -> 3433.288 | M71: =M70-J71+I71 -> 9434
F72: 3724.858 | L72: 3433.288 | M72: 9434
F73: 3724.858 | L73: 3433.288 | M73: 9434
F74: 3724.858 | L74: 3433.288 | M74: 9434
F75: 3724.858 | L75: 3433.288 | M75: 9434
F76: 3724.858 | L76: 3433.288 | M76: 9434
F77: 3724.858 | L77: 3433.288 | M77: 9434
F78: 3724.858 | L78: 3433.288 | M78: 9434
F79: 3724.858 | L79: 3433.288 | M79: 9434
F80: 3724.858 | L80: 3433.288 | M80: 9434
F81: 3724.858 | L81: 3433.288 | M81: 9434
F82: 3724.858 | L82: 3433.288 | M82: 9434
F83: 3724.858 | L83: 3433.288 | M83: 9434
F84: 3724.858 | L84: 3433.288 | M84: 9434
F85: 3724.858 | L85: 3433.288 | M85: 9434
F86: 3724.858 | L86: 3433.288 | M86: 9434
F87: 3724.858 | L87: 3433.288 | M87: 9434
F88: 3724.858 | L88: 3433.288 | M88: 9434
F89: 3724.858 | L89: 3433.288 | M89: 9434
F90: 3724.858 | L90: 3433.288 | M90: 9434
F91: 3724.858 | L91: 3433.288 | M91: 9434
F92: 3724.858 | L92: 3433.288 | M92: 9434
F93: 3724.858 | L93: 3433.288 | M93: 9434
F94: 3724.858 | L94: 3433.288 | M94: 9434
F95: 3724.858 | L95: 3433.288 | M95: 9434
F96: 3724.858 | L96: 3433.288 | M96: 9434
F97: 3724.858 | L97: 3433.288 | M97: 9434
F98: 3724.858 | L98: 3433.288 | M98: 9434
F99: 3724.858 | L99: 3433.288 | M99: 9434
F100: 3724.858 | L100: 3433.288 | M100: 9434
F101: 3724.858 | L101: 3433.288 | M101: 9434
F102: 3724.858 | L102: 3433.288 | M102: 9434
F103: 3724.858 | L103: 3433.288 | M103: 9434
F104: 3724.858 | L104: 3433.288 | M104: 9434
F105: 3724.858 | L105: 3433.288 | M105: 9434
F106: 3724.858 | L106: 3433.288 | M106: 9434
F107: 3724.858 | L107: 3433.288 | M107: 9434
F108: 3724.858 | L108: 3433.288 | M108: 9434
F109: 3724.858 | L109: 3433.288 | M109: 9434
F110: 3724.858 | L110: 3433.288 | M110: 9434
F111: 3724.858 | L111: 3433.288 | M111: 9434
F112: 3724.858 | L112: 3433.288 | M112: 9434
F113: 3724.858 | L113: 3433.288 | M113: 9434
F114: 3724.858 | L114: 3433.288 | M114: 9434
F115: 3724.858 | L115: 3433.288 | M115: 9434
F116: 3724.858 | L116: 3433.288 | M116: 9434
F117: 3724.858 | L117: 3433.288 | M117: 9434
F118: 3724.858 | L118: 3433.288 | M118: 9434
F119: 3724.858 | L119: 3433.288 | M119: 9434
F120: 3724.858 | L120: 3433.288 | M120: 9434
F121: 3724.858 | L121: 3433.288 | M121: 9434
F122: 3724.858 | L122: 3433.288 | M122: 9434
F123: 3724.858 | L123: 3433.288 | M123: 9434
F124: 3724.858 | L124: 3433.288 | M124: 9434
F125: 3724.858 | L125: 3433.288 | M125: 9434
F126: 3724.858 | L126: 3433.288 | M126: 9434
F127: 3724.858 | L127: 3433.288 | M127: 9434
F128: 3724.858 | L128: 3433.288 | M128: 9434
F129: 3724.858 | L129: 3433.288 | M129: 9434
F130: 3724.858 | L130: 3433.288 | M130: 9434
F131: 3724.858 | L131: 3433.288 | M131: 9434
F132: 3724.858 | L132: 3433.288 | M132: 9434
F133: 3724.858 | L133: 3433.288 | M133: 9434
F134: 3724.858 | L134: 3433.288 | M134: 9434
F135: =F134-D135+E135 -> 3724.858 | L135: =L134-G135-H135-D135+E135 -> 3433.288 | M135: =M134-J135+I135 -> 9434
F136: 3724.858 | L136: 3433.288 | M136: 9434
F137: 3724.858 | L137: 3433.288 | M137: 9434
F138: 3724.858 | L138: 3433.288 | M138: 9434
F139: 3724.858 | L139: 3433.288 | M139: 9434
F140: 3724.858 | L140: 3433.288 | M140: 9434
F141: 3724.858 | L141: 3433.288 | M141: 9434
F142: 3724.858 | L142: 3433.288 | M142: 9434
F143: 3724.858 | L143: 3433.288 | M143: 9434
F144: 3724.858 | L144: 3433.288 | M144: 9434
F145: 3724.858 | L145: 3433.288 | M145: 9434
F146: 3724.858 | L146: 3433.288 | M146: 9434
F147: 3724.858 | L147: 3433.288 | M147: 9434
F148: 3724.858 | L148: 3433.288 | M148: 9434
F149: 3724.858 | L149: 3433.288 | M149: 9434

Sheet October (hidden)
A1: =January!A1 -> 2016 | O1: Current Balance
A2: INFORMATION | D2: CASH | G2: DEBT | I2: SAVINGS | L2: TOTAL | O2: ='Model Controls'!J2 -> Discover | P2: =SUM(G5:G255)+September!P2 -> 291.57
A3: Date | B3: Description | C3: Category | D3: Expense | E3: Income | F3: Available | G3: ='Model Controls'!J2 -> Discover | H3: ='Model Controls'!J3 -> Gesa | I3: Deposit | J3: Withdral | K3: IN BANK? | L3: Spending | M3: Savings | O3: ='Model Controls'!J3 -> Gesa | P3: =SUM(H5:H255)+September!P3 -> 0
A4: October
F5: =INDEX(September!$F$5:$F$151,COUNTA(September!$F$5:$F$151))-D5+E5 -> 3724.858 | L5: =INDEX(September!$L$5:$L$151,COUNTA(September!$L$5:$L$151))-G5-H5-D5+E5 -> 3433.288 | M5: =INDEX(September!$M$5:$M$151,COUNTA(September!$M$5:$M$151))-J5+I5 -> 9434
F6: =F5-D6+E6 -> 3724.858 | L6: =L5-G6-H6-D6+E6 -> 3433.288 | M6: =M5-J6+I6 -> 9434
F7: =F6-D7+E7 -> 3724.858 | L7: =L6-G7-H7-D7+E7 -> 3433.288 | M7: =M6-J7+I7 -> 9434
F8: 3724.858 | L8: 3433.288 | M8: 9434
F9: 3724.858 | L9: 3433.288 | M9: 9434
F10: 3724.858 | L10: 3433.288 | M10: 9434
F11: 3724.858 | L11: 3433.288 | M11: 9434
F12: 3724.858 | L12: 3433.288 | M12: 9434
F13: 3724.858 | L13: 3433.288 | M13: 9434
F14: 3724.858 | L14: 3433.288 | M14: 9434
F15: 3724.858 | L15: 3433.288 | M15: 9434
F16: 3724.858 | L16: 3433.288 | M16: 9434
F17: 3724.858 | L17: 3433.288 | M17: 9434
F18: 3724.858 | L18: 3433.288 | M18: 9434
F19: 3724.858 | L19: 3433.288 | M19: 9434
F20: 3724.858 | L20: 3433.288 | M20: 9434
F21: 3724.858 | L21: 3433.288 | M21: 9434
F22: 3724.858 | L22: 3433.288 | M22: 9434
F23: 3724.858 | L23: 3433.288 | M23: 9434
F24: 3724.858 | L24: 3433.288 | M24: 9434
F25: 3724.858 | L25: 3433.288 | M25: 9434
F26: 3724.858 | L26: 3433.288 | M26: 9434
F27: 3724.858 | L27: 3433.288 | M27: 9434
F28: 3724.858 | L28: 3433.288 | M28: 9434
F29: 3724.858 | L29: 3433.288 | M29: 9434
F30: 3724.858 | L30: 3433.288 | M30: 9434
F31: 3724.858 | L31: 3433.288 | M31: 9434
F32: 3724.858 | L32: 3433.288 | M32: 9434
F33: 3724.858 | L33: 3433.288 | M33: 9434
F34: 3724.858 | L34: 3433.288 | M34: 9434
F35: 3724.858 | L35: 3433.288 | M35: 9434
F36: 3724.858 | L36: 3433.288 | M36: 9434
F37: 3724.858 | L37: 3433.288 | M37: 9434
F38: 3724.858 | L38: 3433.288 | M38: 9434
F39: 3724.858 | L39: 3433.288 | M39: 9434
F40: 3724.858 | L40: 3433.288 | M40: 9434
F41: 3724.858 | L41: 3433.288 | M41: 9434
F42: 3724.858 | L42: 3433.288 | M42: 9434
F43: 3724.858 | L43: 3433.288 | M43: 9434
F44: 3724.858 | L44: 3433.288 | M44: 9434
F45: 3724.858 | L45: 3433.288 | M45: 9434
F46: 3724.858 | L46: 3433.288 | M46: 9434
F47: 3724.858 | L47: 3433.288 | M47: 9434
F48: 3724.858 | L48: 3433.288 | M48: 9434
F49: 3724.858 | L49: 3433.288 | M49: 9434
F50: 3724.858 | L50: 3433.288 | M50: 9434
F51: 3724.858 | L51: 3433.288 | M51: 9434
F52: 3724.858 | L52: 3433.288 | M52: 9434
F53: 3724.858 | L53: 3433.288 | M53: 9434
F54: 3724.858 | L54: 3433.288 | M54: 9434
F55: 3724.858 | L55: 3433.288 | M55: 9434
F56: 3724.858 | L56: 3433.288 | M56: 9434
F57: 3724.858 | L57: 3433.288 | M57: 9434
F58: 3724.858 | L58: 3433.288 | M58: 9434
F59: 3724.858 | L59: 3433.288 | M59: 9434
F60: 3724.858 | L60: 3433.288 | M60: 9434
F61: 3724.858 | L61: 3433.288 | M61: 9434
F62: 3724.858 | L62: 3433.288 | M62: 9434
F63: 3724.858 | L63: 3433.288 | M63: 9434
F64: 3724.858 | L64: 3433.288 | M64: 9434
F65: 3724.858 | L65: 3433.288 | M65: 9434
F66: 3724.858 | L66: 3433.288 | M66: 9434
F67: 3724.858 | L67: 3433.288 | M67: 9434
F68: 3724.858 | L68: 3433.288 | M68: 9434
F69: 3724.858 | L69: 3433.288 | M69: 9434
F70: 3724.858 | L70: 3433.288 | M70: 9434
F71: =F70-D71+E71 -> 3724.858 | L71: =L70-G71-H71-D71+E71 -> 3433.288 | M71: =M70-J71+I71 -> 9434
F72: 3724.858 | L72: 3433.288 | M72: 9434
F73: 3724.858 | L73: 3433.288 | M73: 9434
F74: 3724.858 | L74: 3433.288 | M74: 9434
F75: 3724.858 | L75: 3433.288 | M75: 9434
F76: 3724.858 | L76: 3433.288 | M76: 9434
F77: 3724.858 | L77: 3433.288 | M77: 9434
F78: 3724.858 | L78: 3433.288 | M78: 9434
F79: 3724.858 | L79: 3433.288 | M79: 9434
F80: 3724.858 | L80: 3433.288 | M80: 9434
F81: 3724.858 | L81: 3433.288 | M81: 9434
F82: 3724.858 | L82: 3433.288 | M82: 9434
F83: 3724.858 | L83: 3433.288 | M83: 9434
F84: 3724.858 | L84: 3433.288 | M84: 9434
F85: 3724.858 | L85: 3433.288 | M85: 9434
F86: 3724.858 | L86: 3433.288 | M86: 9434
F87: 3724.858 | L87: 3433.288 | M87: 9434
F88: 3724.858 | L88: 3433.288 | M88: 9434
F89: 3724.858 | L89: 3433.288 | M89: 9434
F90: 3724.858 | L90: 3433.288 | M90: 9434
F91: 3724.858 | L91: 3433.288 | M91: 9434
F92: 3724.858 | L92: 3433.288 | M92: 9434
F93: 3724.858 | L93: 3433.288 | M93: 9434
F94: 3724.858 | L94: 3433.288 | M94: 9434
F95: 3724.858 | L95: 3433.288 | M95: 9434
F96: 3724.858 | L96: 3433.288 | M96: 9434
F97: 3724.858 | L97: 3433.288 | M97: 9434
F98: 3724.858 | L98: 3433.288 | M98: 9434
F99: 3724.858 | L99: 3433.288 | M99: 9434
F100: 3724.858 | L100: 3433.288 | M100: 9434
F101: 3724.858 | L101: 3433.288 | M101: 9434
F102: 3724.858 | L102: 3433.288 | M102: 9434
F103: 3724.858 | L103: 3433.288 | M103: 9434
F104: 3724.858 | L104: 3433.288 | M104: 9434
F105: 3724.858 | L105: 3433.288 | M105: 9434
F106: 3724.858 | L106: 3433.288 | M106: 9434
F107: 3724.858 | L107: 3433.288 | M107: 9434
F108: 3724.858 | L108: 3433.288 | M108: 9434
F109: 3724.858 | L109: 3433.288 | M109: 9434
F110: 3724.858 | L110: 3433.288 | M110: 9434
F111: 3724.858 | L111: 3433.288 | M111: 9434
F112: 3724.858 | L112: 3433.288 | M112: 9434
F113: 3724.858 | L113: 3433.288 | M113: 9434
F114: 3724.858 | L114: 3433.288 | M114: 9434
F115: 3724.858 | L115: 3433.288 | M115: 9434
F116: 3724.858 | L116: 3433.288 | M116: 9434
F117: 3724.858 | L117: 3433.288 | M117: 9434
F118: 3724.858 | L118: 3433.288 | M118: 9434
F119: 3724.858 | L119: 3433.288 | M119: 9434
F120: 3724.858 | L120: 3433.288 | M120: 9434
F121: 3724.858 | L121: 3433.288 | M121: 9434
F122: 3724.858 | L122: 3433.288 | M122: 9434
F123: 3724.858 | L123: 3433.288 | M123: 9434
F124: 3724.858 | L124: 3433.288 | M124: 9434
F125: 3724.858 | L125: 3433.288 | M125: 9434
F126: 3724.858 | L126: 3433.288 | M126: 9434
F127: 3724.858 | L127: 3433.288 | M127: 9434
F128: 3724.858 | L128: 3433.288 | M128: 9434
F129: 3724.858 | L129: 3433.288 | M129: 9434
F130: 3724.858 | L130: 3433.288 | M130: 9434
F131: 3724.858 | L131: 3433.288 | M131: 9434
F132: 3724.858 | L132: 3433.288 | M132: 9434
F133: 3724.858 | L133: 3433.288 | M133: 9434
F134: 3724.858 | L134: 3433.288 | M134: 9434
F135: =F134-D135+E135 -> 3724.858 | L135: =L134-G135-H135-D135+E135 -> 3433.288 | M135: =M134-J135+I135 -> 9434
F136: 3724.858 | L136: 3433.288 | M136: 9434
F137: 3724.858 | L137: 3433.288 | M137: 9434
F138: 3724.858 | L138: 3433.288 | M138: 9434
F139: 3724.858 | L139: 3433.288 | M139: 9434
F140: 3724.858 | L140: 3433.288 | M140: 9434
F141: 3724.858 | L141: 3433.288 | M141: 9434
F142: 3724.858 | L142: 3433.288 | M142: 9434
F143: 3724.858 | L143: 3433.288 | M143: 9434
F144: 3724.858 | L144: 3433.288 | M144: 9434
F145: 3724.858 | L145: 3433.288 | M145: 9434
F146: 3724.858 | L146: 3433.288 | M146: 9434
F147: 3724.858 | L147: 3433.288 | M147: 9434
F148: 3724.858 | L148: 3433.288 | M148: 9434
F149: 3724.858 | L149: 3433.288 | M149: 9434
F150: 3724.858 | L150: 3433.288 | M150: 9434
F151: 3724.858 | L151: 3433.288 | M151: 9434
F152: 3724.858 | L152: 3433.288 | M152: 9434
F153: 3724.858 | L153: 3433.288 | M153: 9434

Sheet September (hidden)
A1: =January!A1 -> 2016 | O1: Current Balance
A2: INFORMATION | D2: CASH | G2: DEBT | I2: SAVINGS | L2: TOTAL | O2: ='Model Controls'!J2 -> Discover | P2: =SUM(G5:G255)+August!$P$2 -> 291.57
A3: Date | B3: Description | C3: Category | D3: Expense | E3: Income | F3: Available | G3: ='Model Controls'!J2 -> Discover | H3: ='Model Controls'!J3 -> Gesa | I3: Deposit | J3: Withdral | K3: IN BANK? | L3: Spending | M3: Savings | O3: ='Model Controls'!J3 -> Gesa | P3: =SUM(H5:H255)+August!P3 -> 0
A4: September
F5: =INDEX(August!$F$5:$F$151,COUNTA(August!$F$5:$F$151))-D5+E5 -> 3724.858 | L5: =INDEX(August!$L$5:$L$151,COUNTA(August!$L$5:$L$151))-G5-H5-D5+E5 -> 3433.288 | M5: =INDEX(August!$M$5:$M$151,COUNTA(August!$M$5:$M$151))-J5+I5 -> 9434
F6: =F5-D6+E6 -> 3724.858 | L6: =L5-G6-H6-D6+E6 -> 3433.288 | M6: =M5-J6+I6 -> 9434
F7: =F6-D7+E7 -> 3724.858 | L7: =L6-G7-H7-D7+E7 -> 3433.288 | M7: =M6-J7+I7 -> 9434
F8: 3724.858 | L8: 3433.288 | M8: 9434
F9: 3724.858 | L9: 3433.288 | M9: 9434
F10: 3724.858 | L10: 3433.288 | M10: 9434
F11: 3724.858 | L11: 3433.288 | M11: 9434
F12: 3724.858 | L12: 3433.288 | M12: 9434
F13: 3724.858 | L13: 3433.288 | M13: 9434
F14: 3724.858 | L14: 3433.288 | M14: 9434
F15: 3724.858 | L15: 3433.288 | M15: 9434
F16: 3724.858 | L16: 3433.288 | M16: 9434
F17: 3724.858 | L17: 3433.288 | M17: 9434
F18: 3724.858 | L18: 3433.288 | M18: 9434
F19: 3724.858 | L19: 3433.288 | M19: 9434
F20: 3724.858 | L20: 3433.288 | M20: 9434
F21: 3724.858 | L21: 3433.288 | M21: 9434
F22: 3724.858 | L22: 3433.288 | M22: 9434
F23: 3724.858 | L23: 3433.288 | M23: 9434
F24: 3724.858 | L24: 3433.288 | M24: 9434
F25: 3724.858 | L25: 3433.288 | M25: 9434
F26: 3724.858 | L26: 3433.288 | M26: 9434
F27: 3724.858 | L27: 3433.288 | M27: 9434
F28: 3724.858 | L28: 3433.288 | M28: 9434
F29: 3724.858 | L29: 3433.288 | M29: 9434
F30: 3724.858 | L30: 3433.288 | M30: 9434
F31: 3724.858 | L31: 3433.288 | M31: 9434
F32: 3724.858 | L32: 3433.288 | M32: 9434
F33: 3724.858 | L33: 3433.288 | M33: 9434
F34: 3724.858 | L34: 3433.288 | M34: 9434
F35: 3724.858 | L35: 3433.288 | M35: 9434
F36: 3724.858 | L36: 3433.288 | M36: 9434
F37: 3724.858 | L37: 3433.288 | M37: 9434
F38: 3724.858 | L38: 3433.288 | M38: 9434
F39: 3724.858 | L39: 3433.288 | M39: 9434
F40: 3724.858 | L40: 3433.288 | M40: 9434
F41: 3724.858 | L41: 3433.288 | M41: 9434
F42: 3724.858 | L42: 3433.288 | M42: 9434
F43: 3724.858 | L43: 3433.288 | M43: 9434
F44: 3724.858 | L44: 3433.288 | M44: 9434
F45: 3724.858 | L45: 3433.288 | M45: 9434
F46: 3724.858 | L46: 3433.288 | M46: 9434
F47: 3724.858 | L47: 3433.288 | M47: 9434
F48: 3724.858 | L48: 3433.288 | M48: 9434
F49: 3724.858 | L49: 3433.288 | M49: 9434
F50: 3724.858 | L50: 3433.288 | M50: 9434
F51: 3724.858 | L51: 3433.288 | M51: 9434
F52: 3724.858 | L52: 3433.288 | M52: 9434
F53: 3724.858 | L53: 3433.288 | M53: 9434
F54: 3724.858 | L54: 3433.288 | M54: 9434
F55: 3724.858 | L55: 3433.288 | M55: 9434
F56: 3724.858 | L56: 3433.288 | M56: 9434
F57: 3724.858 | L57: 3433.288 | M57: 9434
F58: 3724.858 | L58: 3433.288 | M58: 9434
F59: 3724.858 | L59: 3433.288 | M59: 9434
F60: 3724.858 | L60: 3433.288 | M60: 9434
F61: 3724.858 | L61: 3433.288 | M61: 9434
F62: 3724.858 | L62: 3433.288 | M62: 9434
F63: 3724.858 | L63: 3433.288 | M63: 9434
F64: 3724.858 | L64: 3433.288 | M64: 9434
F65: 3724.858 | L65: 3433.288 | M65: 9434
F66: 3724.858 | L66: 3433.288 | M66: 9434
F67: 3724.858 | L67: 3433.288 | M67: 9434
F68: 3724.858 | L68: 3433.288 | M68: 9434
F69: 3724.858 | L69: 3433.288 | M69: 9434
F70: 3724.858 | L70: 3433.288 | M70: 9434
F71: =F70-D71+E71 -> 3724.858 | L71: =L70-G71-H71-D71+E71 -> 3433.288 | M71: =M70-J71+I71 -> 9434
F72: 3724.858 | L72: 3433.288 | M72: 9434
F73: 3724.858 | L73: 3433.288 | M73: 9434
F74: 3724.858 | L74: 3433.288 | M74: 9434
F75: 3724.858 | L75: 3433.288 | M75: 9434
F76: 3724.858 | L76: 3433.288 | M76: 9434
F77: 3724.858 | L77: 3433.288 | M77: 9434
F78: 3724.858 | L78: 3433.288 | M78: 9434
F79: 3724.858 | L79: 3433.288 | M79: 9434
F80: 3724.858 | L80: 3433.288 | M80: 9434
F81: 3724.858 | L81: 3433.288 | M81: 9434
F82: 3724.858 | L82: 3433.288 | M82: 9434
F83: 3724.858 | L83: 3433.288 | M83: 9434
F84: 3724.858 | L84: 3433.288 | M84: 9434
F85: 3724.858 | L85: 3433.288 | M85: 9434
F86: 3724.858 | L86: 3433.288 | M86: 9434
F87: 3724.858 | L87: 3433.288 | M87: 9434
F88: 3724.858 | L88: 3433.288 | M88: 9434
F89: 3724.858 | L89: 3433.288 | M89: 9434
F90: 3724.858 | L90: 3433.288 | M90: 9434
F91: 3724.858 | L91: 3433.288 | M91: 9434
F92: 3724.858 | L92: 3433.288 | M92: 9434
F93: 3724.858 | L93: 3433.288 | M93: 9434
F94: 3724.858 | L94: 3433.288 | M94: 9434
F95: 3724.858 | L95: 3433.288 | M95: 9434
F96: 3724.858 | L96: 3433.288 | M96: 9434
F97: 3724.858 | L97: 3433.288 | M97: 9434
F98: 3724.858 | L98: 3433.288 | M98: 9434
F99: 3724.858 | L99: 3433.288 | M99: 9434
F100: 3724.858 | L100: 3433.288 | M100: 9434
F101: 3724.858 | L101: 3433.288 | M101: 9434
F102: 3724.858 | L102: 3433.288 | M102: 9434
F103: 3724.858 | L103: 3433.288 | M103: 9434
F104: 3724.858 | L104: 3433.288 | M104: 9434
F105: 3724.858 | L105: 3433.288 | M105: 9434
F106: 3724.858 | L106: 3433.288 | M106: 9434
F107: 3724.858 | L107: 3433.288 | M107: 9434
F108: 3724.858 | L108: 3433.288 | M108: 9434
F109: 3724.858 | L109: 3433.288 | M109: 9434
F110: 3724.858 | L110: 3433.288 | M110: 9434
F111: 3724.858 | L111: 3433.288 | M111: 9434
F112: 3724.858 | L112: 3433.288 | M112: 9434
F113: 3724.858 | L113: 3433.288 | M113: 9434
F114: 3724.858 | L114: 3433.288 | M114: 9434
F115: 3724.858 | L115: 3433.288 | M115: 9434
F116: 3724.858 | L116: 3433.288 | M116: 9434
F117: 3724.858 | L117: 3433.288 | M117: 9434
F118: 3724.858 | L118: 3433.288 | M118: 9434
F119: 3724.858 | L119: 3433.288 | M119: 9434
F120: 3724.858 | L120: 3433.288 | M120: 9434
F121: 3724.858 | L121: 3433.288 | M121: 9434
F122: 3724.858 | L122: 3433.288 | M122: 9434
F123: 3724.858 | L123: 3433.288 | M123: 9434
F124: 3724.858 | L124: 3433.288 | M124: 9434
F125: 3724.858 | L125: 3433.288 | M125: 9434
F126: 3724.858 | L126: 3433.288 | M126: 9434
F127: 3724.858 | L127: 3433.288 | M127: 9434
F128: 3724.858 | L128: 3433.288 | M128: 9434
F129: 3724.858 | L129: 3433.288 | M129: 9434
F130: 3724.858 | L130: 3433.288 | M130: 9434
F131: 3724.858 | L131: 3433.288 | M131: 9434
F132: 3724.858 | L132: 3433.288 | M132: 9434
F133: 3724.858 | L133: 3433.288 | M133: 9434
F134: 3724.858 | L134: 3433.288 | M134: 9434
F135: =F134-D135+E135 -> 3724.858 | L135: =L134-G135-H135-D135+E135 -> 3433.288 | M135: =M134-J135+I135 -> 9434
F136: 3724.858 | L136: 3433.288 | M136: 9434
F137: 3724.858 | L137: 3433.288 | M137: 9434
F138: 3724.858 | L138: 3433.288 | M138: 9434
F139: 3724.858 | L139: 3433.288 | M139: 9434
F140: 3724.858 | L140: 3433.288 | M140: 9434
F141: 3724.858 | L141: 3433.288 | M141: 9434
F142: 3724.858 | L142: 3433.288 | M142: 9434
F143: 3724.858 | L143: 3433.288 | M143: 9434
F144: 3724.858 | L144: 3433.288 | M144: 9434
F145: 3724.858 | L145: 3433.288 | M145: 9434
F146: 3724.858 | L146: 3433.288 | M146: 9434
F147: 3724.858 | L147: 3433.288 | M147: 9434
F148: 3724.858 | L148: 3433.288 | M148: 9434
F149: 3724.858 | L149: 3433.288 | M149: 9434
F150: 3724.858 | L150: 3433.288 | M150: 9434
F151: 3724.858 | L151: 3433.288 | M151: 9434
F152: 3724.858 | L152: 3433.288 | M152: 9434
F153: 3724.858 | L153: 3433.288 | M153: 9434

Sheet August (hidden)
A1: =January!A1 -> 2016 | O1: Current Balance
A2: INFORMATION | D2: CASH | G2: DEBT | I2: SAVINGS | L2: TOTAL | O2: ='Model Controls'!J2 -> Discover | P2: =SUM(G5:G251)+July!P2 -> 291.57
A3: Date | B3: Description | C3: Category | D3: Expense | E3: Income | F3: Available | G3: ='Model Controls'!J2 -> Discover | H3: ='Model Controls'!J3 -> Gesa | I3: Deposit | J3: Withdral | K3: IN BANK? | L3: Spending | M3: Savings | O3: ='Model Controls'!J3 -> Gesa | P3: =SUM(H5:H251) -> 0
A4: August
F5: =INDEX(July!$F$5:$F$151,COUNTA(July!$F$5:$F$151))-D5+E5 -> 3724.858 | L5: =INDEX(July!$L$5:$L$151,COUNTA(July!$L$5:$L$151))-G5-H5-D5+E5 -> 3433.288 | M5: =INDEX(July!$M$5:$M$151,COUNTA(July!$M$5:$M$151))-J5+I5 -> 9434
F6: =F5-D6+E6 -> 3724.858 | L6: =L5-G6-H6-D6+E6 -> 3433.288 | M6: =M5-J6+I6 -> 9434
F7: =F6-D7+E7 -> 3724.858 | L7: =L6-G7-H7-D7+E7 -> 3433.288 | M7: =M6-J7+I7 -> 9434
F8: 3724.858 | L8: 3433.288 | M8: 9434
F9: 3724.858 | L9: 3433.288 | M9: 9434
F10: 3724.858 | L10: 3433.288 | M10: 9434
F11: 3724.858 | L11: 3433.288 | M11: 9434
F12: 3724.858 | L12: 3433.288 | M12: 9434
F13: 3724.858 | L13: 3433.288 | M13: 9434
F14: 3724.858 | L14: 3433.288 | M14: 9434
F15: 3724.858 | L15: 3433.288 | M15: 9434
F16: 3724.858 | L16: 3433.288 | M16: 9434
F17: 3724.858 | L17: 3433.288 | M17: 9434
F18: 3724.858 | L18: 3433.288 | M18: 9434
F19: 3724.858 | L19: 3433.288 | M19: 9434
F20: 3724.858 | L20: 3433.288 | M20: 9434
F21: 3724.858 | L21: 3433.288 | M21: 9434
F22: 3724.858 | L22: 3433.288 | M22: 9434
F23: 3724.858 | L23: 3433.288 | M23: 9434
F24: 3724.858 | L24: 3433.288 | M24: 9434
F25: 3724.858 | L25: 3433.288 | M25: 9434
F26: 3724.858 | L26: 3433.288 | M26: 9434
F27: 3724.858 | L27: 3433.288 | M27: 9434
F28: 3724.858 | L28: 3433.288 | M28: 9434
F29: 3724.858 | L29: 3433.288 | M29: 9434
F30: 3724.858 | L30: 3433.288 | M30: 9434
F31: 3724.858 | L31: 3433.288 | M31: 9434
F32: 3724.858 | L32: 3433.288 | M32: 9434
F33: 3724.858 | L33: 3433.288 | M33: 9434
F34: 3724.858 | L34: 3433.288 | M34: 9434
F35: 3724.858 | L35: 3433.288 | M35: 9434
F36: 3724.858 | L36: 3433.288 | M36: 9434
F37: 3724.858 | L37: 3433.288 | M37: 9434
F38: 3724.858 | L38: 3433.288 | M38: 9434
F39: 3724.858 | L39: 3433.288 | M39: 9434
F40: 3724.858 | L40: 3433.288 | M40: 9434
F41: 3724.858 | L41: 3433.288 | M41: 9434
F42: 3724.858 | L42: 3433.288 | M42: 9434
F43: 3724.858 | L43: 3433.288 | M43: 9434
F44: 3724.858 | L44: 3433.288 | M44: 9434
F45: 3724.858 | L45: 3433.288 | M45: 9434
F46: 3724.858 | L46: 3433.288 | M46: 9434
F47: 3724.858 | L47: 3433.288 | M47: 9434
F48: 3724.858 | L48: 3433.288 | M48: 9434
F49: 3724.858 | L49: 3433.288 | M49: 9434
F50: 3724.858 | L50: 3433.288 | M50: 9434
F51: 3724.858 | L51: 3433.288 | M51: 9434
F52: 3724.858 | L52: 3433.288 | M52: 9434
F53: 3724.858 | L53: 3433.288 | M53: 9434
F54: 3724.858 | L54: 3433.288 | M54: 9434
F55: 3724.858 | L55: 3433.288 | M55: 9434
F56: 3724.858 | L56: 3433.288 | M56: 9434
F57: 3724.858 | L57: 3433.288 | M57: 9434
F58: 3724.858 | L58: 3433.288 | M58: 9434
F59: 3724.858 | L59: 3433.288 | M59: 9434
F60: 3724.858 | L60: 3433.288 | M60: 9434
F61: 3724.858 | L61: 3433.288 | M61: 9434
F62: 3724.858 | L62: 3433.288 | M62: 9434
F63: 3724.858 | L63: 3433.288 | M63: 9434
F64: 3724.858 | L64: 3433.288 | M64: 9434
F65: 3724.858 | L65: 3433.288 | M65: 9434
F66: 3724.858 | L66: 3433.288 | M66: 9434
F67: 3724.858 | L67: 3433.288 | M67: 9434
F68: 3724.858 | L68: 3433.288 | M68: 9434
F69: 3724.858 | L69: 3433.288 | M69: 9434
F70: 3724.858 | L70: 3433.288 | M70: 9434
F71: =F70-D71+E71 -> 3724.858 | L71: =L70-G71-H71-D71+E71 -> 3433.288 | M71: =M70-J71+I71 -> 9434
F72: 3724.858 | L72: 3433.288 | M72: 9434
F73: 3724.858 | L73: 3433.288 | M73: 9434
F74: 3724.858 | L74: 3433.288 | M74: 9434
F75: 3724.858 | L75: 3433.288 | M75: 9434
F76: 3724.858 | L76: 3433.288 | M76: 9434
F77: 3724.858 | L77: 3433.288 | M77: 9434
F78: 3724.858 | L78: 3433.288 | M78: 9434
F79: 3724.858 | L79: 3433.288 | M79: 9434
F80: 3724.858 | L80: 3433.288 | M80: 9434
F81: 3724.858 | L81: 3433.288 | M81: 9434
F82: 3724.858 | L82: 3433.288 | M82: 9434
F83: 3724.858 | L83: 3433.288 | M83: 9434
F84: 3724.858 | L84: 3433.288 | M84: 9434
F85: 3724.858 | L85: 3433.288 | M85: 9434
F86: 3724.858 | L86: 3433.288 | M86: 9434
F87: 3724.858 | L87: 3433.288 | M87: 9434
F88: 3724.858 | L88: 3433.288 | M88: 9434
F89: 3724.858 | L89: 3433.288 | M89: 9434
F90: 3724.858 | L90: 3433.288 | M90: 9434
F91: 3724.858 | L91: 3433.288 | M91: 9434
F92: 3724.858 | L92: 3433.288 | M92: 9434
F93: 3724.858 | L93: 3433.288 | M93: 9434
F94: 3724.858 | L94: 3433.288 | M94: 9434
F95: 3724.858 | L95: 3433.288 | M95: 9434
F96: 3724.858 | L96: 3433.288 | M96: 9434
F97: 3724.858 | L97: 3433.288 | M97: 9434
F98: 3724.858 | L98: 3433.288 | M98: 9434
F99: 3724.858 | L99: 3433.288 | M99: 9434
F100: 3724.858 | L100: 3433.288 | M100: 9434
F101: 3724.858 | L101: 3433.288 | M101: 9434
F102: 3724.858 | L102: 3433.288 | M102: 9434
F103: 3724.858 | L103: 3433.288 | M103: 9434
F104: 3724.858 | L104: 3433.288 | M104: 9434
F105: 3724.858 | L105: 3433.288 | M105: 9434
F106: 3724.858 | L106: 3433.288 | M106: 9434
F107: 3724.858 | L107: 3433.288 | M107: 9434
F108: 3724.858 | L108: 3433.288 | M108: 9434
F109: 3724.858 | L109: 3433.288 | M109: 9434
F110: 3724.858 | L110: 3433.288 | M110: 9434
F111: 3724.858 | L111: 3433.288 | M111: 9434
F112: 3724.858 | L112: 3433.288 | M112: 9434
F113: 3724.858 | L113: 3433.288 | M113: 9434
F114: 3724.858 | L114: 3433.288 | M114: 9434
F115: 3724.858 | L115: 3433.288 | M115: 9434
F116: 3724.858 | L116: 3433.288 | M116: 9434
F117: 3724.858 | L117: 3433.288 | M117: 9434
F118: 3724.858 | L118: 3433.288 | M118: 9434
F119: 3724.858 | L119: 3433.288 | M119: 9434
F120: 3724.858 | L120: 3433.288 | M120: 9434
F121: 3724.858 | L121: 3433.288 | M121: 9434
F122: 3724.858 | L122: 3433.288 | M122: 9434
F123: 3724.858 | L123: 3433.288 | M123: 9434
F124: 3724.858 | L124: 3433.288 | M124: 9434
F125: 3724.858 | L125: 3433.288 | M125: 9434
F126: 3724.858 | L126: 3433.288 | M126: 9434
F127: 3724.858 | L127: 3433.288 | M127: 9434
F128: 3724.858 | L128: 3433.288 | M128: 9434
F129: 3724.858 | L129: 3433.288 | M129: 9434
F130: 3724.858 | L130: 3433.288 | M130: 9434
F131: 3724.858 | L131: 3433.288 | M131: 9434
F132: 3724.858 | L132: 3433.288 | M132: 9434
F133: 3724.858 | L133: 3433.288 | M133: 9434
F134: 3724.858 | L134: 3433.288 | M134: 9434
F135: =F134-D135+E135 -> 3724.858 | L135: =L134-G135-H135-D135+E135 -> 3433.288 | M135: =M134-J135+I135 -> 9434
F136: 3724.858 | L136: 3433.288 | M136: 9434
F137: 3724.858 | L137: 3433.288 | M137: 9434
F138: 3724.858 | L138: 3433.288 | M138: 9434
F139: 3724.858 | L139: 3433.288 | M139: 9434
F140: 3724.858 | L140: 3433.288 | M140: 9434
F141: 3724.858 | L141: 3433.288 | M141: 9434
F142: 3724.858 | L142: 3433.288 | M142: 9434
F143: 3724.858 | L143: 3433.288 | M143: 9434
F144: 3724.858 | L144: 3433.288 | M144: 9434
F145: 3724.858 | L145: 3433.288 | M145: 9434
F146: 3724.858 | L146: 3433.288 | M146: 9434
F147: 3724.858 | L147: 3433.288 | M147: 9434
F148: 3724.858 | L148: 3433.288 | M148: 9434
F149: 3724.858 | L149: 3433.288 | M149: 9434

Sheet July (hidden)
A1: =January!A1 -> 2016 | O1: Current Balance
A2: INFORMATION | D2: CASH | G2: DEBT | I2: SAVINGS | L2: TOTAL | O2: ='Model Controls'!J2 -> Discover | P2: =SUM(G5:G252)+June!P2 -> 291.57
A3: Date | B3: Description | C3: Category | D3: Expense | E3: Income | F3: Available | G3: ='Model Controls'!J2 -> Discover | H3: ='Model Controls'!J3 -> Gesa | I3: Deposit | J3: Withdral | K3: IN BANK? | L3: Spending | M3: Savings | O3: ='Model Controls'!J3 -> Gesa | P3: =SUM(H5:H252)+June!P3 -> 0
A4: July
F5: =INDEX(June!$F$5:$F$151,COUNTA(June!$F$5:$F$151))-D5+E5 -> 3724.858 | L5: =INDEX(June!$L$5:$L$151,COUNTA(June!$L$5:$L$151))-G5-H5-D5+E5 -> 3433.288 | M5: =INDEX(June!$M$5:$M$151,COUNTA(June!$M$5:$M$151))-J5+I5 -> 9434
F6: =F5-D6+E6 -> 3724.858 | L6: =L5-G6-H6-D6+E6 -> 3433.288 | M6: =M5-J6+I6 -> 9434
F7: =F6-D7+E7 -> 3724.858 | L7: =L6-G7-H7-D7+E7 -> 3433.288 | M7: =M6-J7+I7 -> 9434
F8: 3724.858 | L8: 3433.288 | M8: 9434
F9: 3724.858 | L9: 3433.288 | M9: 9434
F10: 3724.858 | L10: 3433.288 | M10: 9434
F11: 3724.858 | L11: 3433.288 | M11: 9434
F12: 3724.858 | L12: 3433.288 | M12: 9434
F13: 3724.858 | L13: 3433.288 | M13: 9434
F14: 3724.858 | L14: 3433.288 | M14: 9434
F15: 3724.858 | L15: 3433.288 | M15: 9434
F16: 3724.858 | L16: 3433.288 | M16: 9434
F17: 3724.858 | L17: 3433.288 | M17: 9434
F18: 3724.858 | L18: 3433.288 | M18: 9434
F19: 3724.858 | L19: 3433.288 | M19: 9434
F20: 3724.858 | L20: 3433.288 | M20: 9434
F21: 3724.858 | L21: 3433.288 | M21: 9434
F22: 3724.858 | L22: 3433.288 | M22: 9434
F23: 3724.858 | L23: 3433.288 | M23: 9434
F24: 3724.858 | L24: 3433.288 | M24: 9434
F25: 3724.858 | L25: 3433.288 | M25: 9434
F26: 3724.858 | L26: 3433.288 | M26: 9434
F27: 3724.858 | L27: 3433.288 | M27: 9434
F28: 3724.858 | L28: 3433.288 | M28: 9434
F29: 3724.858 | L29: 3433.288 | M29: 9434
F30: 3724.858 | L30: 3433.288 | M30: 9434
F31: 3724.858 | L31: 3433.288 | M31: 9434
F32: 3724.858 | L32: 3433.288 | M32: 9434
F33: 3724.858 | L33: 3433.288 | M33: 9434
F34: 3724.858 | L34: 3433.288 | M34: 9434
F35: 3724.858 | L35: 3433.288 | M35: 9434
F36: 3724.858 | L36: 3433.288 | M36: 9434
F37: 3724.858 | L37: 3433.288 | M37: 9434
F38: 3724.858 | L38: 3433.288 | M38: 9434
F39: 3724.858 | L39: 3433.288 | M39: 9434
F40: 3724.858 | L40: 3433.288 | M40: 9434
F41: 3724.858 | L41: 3433.288 | M41: 9434
F42: 3724.858 | L42: 3433.288 | M42: 9434
F43: 3724.858 | L43: 3433.288 | M43: 9434
F44: 3724.858 | L44: 3433.288 | M44: 9434
F45: 3724.858 | L45: 3433.288 | M45: 9434
F46: 3724.858 | L46: 3433.288 | M46: 9434
F47: 3724.858 | L47: 3433.288 | M47: 9434
F48: 3724.858 | L48: 3433.288 | M48: 9434
F49: 3724.858 | L49: 3433.288 | M49: 9434
F50: 3724.858 | L50: 3433.288 | M50: 9434
F51: 3724.858 | L51: 3433.288 | M51: 9434
F52: 3724.858 | L52: 3433.288 | M52: 9434
F53: 3724.858 | L53: 3433.288 | M53: 9434
F54: 3724.858 | L54: 3433.288 | M54: 9434
F55: 3724.858 | L55: 3433.288 | M55: 9434
F56: 3724.858 | L56: 3433.288 | M56: 9434
F57: 3724.858 | L57: 3433.288 | M57: 9434
F58: 3724.858 | L58: 3433.288 | M58: 9434
F59: 3724.858 | L59: 3433.288 | M59: 9434
F60: 3724.858 | L60: 3433.288 | M60: 9434
F61: 3724.858 | L61: 3433.288 | M61: 9434
F62: 3724.858 | L62: 3433.288 | M62: 9434
F63: 3724.858 | L63: 3433.288 | M63: 9434
F64: 3724.858 | L64: 3433.288 | M64: 9434
F65: 3724.858 | L65: 3433.288 | M65: 9434
F66: 3724.858 | L66: 3433.288 | M66: 9434
F67: 3724.858 | L67: 3433.288 | M67: 9434
F68: 3724.858 | L68: 3433.288 | M68: 9434
F69: 3724.858 | L69: 3433.288 | M69: 9434
F70: 3724.858 | L70: 3433.288 | M70: 9434
F71: =F70-D71+E71 -> 3724.858 | L71: =L70-G71-H71-D71+E71 -> 3433.288 | M71: =M70-J71+I71 -> 9434
F72: 3724.858 | L72: 3433.288 | M72: 9434
F73: 3724.858 | L73: 3433.288 | M73: 9434
F74: 3724.858 | L74: 3433.288 | M74: 9434
F75: 3724.858 | L75: 3433.288 | M75: 9434
F76: 3724.858 | L76: 3433.288 | M76: 9434
F77: 3724.858 | L77: 3433.288 | M77: 9434
F78: 3724.858 | L78: 3433.288 | M78: 9434
F79: 3724.858 | L79: 3433.288 | M79: 9434
F80: 3724.858 | L80: 3433.288 | M80: 9434
F81: 3724.858 | L81: 3433.288 | M81: 9434
F82: 3724.858 | L82: 3433.288 | M82: 9434
F83: 3724.858 | L83: 3433.288 | M83: 9434
F84: 3724.858 | L84: 3433.288 | M84: 9434
F85: 3724.858 | L85: 3433.288 | M85: 9434
F86: 3724.858 | L86: 3433.288 | M86: 9434
F87: 3724.858 | L87: 3433.288 | M87: 9434
F88: 3724.858 | L88: 3433.288 | M88: 9434
F89: 3724.858 | L89: 3433.288 | M89: 9434
F90: 3724.858 | L90: 3433.288 | M90: 9434
F91: 3724.858 | L91: 3433.288 | M91: 9434
F92: 3724.858 | L92: 3433.288 | M92: 9434
F93: 3724.858 | L93: 3433.288 | M93: 9434
F94: 3724.858 | L94: 3433.288 | M94: 9434
F95: 3724.858 | L95: 3433.288 | M95: 9434
F96: 3724.858 | L96: 3433.288 | M96: 9434
F97: 3724.858 | L97: 3433.288 | M97: 9434
F98: 3724.858 | L98: 3433.288 | M98: 9434
F99: 3724.858 | L99: 3433.288 | M99: 9434
F100: 3724.858 | L100: 3433.288 | M100: 9434
F101: 3724.858 | L101: 3433.288 | M101: 9434
F102: 3724.858 | L102: 3433.288 | M102: 9434
F103: 3724.858 | L103: 3433.288 | M103: 9434
F104: 3724.858 | L104: 3433.288 | M104: 9434
F105: 3724.858 | L105: 3433.288 | M105: 9434
F106: 3724.858 | L106: 3433.288 | M106: 9434
F107: 3724.858 | L107: 3433.288 | M107: 9434
F108: 3724.858 | L108: 3433.288 | M108: 9434
F109: 3724.858 | L109: 3433.288 | M109: 9434
F110: 3724.858 | L110: 3433.288 | M110: 9434
F111: 3724.858 | L111: 3433.288 | M111: 9434
F112: 3724.858 | L112: 3433.288 | M112: 9434
F113: 3724.858 | L113: 3433.288 | M113: 9434
F114: 3724.858 | L114: 3433.288 | M114: 9434
F115: 3724.858 | L115: 3433.288 | M115: 9434
F116: 3724.858 | L116: 3433.288 | M116: 9434
F117: 3724.858 | L117: 3433.288 | M117: 9434
F118: 3724.858 | L118: 3433.288 | M118: 9434
F119: 3724.858 | L119: 3433.288 | M119: 9434
F120: 3724.858 | L120: 3433.288 | M120: 9434
F121: 3724.858 | L121: 3433.288 | M121: 9434
F122: 3724.858 | L122: 3433.288 | M122: 9434
F123: 3724.858 | L123: 3433.288 | M123: 9434
F124: 3724.858 | L124: 3433.288 | M124: 9434
F125: 3724.858 | L125: 3433.288 | M125: 9434
F126: 3724.858 | L126: 3433.288 | M126: 9434
F127: 3724.858 | L127: 3433.288 | M127: 9434
F128: 3724.858 | L128: 3433.288 | M128: 9434
F129: 3724.858 | L129: 3433.288 | M129: 9434
F130: 3724.858 | L130: 3433.288 | M130: 9434
F131: 3724.858 | L131: 3433.288 | M131: 9434
F132: 3724.858 | L132: 3433.288 | M132: 9434
F133: 3724.858 | L133: 3433.288 | M133: 9434
F134: 3724.858 | L134: 3433.288 | M134: 9434
F135: =F134-D135+E135 -> 3724.858 | L135: =L134-G135-H135-D135+E135 -> 3433.288 | M135: =M134-J135+I135 -> 9434
F136: 3724.858 | L136: 3433.288 | M136: 9434
F137: 3724.858 | L137: 3433.288 | M137: 9434
F138: 3724.858 | L138: 3433.288 | M138: 9434
F139: 3724.858 | L139: 3433.288 | M139: 9434
F140: 3724.858 | L140: 3433.288 | M140: 9434
F141: 3724.858 | L141: 3433.288 | M141: 9434
F142: 3724.858 | L142: 3433.288 | M142: 9434
F143: 3724.858 | L143: 3433.288 | M143: 9434
F144: 3724.858 | L144: 3433.288 | M144: 9434
F145: 3724.858 | L145: 3433.288 | M145: 9434
F146: 3724.858 | L146: 3433.288 | M146: 9434
F147: 3724.858 | L147: 3433.288 | M147: 9434
F148: 3724.858 | L148: 3433.288 | M148: 9434
F149: 3724.858 | L149: 3433.288 | M149: 9434
F150: 3724.858 | L150: 3433.288 | M150: 9434

Sheet June (hidden)
A1: =January!A1 -> 2016 | O1: Current Balance
A2: INFORMATION | D2: CASH | G2: DEBT | I2: SAVINGS | L2: TOTAL | O2: ='Model Controls'!J2 -> Discover | P2: =SUM(G5:G253)+May!P2 -> 291.57
A3: Date | B3: Description | C3: Category | D3: Expense | E3: Income | F3: Available | G3: ='Model Controls'!J2 -> Discover | H3: ='Model Controls'!J3 -> Gesa | I3: Deposit | J3: Withdral | K3: IN BANK? | L3: Spending | M3: Savings | O3: ='Model Controls'!J3 -> Gesa | P3: =SUM(H5:H253)+May!P3 -> 0
A4: June
F5: =INDEX(May!$F$5:$F$151,COUNTA(May!$F$5:$F$151))-D5+E5 -> 3724.858 | L5: =INDEX(May!$L$5:$L$151,COUNTA(May!$L$5:$L$151))-G5-H5-D5+E5 -> 3433.288 | M5: =INDEX(May!$M$5:$M$151,COUNTA(May!$M$5:$M$151))-J5+I5 -> 9434
F6: =F5-D6+E6 -> 3724.858 | L6: =L5-G6-H6-D6+E6 -> 3433.288 | M6: =M5-J6+I6 -> 9434
F7: =F6-D7+E7 -> 3724.858 | L7: =L6-G7-H7-D7+E7 -> 3433.288 | M7: =M6-J7+I7 -> 9434
F8: 3724.858 | L8: 3433.288 | M8: 9434
F9: 3724.858 | L9: 3433.288 | M9: 9434
F10: 3724.858 | L10: 3433.288 | M10: 9434
F11: 3724.858 | L11: 3433.288 | M11: 9434
F12: 3724.858 | L12: 3433.288 | M12: 9434
F13: 3724.858 | L13: 3433.288 | M13: 9434
F14: 3724.858 | L14: 3433.288 | M14: 9434
F15: 3724.858 | L15: 3433.288 | M15: 9434
F16: 3724.858 | L16: 3433.288 | M16: 9434
F17: 3724.858 | L17: 3433.288 | M17: 9434
F18: 3724.858 | L18: 3433.288 | M18: 9434
F19: 3724.858 | L19: 3433.288 | M19: 9434
F20: 3724.858 | L20: 3433.288 | M20: 9434
F21: 3724.858 | L21: 3433.288 | M21: 9434
F22: 3724.858 | L22: 3433.288 | M22: 9434
F23: 3724.858 | L23: 3433.288 | M23: 9434
F24: 3724.858 | L24: 3433.288 | M24: 9434
F25: 3724.858 | L25: 3433.288 | M25: 9434
F26: 3724.858 | L26: 3433.288 | M26: 9434
F27: 3724.858 | L27: 3433.288 | M27: 9434
F28: 3724.858 | L28: 3433.288 | M28: 9434
F29: 3724.858 | L29: 3433.288 | M29: 9434
F30: 3724.858 | L30: 3433.288 | M30: 9434
F31: 3724.858 | L31: 3433.288 | M31: 9434
F32: 3724.858 | L32: 3433.288 | M32: 9434
F33: 3724.858 | L33: 3433.288 | M33: 9434
F34: 3724.858 | L34: 3433.288 | M34: 9434
F35: 3724.858 | L35: 3433.288 | M35: 9434
F36: 3724.858 | L36: 3433.288 | M36: 9434
F37: 3724.858 | L37: 3433.288 | M37: 9434
F38: 3724.858 | L38: 3433.288 | M38: 9434
F39: 3724.858 | L39: 3433.288 | M39: 9434
F40: 3724.858 | L40: 3433.288 | M40: 9434
F41: 3724.858 | L41: 3433.288 | M41: 9434
F42: 3724.858 | L42: 3433.288 | M42: 9434
F43: 3724.858 | L43: 3433.288 | M43: 9434
F44: 3724.858 | L44: 3433.288 | M44: 9434
F45: 3724.858 | L45: 3433.288 | M45: 9434
F46: 3724.858 | L46: 3433.288 | M46: 9434
F47: 3724.858 | L47: 3433.288 | M47: 9434
F48: 3724.858 | L48: 3433.288 | M48: 9434
F49: 3724.858 | L49: 3433.288 | M49: 9434
F50: 3724.858 | L50: 3433.288 | M50: 9434
F51: 3724.858 | L51: 3433.288 | M51: 9434
F52: 3724.858 | L52: 3433.288 | M52: 9434
F53: 3724.858 | L53: 3433.288 | M53: 9434
F54: 3724.858 | L54: 3433.288 | M54: 9434
F55: 3724.858 | L55: 3433.288 | M55: 9434
F56: 3724.858 | L56: 3433.288 | M56: 9434
F57: 3724.858 | L57: 3433.288 | M57: 9434
F58: 3724.858 | L58: 3433.288 | M58: 9434
F59: 3724.858 | L59: 3433.288 | M59: 9434
F60: 3724.858 | L60: 3433.288 | M60: 9434
F61: 3724.858 | L61: 3433.288 | M61: 9434
F62: 3724.858 | L62: 3433.288 | M62: 9434
F63: 3724.858 | L63: 3433.288 | M63: 9434
F64: 3724.858 | L64: 3433.288 | M64: 9434
F65: 3724.858 | L65: 3433.288 | M65: 9434
F66: 3724.858 | L66: 3433.288 | M66: 9434
F67: 3724.858 | L67: 3433.288 | M67: 9434
F68: 3724.858 | L68: 3433.288 | M68: 9434
F69: 3724.858 | L69: 3433.288 | M69: 9434
F70: 3724.858 | L70: 3433.288 | M70: 9434
F71: =F70-D71+E71 -> 3724.858 | L71: =L70-G71-H71-D71+E71 -> 3433.288 | M71: =M70-J71+I71 -> 9434
F72: 3724.858 | L72: 3433.288 | M72: 9434
F73: 3724.858 | L73: 3433.288 | M73: 9434
F74: 3724.858 | L74: 3433.288 | M74: 9434
F75: 3724.858 | L75: 3433.288 | M75: 9434
F76: 3724.858 | L76: 3433.288 | M76: 9434
F77: 3724.858 | L77: 3433.288 | M77: 9434
F78: 3724.858 | L78: 3433.288 | M78: 9434
F79: 3724.858 | L79: 3433.288 | M79: 9434
F80: 3724.858 | L80: 3433.288 | M80: 9434
F81: 3724.858 | L81: 3433.288 | M81: 9434
F82: 3724.858 | L82: 3433.288 | M82: 9434
F83: 3724.858 | L83: 3433.288 | M83: 9434
F84: 3724.858 | L84: 3433.288 | M84: 9434
F85: 3724.858 | L85: 3433.288 | M85: 9434
F86: 3724.858 | L86: 3433.288 | M86: 9434
F87: 3724.858 | L87: 3433.288 | M87: 9434
F88: 3724.858 | L88: 3433.288 | M88: 9434
F89: 3724.858 | L89: 3433.288 | M89: 9434
F90: 3724.858 | L90: 3433.288 | M90: 9434
F91: 3724.858 | L91: 3433.288 | M91: 9434
F92: 3724.858 | L92: 3433.288 | M92: 9434
F93: 3724.858 | L93: 3433.288 | M93: 9434
F94: 3724.858 | L94: 3433.288 | M94: 9434
F95: 3724.858 | L95: 3433.288 | M95: 9434
F96: 3724.858 | L96: 3433.288 | M96: 9434
F97: 3724.858 | L97: 3433.288 | M97: 9434
F98: 3724.858 | L98: 3433.288 | M98: 9434
F99: 3724.858 | L99: 3433.288 | M99: 9434
F100: 3724.858 | L100: 3433.288 | M100: 9434
F101: 3724.858 | L101: 3433.288 | M101: 9434
F102: 3724.858 | L102: 3433.288 | M102: 9434
F103: 3724.858 | L103: 3433.288 | M103: 9434
F104: 3724.858 | L104: 3433.288 | M104: 9434
F105: 3724.858 | L105: 3433.288 | M105: 9434
F106: 3724.858 | L106: 3433.288 | M106: 9434
F107: 3724.858 | L107: 3433.288 | M107: 9434
F108: 3724.858 | L108: 3433.288 | M108: 9434
F109: 3724.858 | L109: 3433.288 | M109: 9434
F110: 3724.858 | L110: 3433.288 | M110: 9434
F111: 3724.858 | L111: 3433.288 | M111: 9434
F112: 3724.858 | L112: 3433.288 | M112: 9434
F113: 3724.858 | L113: 3433.288 | M113: 9434
F114: 3724.858 | L114: 3433.288 | M114: 9434
F115: 3724.858 | L115: 3433.288 | M115: 9434
F116: 3724.858 | L116: 3433.288 | M116: 9434
F117: 3724.858 | L117: 3433.288 | M117: 9434
F118: 3724.858 | L118: 3433.288 | M118: 9434
F119: 3724.858 | L119: 3433.288 | M119: 9434
F120: 3724.858 | L120: 3433.288 | M120: 9434
F121: 3724.858 | L121: 3433.288 | M121: 9434
F122: 3724.858 | L122: 3433.288 | M122: 9434
F123: 3724.858 | L123: 3433.288 | M123: 9434
F124: 3724.858 | L124: 3433.288 | M124: 9434
F125: 3724.858 | L125: 3433.288 | M125: 9434
F126: 3724.858 | L126: 3433.288 | M126: 9434
F127: 3724.858 | L127: 3433.288 | M127: 9434
F128: 3724.858 | L128: 3433.288 | M128: 9434
F129: 3724.858 | L129: 3433.288 | M129: 9434
F130: 3724.858 | L130: 3433.288 | M130: 9434
F131: 3724.858 | L131: 3433.288 | M131: 9434
F132: 3724.858 | L132: 3433.288 | M132: 9434
F133: 3724.858 | L133: 3433.288 | M133: 9434
F134: 3724.858 | L134: 3433.288 | M134: 9434
F135: =F134-D135+E135 -> 3724.858 | L135: =L134-G135-H135-D135+E135 -> 3433.288 | M135: =M134-J135+I135 -> 9434
F136: 3724.858 | L136: 3433.288 | M136: 9434
F137: 3724.858 | L137: 3433.288 | M137: 9434
F138: 3724.858 | L138: 3433.288 | M138: 9434
F139: 3724.858 | L139: 3433.288 | M139: 9434
F140: 3724.858 | L140: 3433.288 | M140: 9434
F141: 3724.858 | L141: 3433.288 | M141: 9434
F142: 3724.858 | L142: 3433.288 | M142: 9434
F143: 3724.858 | L143: 3433.288 | M143: 9434
F144: 3724.858 | L144: 3433.288 | M144: 9434
F145: 3724.858 | L145: 3433.288 | M145: 9434
F146: 3724.858 | L146: 3433.288 | M146: 9434
F147: 3724.858 | L147: 3433.288 | M147: 9434
F148: 3724.858 | L148: 3433.288 | M148: 9434
F149: 3724.858 | L149: 3433.288 | M149: 9434
F150: 3724.858 | L150: 3433.288 | M150: 9434
F151: 3724.858 | L151: 3433.288 | M151: 9434

Sheet May (hidden)
A1: =January!A1 -> 2016 | O1: Current Balance
A2: INFORMATION | D2: CASH | G2: DEBT | I2: SAVINGS | L2: TOTAL | O2: ='Model Controls'!J2 -> Discover | P2: =SUM(G5:G253)+April!P2 -> 291.57
A3: Date | B3: Description | C3: Category | D3: Expense | E3: Income | F3: Available | G3: ='Model Controls'!J2 -> Discover | H3: ='Model Controls'!J3 -> Gesa | I3: Deposit | J3: Withdral | K3: IN BANK? | L3: Spending | M3: Savings | O3: ='Model Controls'!J3 -> Gesa | P3: =SUM(H5:H253)+April!P3 -> 0
A4: May
F5: =INDEX(April!$F$5:$F$151,COUNTA(April!$F$5:$F$151))-D5+E5 -> 3724.858 | L5: =INDEX(April!$L$5:$L$151,COUNTA(April!$L$5:$L$151))-G5-H5-D5+E5 -> 3433.288 | M5: =INDEX(April!$M$5:$M$151,COUNTA(April!$M$5:$M$151))-J5+I5 -> 9434
F6: =F5-D6+E6 -> 3724.858 | L6: =L5-G6-H6-D6+E6 -> 3433.288 | M6: =M5-J6+I6 -> 9434
F7: =F6-D7+E7 -> 3724.858 | L7: 3433.288 | M7: 9434
F8: 3724.858 | L8: 3433.288 | M8: 9434
F9: 3724.858 | L9: 3433.288 | M9: 9434
F10: 3724.858 | L10: 3433.288 | M10: 9434
F11: 3724.858 | L11: 3433.288 | M11: 9434
F12: 3724.858 | L12: 3433.288 | M12: 9434
F13: 3724.858 | L13: 3433.288 | M13: 9434
F14: 3724.858 | L14: 3433.288 | M14: 9434
F15: 3724.858 | L15: 3433.288 | M15: 9434
F16: 3724.858 | L16: 3433.288 | M16: 9434
F17: 3724.858 | L17: 3433.288 | M17: 9434
F18: 3724.858 | L18: 3433.288 | M18: 9434
F19: 3724.858 | L19: 3433.288 | M19: 9434
F20: 3724.858 | L20: 3433.288 | M20: 9434
F21: 3724.858 | L21: 3433.288 | M21: 9434
F22: 3724.858 | L22: 3433.288 | M22: 9434
F23: 3724.858 | L23: 3433.288 | M23: 9434
F24: 3724.858 | L24: 3433.288 | M24: 9434
F25: 3724.858 | L25: 3433.288 | M25: 9434
F26: 3724.858 | L26: 3433.288 | M26: 9434
F27: 3724.858 | L27: 3433.288 | M27: 9434
F28: 3724.858 | L28: 3433.288 | M28: 9434
F29: 3724.858 | L29: 3433.288 | M29: 9434
F30: 3724.858 | L30: 3433.288 | M30: 9434
F31: 3724.858 | L31: 3433.288 | M31: 9434
F32: 3724.858 | L32: 3433.288 | M32: 9434
F33: 3724.858 | L33: 3433.288 | M33: 9434
F34: 3724.858 | L34: 3433.288 | M34: 9434
F35: 3724.858 | L35: 3433.288 | M35: 9434
F36: 3724.858 | L36: 3433.288 | M36: 9434
F37: 3724.858 | L37: 3433.288 | M37: 9434
F38: 3724.858 | L38: =L37-G38-H38-D38+E38 -> 3433.288 | M38: =M37-J38+I38 -> 9434
F39: 3724.858 | L39: 3433.288 | M39: 9434
F40: 3724.858 | L40: 3433.288 | M40: 9434
F41: 3724.858 | L41: 3433.288 | M41: 9434
F42: 3724.858 | L42: 3433.288 | M42: 9434
F43: 3724.858 | L43: 3433.288 | M43: 9434
F44: 3724.858 | L44: 3433.288 | M44: 9434
F45: 3724.858 | L45: 3433.288 | M45: 9434
F46: 3724.858 | L46: 3433.288 | M46: 9434
F47: 3724.858 | L47: 3433.288 | M47: 9434
F48: 3724.858 | L48: 3433.288 | M48: 9434
F49: 3724.858 | L49: 3433.288 | M49: 9434
F50: 3724.858 | L50: 3433.288 | M50: 9434
F51: 3724.858 | L51: 3433.288 | M51: 9434
F52: 3724.858 | L52: 3433.288 | M52: 9434
F53: 3724.858 | L53: 3433.288 | M53: 9434
F54: 3724.858 | L54: 3433.288 | M54: 9434
F55: 3724.858 | L55: 3433.288 | M55: 9434
F56: 3724.858 | L56: 3433.288 | M56: 9434
F57: 3724.858 | L57: 3433.288 | M57: 9434
F58: 3724.858 | L58: 3433.288 | M58: 9434
F59: 3724.858 | L59: 3433.288 | M59: 9434
F60: 3724.858 | L60: 3433.288 | M60: 9434
F61: 3724.858 | L61: 3433.288 | M61: 9434
F62: 3724.858 | L62: 3433.288 | M62: 9434
F63: 3724.858 | L63: 3433.288 | M63: 9434
F64: 3724.858 | L64: 3433.288 | M64: 9434
F65: 3724.858 | L65: 3433.288 | M65: 9434
F66: 3724.858 | L66: 3433.288 | M66: 9434
F67: 3724.858 | L67: 3433.288 | M67: 9434
F68: 3724.858 | L68: 3433.288 | M68: 9434
F69: 3724.858 | L69: 3433.288 | M69: 9434
F70: 3724.858 | L70: =L69-G70-H70-D70+E70 -> 3433.288 | M70: =M69-J70+I70 -> 9434
F71: =F70-D71+E71 -> 3724.858 | L71: 3433.288 | M71: 9434
F72: 3724.858 | L72: 3433.288 | M72: 9434
F73: 3724.858 | L73: 3433.288 | M73: 9434
F74: 3724.858 | L74: 3433.288 | M74: 9434
F75: 3724.858 | L75: 3433.288 | M75: 9434
F76: 3724.858 | L76: 3433.288 | M76: 9434
F77: 3724.858 | L77: 3433.288 | M77: 9434
F78: 3724.858 | L78: 3433.288 | M78: 9434
F79: 3724.858 | L79: 3433.288 | M79: 9434
F80: 3724.858 | L80: 3433.288 | M80: 9434
F81: 3724.858 | L81: 3433.288 | M81: 9434
F82: 3724.858 | L82: 3433.288 | M82: 9434
F83: 3724.858 | L83: 3433.288 | M83: 9434
F84: 3724.858 | L84: 3433.288 | M84: 9434
F85: 3724.858 | L85: 3433.288 | M85: 9434
F86: 3724.858 | L86: 3433.288 | M86: 9434
F87: 3724.858 | L87: 3433.288 | M87: 9434
F88: 3724.858 | L88: 3433.288 | M88: 9434
F89: 3724.858 | L89: 3433.288 | M89: 9434
F90: 3724.858 | L90: 3433.288 | M90: 9434
F91: 3724.858 | L91: 3433.288 | M91: 9434
F92: 3724.858 | L92: 3433.288 | M92: 9434
F93: 3724.858 | L93: 3433.288 | M93: 9434
F94: 3724.858 | L94: 3433.288 | M94: 9434
F95: 3724.858 | L95: 3433.288 | M95: 9434
F96: 3724.858 | L96: 3433.288 | M96: 9434
F97: 3724.858 | L97: 3433.288 | M97: 9434
F98: 3724.858 | L98: 3433.288 | M98: 9434
F99: 3724.858 | L99: 3433.288 | M99: 9434
F100: 3724.858 | L100: 3433.288 | M100: 9434
F101: 3724.858 | L101: 3433.288 | M101: 9434
F102: 3724.858 | L102: =L101-G102-H102-D102+E102 -> 3433.288 | M102: =M101-J102+I102 -> 9434
F103: 3724.858 | L103: 3433.288 | M103: 9434
F104: 3724.858 | L104: 3433.288 | M104: 9434
F105: 3724.858 | L105: 3433.288 | M105: 9434
F106: 3724.858 | L106: 3433.288 | M106: 9434
F107: 3724.858 | L107: 3433.288 | M107: 9434
F108: 3724.858 | L108: 3433.288 | M108: 9434
F109: 3724.858 | L109: 3433.288 | M109: 9434
F110: 3724.858 | L110: 3433.288 | M110: 9434
F111: 3724.858 | L111: 3433.288 | M111: 9434
F112: 3724.858 | L112: 3433.288 | M112: 9434
F113: 3724.858 | L113: 3433.288 | M113: 9434
F114: 3724.858 | L114: 3433.288 | M114: 9434
F115: 3724.858 | L115: 3433.288 | M115: 9434
F116: 3724.858 | L116: 3433.288 | M116: 9434
F117: 3724.858 | L117: 3433.288 | M117: 9434
F118: 3724.858 | L118: 3433.288 | M118: 9434
F119: 3724.858 | L119: 3433.288 | M119: 9434
F120: 3724.858 | L120: 3433.288 | M120: 9434
F121: 3724.858 | L121: 3433.288 | M121: 9434
F122: 3724.858 | L122: 3433.288 | M122: 9434
F123: 3724.858 | L123: 3433.288 | M123: 9434
F124: 3724.858 | L124: 3433.288 | M124: 9434
F125: 3724.858 | L125: 3433.288 | M125: 9434
F126: 3724.858 | L126: 3433.288 | M126: 9434
F127: 3724.858 | L127: 3433.288 | M127: 9434
F128: 3724.858 | L128: 3433.288 | M128: 9434
F129: 3724.858 | L129: 3433.288 | M129: 9434
F130: 3724.858 | L130: 3433.288 | M130: 9434
F131: 3724.858 | L131: 3433.288 | M131: 9434
F132: 3724.858 | L132: 3433.288 | M132: 9434
F133: 3724.858 | L133: 3433.288 | M133: 9434
F134: 3724.858 | L134: =L133-G134-H134-D134+E134 -> 3433.288 | M134: =M133-J134+I134 -> 9434
F135: =F134-D135+E135 -> 3724.858 | L135: 3433.288 | M135: 9434
F136: 3724.858 | L136: 3433.288 | M136: 9434
F137: 3724.858 | L137: 3433.288 | M137: 9434
F138: 3724.858 | L138: 3433.288 | M138: 9434
F139: 3724.858 | L139: 3433.288 | M139: 9434
F140: 3724.858 | L140: 3433.288 | M140: 9434
F141: 3724.858 | L141: 3433.288 | M141: 9434
F142: 3724.858 | L142: 3433.288 | M142: 9434
F143: 3724.858 | L143: 3433.288 | M143: 9434
F144: 3724.858 | L144: 3433.288 | M144: 9434
F145: 3724.858 | L145: 3433.288 | M145: 9434
F146: 3724.858 | L146: 3433.288 | M146: 9434
F147: 3724.858 | L147: 3433.288 | M147: 9434
F148: 3724.858 | L148: 3433.288 | M148: 9434
F149: 3724.858 | L149: 3433.288 | M149: 9434
F150: 3724.858 | L150: 3433.288 | M150: 9434
F151: 3724.858 | L151: 3433.288 | M151: 9434

Sheet April
A1: =January!A1 -> 2016 | O1: Current Balance
A2: INFORMATION | D2: CASH | G2: DEBT | I2: SAVINGS | L2: TOTAL | O2: ='Model Controls'!J2 -> Discover | P2: =SUM(G5:G253)+March!P2 -> 291.57
A3: Date | B3: Description | C3: Category | D3: Expense | E3: Income | F3: Available | G3: ='Model Controls'!J2 -> Discover | H3: ='Model Controls'!J3 -> Gesa | I3: Deposit | J3: Withdral | K3: IN BANK? | L3: Spending | M3: Savings | O3: ='Model Controls'!J3 -> Gesa | P3: =SUM(H5:H253)+March!P3 -> 0
A4: April
A5: 2016-04-01 | B5: April Wyview | C5: Rent | F5: =INDEX(March!$F$5:$F$151,COUNTA(March!$F$5:$F$151))-D5+E5 -> 3144.068 | G5: 745 | L5: =INDEX(March!$L$5:$L$151,COUNTA(March!$L$5:$L$151))-G5-H5-D5+E5 -> 2281.338 | M5: =INDEX(March!$M$5:$M$151,COUNTA(March!$M$5:$M$151))-J5+I5 -> 8981
A6: 2016-04-01 | B6: Income | C6: MGF | E6: 448.63 | F6: =F5-D6+E6 -> 3592.698 | I6: 112 | L6: =L5-G6-H6-D6+E6 -> 2729.968 | M6: =M5-J6+I6 -> 9093
A7: 2016-04-01 | B7: Tithing CHK # Online | C7: Church | D7: 56.06 | F7: =F6-D7+E7 -> 3536.638 | L7: =L6-G7-H7-D7+E7 -> 2673.908 | M7: =M6-J7+I7 -> 9093
A8: 2016-04-01 | B8: Income | C8: BYU | E8: 596.99 | F8: 4133.628 | I8: 149 | L8: 3270.898 | M8: 9242
A9: 2016-04-01 | B9: Tithing CHK # Online | C9: Church | D9: 74.6 | F9: 4059.028 | L9: 3196.298 | M9: 9242
A10: 2016-04-03 | B10: LabCorp Blood Test | C10: Medical | F10: 4059.028 | G10: 9.31 | L10: 3186.988 | M10: 9242
A11: 2016-04-03 | B11: Chili's | C11: Eat Out | F11: 4059.028 | G11: 14.48 | L11: 3172.508 | M11: 9242
A12: 2016-04-03 | B12: Income | C12: TRH | E12: 199 | F12: 4258.028 | I12: 50 | L12: 3371.508 | M12: 9292
A13: 2016-04-03 | B13: Tithing CHK # Online | C13: Church | D13: 24.9 | F13: 4233.128 | L13: 3346.608 | M13: 9292
A14: 2016-04-04 | B14: Moo-Ya's | C14: Eat Out | F14: 4233.128 | G14: 12.36 | L14: 3334.248 | M14: 9292
A15: 2016-04-04 | B15: Discover Payment | C15: Credit Card | D15: 877.21 | F15: 3355.918 | G15: -877.21 | L15: 3334.248 | M15: 9292
A16: 2016-04-05 | B16: Costco Gas | C16: Transportation | D16: 19.65 | F16: 3336.268 | L16: 3314.598 | M16: 9292
A17: 2016-04-05 | B17: Income | C17: TRH | E17: 93 | F17: 3429.268 | I17: 23 | K17: N | L17: 3407.598 | M17: 9315
A18: 2016-04-05 | B18: Tithing CHK # Online | C18: Church | D18: 11.6 | F18: 3417.668 | L18: 3395.998 | M18: 9315
A19: 2016-04-06 | B19: Costco Run! | C19: Food | D19: 70.51 | F19: 3347.158 | L19: 3325.488 | M19: 9315
A20: 2016-04-06 | B20: Walmart | C20: Food | F20: 3347.158 | G20: 58.57 | L20: 3266.918 | M20: 9315
A21: 2016-04-06 | B21: Gun Cleaning Kit | C21: Misc | F21: 3347.158 | G21: 45 | L21: 3221.918 | M21: 9315
A22: 2016-04-07 | B22: Haley Bake Set | C22: Misc | F22: 3347.158 | G22: 28.2 | L22: 3193.718 | M22: 9315
A23: 2016-04-07 | B23: Haley Bridal Shower Dessert | C23: Misc | F23: 3347.158 | G23: 23.47 | L23: 3170.248 | M23: 9315
A24: 2016-04-07 | B24: Michael's Dipping Tools | C24: Household | F24: 3347.158 | G24: 7.04 | L24: 3163.208 | M24: 9315
A25: 2016-04-07 | B25: Chocolate Sprinkles | C25: Food | F25: 3347.158 | G25: 1.84 | L25: 3161.368 | M25: 9315
A26: 2016-04-07 | B26: Income | C26: TRH | E26: 102 | F26: 3449.158 | I26: 25 | K26: N | L26: 3263.368 | M26: 9340
A27: 2016-04-07 | B27: Tithing (Unpaid) | C27: Church | D27: 12.7 | F27: 3436.458 | L27: 3250.668 | M27: 9340
A28: 2016-04-09 | B28: Target Wrapping Paper | C28: Misc | F28: 3436.458 | G28: 10.67 | L28: 3239.998 | M28: 9340
A29: 2016-04-09 | B29: Income | C29: TRH | E29: 114 | F29: 3550.458 | I29: 29 | K29: N | L29: 3353.998 | M29: 9369
A30: 2016-04-09 | B30: Tithing (Unpaid) | C30: Church | D30: 14.3 | F30: 3536.158 | L30: 3339.698 | M30: 9369
A31: 2016-04-09 | B31: McDonald's EQ | C31: Eat Out | F31: 3536.158 | G31: 4.08 | L31: 3335.618 | M31: 9369
A32: 2016-04-09 | B32: Walmart Food | C32: Food | F32: 3536.158 | G32: 15.24 | L32: 3320.378 | M32: 9369
A33: 2016-04-09 | B33: Walmart Face Wipes | C33: Cosmetics | F33: 3536.158 | G33: 4 | L33: 3316.378 | M33: 9369
A34: 2016-04-09 | B34: Income | C34: TRH | E34: 186 | F34: 3722.158 | I34: 46 | K34: N | L34: 3502.378 | M34: 9415
A35: 2016-04-09 | B35: Tithing (Unpaid) | C35: Church | D35: 23.2 | F35: 3698.958 | L35: 3479.178 | M35: 9415
A36: 2016-04-10 | B36: Kylie's Concert | C36: Entertainment | D36: 30 | F36: 3668.958 | L36: 3449.178 | M36: 9415
A37: 2016-04-10 | B37: Income | C37: TRH | E37: 77 | F37: 3745.958 | I37: 19 | K37: N | L37: 3526.178 | M37: 9434
A38: 2016-04-10 | B38: Tithing (Unpaid) | C38: Church | D38: 9.6 | F38: 3736.358 | L38: 3516.578 | M38: 9434
A39: 2016-04-11 | B39: Walmart Razors | C39: Cosmetics | F39: 3736.358 | G39: 33.03 | L39: 3483.548 | M39: 9434
A40: 2016-04-12 | B40: Papa John's | C40: Eat Out | F40: 3736.358 | G40: 10.76 | L40: 3472.788 | M40: 9434
A41: 2016-04-12 | B41: Stitch Fix | C41: Clothes | F41: 3736.358 | G41: 28 | L41: 3444.788 | M41: 9434
A42: 2016-04-12 | B42: Costco Gas for Rental | C42: Transportation | D42: 11.5 | F42: 3724.858 | L42: 3433.288 | M42: 9434
F43: 3724.858 | L43: 3433.288 | M43: 9434
F44: 3724.858 | L44: 3433.288 | M44: 9434
F45: 3724.858 | L45: 3433.288 | M45: 9434
F46: 3724.858 | L46: 3433.288 | M46: 9434
F47: 3724.858 | L47: 3433.288 | M47: 9434
F48: 3724.858 | L48: 3433.288 | M48: 9434
F49: 3724.858 | L49: 3433.288 | M49: 9434
F50: 3724.858 | L50: 3433.288 | M50: 9434
F51: 3724.858 | L51: 3433.288 | M51: 9434
F52: 3724.858 | L52: 3433.288 | M52: 9434
F53: 3724.858 | L53: 3433.288 | M53: 9434
F54: 3724.858 | L54: 3433.288 | M54: 9434
F55: 3724.858 | L55: 3433.288 | M55: 9434
F56: 3724.858 | L56: 3433.288 | M56: 9434
F57: 3724.858 | L57: 3433.288 | M57: 9434
F58: 3724.858 | L58: 3433.288 | M58: 9434
F59: 3724.858 | L59: 3433.288 | M59: 9434
F60: 3724.858 | L60: 3433.288 | M60: 9434
F61: 3724.858 | L61: 3433.288 | M61: 9434
F62: 3724.858 | L62: 3433.288 | M62: 9434
F63: 3724.858 | L63: 3433.288 | M63: 9434
F64: 3724.858 | L64: 3433.288 | M64: 9434
F65: 3724.858 | L65: 3433.288 | M65: 9434
F66: 3724.858 | L66: 3433.288 | M66: 9434
F67: 3724.858 | L67: 3433.288 | M67: 9434
F68: 3724.858 | L68: 3433.288 | M68: 9434
F69: 3724.858 | L69: 3433.288 | M69: 9434
F70: 3724.858 | L70: 3433.288 | M70: 9434
F71: =F70-D71+E71 -> 3724.858 | L71: =L70-G71-H71-D71+E71 -> 3433.288 | M71: =M70-J71+I71 -> 9434
F72: 3724.858 | L72: 3433.288 | M72: 9434
F73: 3724.858 | L73: 3433.288 | M73: 9434
F74: 3724.858 | L74: 3433.288 | M74: 9434
F75: 3724.858 | L75: 3433.288 | M75: 9434
F76: 3724.858 | L76: 3433.288 | M76: 9434
F77: 3724.858 | L77: 3433.288 | M77: 9434
F78: 3724.858 | L78: 3433.288 | M78: 9434
F79: 3724.858 | L79: 3433.288 | M79: 9434
F80: 3724.858 | L80: 3433.288 | M80: 9434
F81: 3724.858 | L81: 3433.288 | M81: 9434
F82: 3724.858 | L82: 3433.288 | M82: 9434
F83: 3724.858 | L83: 3433.288 | M83: 9434
F84: 3724.858 | L84: 3433.288 | M84: 9434
F85: 3724.858 | L85: 3433.288 | M85: 9434
F86: 3724.858 | L86: 3433.288 | M86: 9434
F87: 3724.858 | L87: 3433.288 | M87: 9434
F88: 3724.858 | L88: 3433.288 | M88: 9434
F89: 3724.858 | L89: 3433.288 | M89: 9434
F90: 3724.858 | L90: 3433.288 | M90: 9434
F91: 3724.858 | L91: 3433.288 | M91: 9434
F92: 3724.858 | L92: 3433.288 | M92: 9434
F93: 3724.858 | L93: 3433.288 | M93: 9434
F94: 3724.858 | L94: 3433.288 | M94: 9434
F95: 3724.858 | L95: 3433.288 | M95: 9434
F96: 3724.858 | L96: 3433.288 | M96: 9434
F97: 3724.858 | L97: 3433.288 | M97: 9434
F98: 3724.858 | L98: 3433.288 | M98: 9434
F99: 3724.858 | L99: 3433.288 | M99: 9434
F100: 3724.858 | L100: 3433.288 | M100: 9434
F101: 3724.858 | L101: 3433.288 | M101: 9434
F102: 3724.858 | L102: 3433.288 | M102: 9434
F103: 3724.858 | L103: 3433.288 | M103: 9434
F104: 3724.858 | L104: 3433.288 | M104: 9434
F105: 3724.858 | L105: 3433.288 | M105: 9434
F106: 3724.858 | L106: 3433.288 | M106: 9434
F107: 3724.858 | L107: 3433.288 | M107: 9434
F108: 3724.858 | L108: 3433.288 | M108: 9434
F109: 3724.858 | L109: 3433.288 | M109: 9434
F110: 3724.858 | L110: 3433.288 | M110: 9434
F111: 3724.858 | L111: 3433.288 | M111: 9434
F112: 3724.858 | L112: 3433.288 | M112: 9434
F113: 3724.858 | L113: 3433.288 | M113: 9434
F114: 3724.858 | L114: 3433.288 | M114: 9434
F115: 3724.858 | L115: 3433.288 | M115: 9434
F116: 3724.858 | L116: 3433.288 | M116: 9434
F117: 3724.858 | L117: 3433.288 | M117: 9434
F118: 3724.858 | L118: 3433.288 | M118: 9434
F119: 3724.858 | L119: 3433.288 | M119: 9434
F120: 3724.858 | L120: 3433.288 | M120: 9434
F121: 3724.858 | L121: 3433.288 | M121: 9434
F122: 3724.858 | L122: 3433.288 | M122: 9434
F123: 3724.858 | L123: 3433.288 | M123: 9434
F124: 3724.858 | L124: 3433.288 | M124: 9434
F125: 3724.858 | L125: 3433.288 | M125: 9434
F126: 3724.858 | L126: 3433.288 | M126: 9434
F127: 3724.858 | L127: 3433.288 | M127: 9434
F128: 3724.858 | L128: 3433.288 | M128: 9434
F129: 3724.858 | L129: 3433.288 | M129: 9434
F130: 3724.858 | L130: 3433.288 | M130: 9434
F131: 3724.858 | L131: 3433.288 | M131: 9434
F132: 3724.858 | L132: 3433.288 | M132: 9434
F133: 3724.858 | L133: 3433.288 | M133: 9434
F134: 3724.858 | L134: 3433.288 | M134: 9434
F135: =F134-D135+E135 -> 3724.858 | L135: =L134-G135-H135-D135+E135 -> 3433.288 | M135: =M134-J135+I135 -> 9434
F136: 3724.858 | L136: 3433.288 | M136: 9434
F137: 3724.858 | L137: 3433.288 | M137: 9434
F138: 3724.858 | L138: 3433.288 | M138: 9434
F139: 3724.858 | L139: 3433.288 | M139: 9434
F140: 3724.858 | L140: 3433.288 | M140: 9434
F141: 3724.858 | L141: 3433.288 | M141: 9434
F142: 3724.858 | L142: 3433.288 | M142: 9434
F143: 3724.858 | L143: 3433.288 | M143: 9434
F144: 3724.858 | L144: 3433.288 | M144: 9434
F145: 3724.858 | L145: 3433.288 | M145: 9434
F146: 3724.858 | L146: 3433.288 | M146: 9434
F147: 3724.858 | L147: 3433.288 | M147: 9434
F148: 3724.858 | L148: 3433.288 | M148: 9434
F149: 3724.858 | L149: 3433.288 | M149: 9434
F150: 3724.858 | L150: 3433.288 | M150: 9434
F151: 3724.858 | L151: 3433.288 | M151: 9434

Sheet March
A1: =January!A1 -> 2016 | O1: Current Balance
A2: INFORMATION | D2: CASH | G2: DEBT | I2: SAVINGS | L2: TOTAL | O2: ='Model Controls'!J2 -> Discover | P2: =SUM(G5:G253)+February!P2 -> 117.73
A3: Date | B3: Description | C3: Category | D3: Expense | E3: Income | F3: Available | G3: ='Model Controls'!J2 -> Discover | H3: ='Model Controls'!J3 -> Gesa | I3: Deposit | J3: Withdral | K3: IN BANK? | L3: Spending | M3: Savings | O3: ='Model Controls'!J3 -> Gesa | P3: =SUM(H5:H253)+February!P3 -> 0
A4: March
A5: 2016-03-01 | B5: Discover | C5: Credit Card | D5: 183.2 | F5: =INDEX(February!$F$5:$F$151,COUNTA(February!$F$5:$F$151))-D5+E5 -> 1864.458 | G5: -183.2 | L5: =INDEX(February!$L$5:$L$151,COUNTA(February!$L$5:$L$151))-G5-H5-D5+E5 -> 1697.218 | M5: =INDEX(February!$M$5:$M$151,COUNTA(February!$M$5:$M$151))-J5+I5 -> 7628
A6: 2016-03-01 | B6: Rent | C6: Rent | F6: =F5-D6+E6 -> 1864.458 | G6: 745 | L6: =L5-D6-G6-H6+E6 -> 952.218 | M6: =M5+I6-J6 -> 7628
A7: 2016-03-01 | B7: Income | C7: TRH | E7: 47 | F7: =F6-D7+E7 -> 1911.458 | I7: 12 | L7: =L6-D7-G7-H7+E7 -> 999.218 | M7: =M6+I7-J7 -> 7640
A8: 2016-03-01 | B8: Tithing CHK # Online | C8: Church | D8: 5.9 | F8: 1905.558 | L8: 993.318 | M8: 7640
A9: 2016-03-03 | B9: Discover | C9: Credit Card | D9: 167.24 | F9: 1738.318 | G9: -167.24 | L9: 993.318 | M9: 7640
A10: 2016-03-03 | B10: Income | C10: MGF | E10: 243.75 | F10: 1982.068 | I10: 61 | L10: 1237.068 | M10: 7701
A11: 2016-03-03 | B11: Tithing CHK # Online | C11: Church | D11: 30.48 | F11: 1951.588 | L11: 1206.588 | M11: 7701
A12: 2016-03-03 | B12: Creamery | C12: Food | F12: 1951.588 | G12: 2.06 | L12: 1204.528 | M12: 7701
A13: 2016-03-03 | B13: In N Out | C13: Eat Out | F13: 1951.588 | G13: 7.23 | L13: 1197.298 | M13: 7701
A14: 2016-03-03 | B14: Income | C14: TRH | E14: 75 | F14: 2026.588 | I14: 19 | L14: 1272.298 | M14: 7720
A15: 2016-03-03 | B15: Tithing CHK # Online | C15: Church | D15: 9.4 | F15: 2017.188 | L15: 1262.898 | M15: 7720
A16: 2016-03-04 | B16: Income | C16: BYU | E16: 501.87 | F16: 2519.058 | I16: 125 | L16: 1764.768 | M16: 7845
A17: 2016-03-04 | B17: Tithing CHK # Online | C17: Church | D17: 62.69 | F17: 2456.368 | L17: 1702.078 | M17: 7845
A18: 2016-03-04 | B18: Income | C18: Misc | E18: 48 | F18: 2504.368 | I18: 425 | L18: 1750.078 | M18: 8270
A19: 2016-03-04 | B19: Tithing CHK # Online | C19: Church | D19: 47.3 | F19: 2457.068 | L19: 1702.778 | M19: 8270
A20: 2016-03-04 | B20: Cougar Cash | C20: School | D20: 5 | F20: 2452.068 | L20: 1697.778 | M20: 8270
A21: 2016-03-04 | B21: Income | C21: TRH | E21: 92 | F21: 2544.068 | I21: 23 | L21: 1789.778 | M21: 8293
A22: 2016-03-04 | B22: Tithing CHK # Online Online | C22: Church | D22: 11.5 | F22: 2532.568 | L22: 1778.278 | M22: 8293
A23: 2016-03-04 | B23: Discover | C23: Credit Card | D23: 745 | F23: 1787.568 | G23: -745 | L23: 1778.278 | M23: 8293
A24: 2016-03-05 | B24: Income | C24: TRH | E24: 38 | F24: 1825.568 | I24: 9 | L24: 1816.278 | M24: 8302
A25: 2016-03-05 | B25: Tithing CHK # Online Online | C25: Church | D25: 4.7 | F25: 1820.868 | L25: 1811.578 | M25: 8302
A26: 2016-03-05 | B26: Red Robin | C26: Eat Out | F26: 1820.868 | G26: 28.61 | L26: 1782.968 | M26: 8302
A27: 2016-03-06 | B27: Income | C27: TRH | E27: 74 | F27: 1894.868 | I27: 19 | L27: 1856.968 | M27: 8321
A28: 2016-03-06 | B28: Tithing CHK # Online Online | C28: Church | D28: 9.3 | F28: 1885.568 | L28: 1847.668 | M28: 8321
A29: 2016-03-07 | B29: Costco | C29: Eat Out | D29: 10.16 | F29: 1875.408 | L29: 1837.508 | M29: 8321
A30: 2016-03-07 | B30: Costco | C30: Food | D30: 87.74 | F30: 1787.668 | L30: 1749.768 | M30: 8321
A31: 2016-03-07 | B31: Walmart | C31: Food | F31: 1787.668 | G31: 58.48 | L31: 1691.288 | M31: 8321
A32: 2016-03-08 | B32: Testing Center Fee | C32: School | F32: 1787.668 | G32: 5 | L32: 1686.288 | M32: 8321
A33: 2016-03-08 | B33: Income | C33: TRH | E33: 60 | F33: 1847.668 | I33: 15 | L33: 1746.288 | M33: 8336
A34: 2016-03-08 | B34: Tithing CHK # Online | C34: Church | D34: 7.5 | F34: 1840.168 | L34: 1738.788 | M34: 8336
A35: 2016-03-09 | B35: Chiles | C35: Eat Out | F35: 1840.168 | G35: 34 | L35: 1704.788 | M35: 8336
A36: 2016-03-10 | B36: Costco Gas | C36: Transportation | D36: 22 | F36: 1818.168 | L36: 1682.788 | M36: 8336
A37: 2016-03-10 | B37: Income | C37: TRH | E37: 97 | F37: 1915.168 | I37: 24 | L37: 1779.788 | M37: 8360
A38: 2016-03-10 | B38: Tithing CHK # Online | C38: Church | D38: 12.1 | F38: 1903.068 | L38: 1767.688 | M38: 8360
A39: 2016-03-11 | B39: Laundry | C39: Household | D39: 5 | F39: 1898.068 | L39: 1762.688 | M39: 8360
A40: 2016-03-12 | B40: Income | C40: TRH | E40: 71 | F40: 1969.068 | I40: 18 | L40: 1833.688 | M40: 8378
A41: 2016-03-12 | B41: Tithing CHK # Online | C41: Church | D41: 8.9 | F41: 1960.168 | L41: 1824.788 | M41: 8378
A42: 2016-03-12 | B42: Culvers | C42: Eat Out | F42: 1960.168 | G42: 3.62 | L42: 1821.168 | M42: 8378
A43: 2016-03-13 | B43: Income | C43: TRH | E43: 197 | F43: 2157.168 | I43: 49 | L43: 2018.168 | M43: 8427
A44: 2016-03-13 | B44: Tithing CHK # Online | C44: Church | D44: 24.6 | F44: 2132.568 | L44: 1993.568 | M44: 8427
A45: 2016-03-13 | B45: North Face Jacket | C45: Clothes | F45: 2132.568 | G45: 95.49 | L45: 1898.078 | M45: 8427
A46: 2016-03-14 | B46: Creamery | C46: Food | F46: 2132.568 | G46: 2.78 | L46: 1895.298 | M46: 8427
A47: 2016-03-14 | B47: Walmart | C47: Food | F47: 2132.568 | G47: 48.03 | L47: 1847.268 | M47: 8427
A48: 2016-03-14 | B48: RedBox | C48: Entertainment | F48: 2132.568 | G48: 2.13 | L48: 1845.138 | M48: 8427
A49: 2016-03-14 | B49: Sonic | C49: Eat Out | F49: 2132.568 | G49: 6.87 | L49: 1838.268 | M49: 8427
A50: 2016-03-15 | B50: Kohls | C50: Clothes | F50: 2132.568 | G50: 23.51 | L50: 1814.758 | M50: 8427
A51: 2016-03-15 | B51: Income | C51: TRH | E51: 98 | F51: 2230.568 | I51: 24 | L51: 1912.758 | M51: 8451
A52: 2016-03-15 | B52: Tithing CHK # Online | C52: Church | D52: 12.2 | F52: 2218.368 | L52: 1900.558 | M52: 8451
A53: 2016-03-16 | B53: Micheals | C53: Misc | F53: 2218.368 | G53: 24.54 | L53: 1876.018 | M53: 8451
A54: 2016-03-16 | B54: Burlington | C54: Clothes | F54: 2218.368 | G54: 18.14 | L54: 1857.878 | M54: 8451
A55: 2016-03-17 | B55: Income | C55: TRH | E55: 62 | F55: 2280.368 | I55: 16 | L55: 1919.878 | M55: 8467
A56: 2016-03-17 | B56: Tithing CHK # Online | C56: Church | D56: 7.8 | F56: 2272.568 | L56: 1912.078 | M56: 8467
A57: 2016-03-17 | B57: Electricity | C57: Utilities | F57: 2272.568 | G57: 26.63 | L57: 1885.448 | M57: 8467
A58: 2016-03-18 | B58: ONLINE CLOTHES THING | C58: Clothes | F58: 2272.568 | G58: 20 | L58: 1865.448 | M58: 8467
A59: 2016-03-18 | B59: Income | C59: MGF | E59: 342.01 | F59: 2614.578 | I59: 85 | L59: 2207.458 | M59: 8552
A60: 2016-03-18 | B60: Tithing CHK # Online | C60: Church | D60: 42.7 | F60: 2571.878 | L60: 2164.758 | M60: 8552
A61: 2016-03-18 | B61: Income | C61: BYU | E61: 741.79 | F61: 3313.668 | I61: 185 | L61: 2906.548 | M61: 8737
A62: 2016-03-18 | B62: Tithing CHK # Online | C62: Church | D62: 92.68 | F62: 3220.988 | L62: 2813.868 | M62: 8737
A63: 2016-03-19 | B63: Income | C63: TRH | E63: 134 | F63: 3354.988 | I63: 34 | L63: 2947.868 | M63: 8771
A64: 2016-03-19 | B64: Tithing CHK # Online | C64: Church | D64: 16.8 | F64: 3338.188 | L64: 2931.068 | M64: 8771
A65: 2016-03-19 | B65: Walmart | C65: Food | F65: 3338.188 | G65: 43.26 | L65: 2887.808 | M65: 8771
A66: 2016-03-20 | B66: Discover | C66: Credit Card | D66: 360.49 | F66: 2977.698 | G66: -360.49 | L66: 2887.808 | M66: 8771
A67: 2016-03-19 | B67: Income | C67: TRH | E67: 147 | F67: 3124.698 | I67: 37 | L67: 3034.808 | M67: 8808
A68: 2016-03-19 | B68: Tithing CHK # Online | C68: Church | D68: 18.4 | F68: 3106.298 | L68: 3016.408 | M68: 8808
A69: 2016-03-20 | B69: Income | C69: TRH | E69: 90 | F69: 3196.298 | I69: 23 | L69: 3106.408 | M69: 8831
A70: 2016-03-20 | B70: Tithing CHK # Online | C70: Church | D70: 11.3 | F70: 3184.998 | L70: 3095.108 | M70: 8831
A71: 2016-03-22 | B71: Culvers | C71: Eat Out | F71: =F70-D71+E71 -> 3184.998 | G71: 8.2 | L71: =L70-D71-G71-H71+E71 -> 3086.908 | M71: =M70+I71-J71 -> 8831
A72: 2016-03-22 | B72: Income | C72: TRH | E72: 74 | F72: 3258.998 | I72: 19 | L72: 3160.908 | M72: 8850
A73: 2016-03-22 | B73: Tithing CHK # Online | C73: Church | D73: 9.3 | F73: 3249.698 | L73: 3151.608 | M73: 8850
A74: 2016-03-23 | B74: Walmart | C74: Food | F74: 3249.698 | G74: 3.42 | L74: 3148.188 | M74: 8850
A75: 2016-03-23 | B75: Redbox | C75: Entertainment | F75: 3249.698 | G75: 1.6 | L75: 3146.588 | M75: 8850
A76: 2016-03-23 | B76: Signiture Card | C76: Household | D76: 10 | F76: 3239.698 | L76: 3136.588 | M76: 8850
A77: 2016-03-23 | B77: Gas | C77: Transportation | D77: 22 | F77: 3217.698 | L77: 3114.588 | M77: 8850
A78: 2016-03-23 | B78: Savings Move | C78: Savings | D78: 25 | F78: 3192.698 | I78: 25 | L78: 3089.588 | M78: 8875
A79: 2016-03-24 | B79: Car Wash | C79: Transportation | F79: 3192.698 | G79: 7 | L79: 3082.588 | M79: 8875
A80: 2016-03-24 | B80: Income | C80: TRH | E80: 50 | F80: 3242.698 | I80: 13 | L80: 3132.588 | M80: 8888
A81: 2016-03-24 | B81: Tithing CHK # Online | C81: Church | D81: 6.3 | F81: 3236.398 | L81: 3126.288 | M81: 8888
A82: 2016-03-25 | B82: Black Bear Diner | C82: Eat Out | F82: 3236.398 | G82: 25 | L82: 3101.288 | M82: 8888
A83: 2016-03-25 | B83: Costco | C83: Food | D83: 21.06 | F83: 3215.338 | L83: 3080.228 | M83: 8888
A84: 2016-03-26 | B84: WalMart | C84: Food | D84: 27.66 | F84: 3187.678 | L84: 3052.568 | M84: 8888
A85: 2016-03-26 | B85: Cafe Rio Sauce | C85: Food | F85: 3187.678 | G85: 6.45 | L85: 3046.118 | M85: 8888
A86: 2016-03-26 | B86: Income | C86: TRH | E86: 156 | F86: 3343.678 | I86: 39 | L86: 3202.118 | M86: 8927
A87: 2016-03-26 | B87: Tithing CHK # Online | C87: Church | D87: 19.5 | F87: 3324.178 | L87: 3182.618 | M87: 8927
A88: 2016-03-27 | B88: Chick Fil A | C88: Eat Out | F88: 3324.178 | G88: 8.82 | L88: 3173.798 | M88: 8927
A89: 2016-03-27 | B89: Macey's | C89: Food | F89: 3324.178 | G89: 7.49 | L89: 3166.308 | M89: 8927
A90: 2016-03-27 | B90: WalMart | C90: Food | F90: 3324.178 | G90: 11.64 | L90: 3154.668 | M90: 8927
A91: 2016-03-27 | B91: Income | C91: TRH | E91: 136 | F91: 3460.178 | I91: 34 | L91: 3290.668 | M91: 8961
A92: 2016-03-27 | B92: Tithing CHK # Online | C92: Church | D92: 17 | F92: 3443.178 | L92: 3273.668 | M92: 8961
A93: 2016-03-28 | B93: Verizon | C93: Phone | F93: 3443.178 | G93: 140.57 | L93: 3133.098 | M93: 8961
A94: 2016-03-28 | B94: Cap & Gown Order | C94: School | F94: 3443.178 | G94: 45.89 | L94: 3087.208 | M94: 8961
A95: 2016-03-28 | B95: Walmart | C95: Medical | F95: 3443.178 | G95: 14.04 | L95: 3073.168 | M95: 8961
A96: 2016-03-29 | B96: Income | C96: TRH | E96: 81 | F96: 3524.178 | I96: 20 | L96: 3154.168 | M96: 8981
A97: 2016-03-29 | B97: Tithing CHK # Online | C97: Church | D97: 10.1 | F97: 3514.078 | L97: 3144.068 | M97: 8981
A98: 2016-03-30 | B98: Graduation Announcements | C98: School | F98: 3514.078 | G98: 77.91 | L98: 3066.158 | M98: 8981
A99: 2016-03-31 | B99: NetFlix | C99: Entertainment | F99: 3514.078 | G99: 9.6 | L99: 3056.558 | M99: 8981
A100: 2016-03-31 | B100: Discover Payment | C100: Credit Card | D100: 350.01 | F100: 3164.068 | G100: -350.01 | L100: 3056.558 | M100: 8981
A101: 2016-03-31 | B101: Cafe Zupas | C101: Eat Out | F101: 3164.068 | G101: 10.22 | L101: 3046.338 | M101: 8981
A102: 2016-03-31 | B102: Chelsey Wedding Gift Payback | C102: Misc | D102: 20 | F102: 3144.068 | L102: 3026.338 | M102: 8981
F103: 3144.068 | L103: 3026.338 | M103: 8981
F104: 3144.068 | L104: 3026.338 | M104: 8981
F105: 3144.068 | L105: 3026.338 | M105: 8981
F106: 3144.068 | L106: 3026.338 | M106: 8981
F107: 3144.068 | L107: 3026.338 | M107: 8981
F108: 3144.068 | L108: 3026.338 | M108: 8981
F109: 3144.068 | L109: 3026.338 | M109: 8981
F110: 3144.068 | L110: 3026.338 | M110: 8981
F111: 3144.068 | L111: 3026.338 | M111: 8981
F112: 3144.068 | L112: 3026.338 | M112: 8981
F113: 3144.068 | L113: 3026.338 | M113: 8981
F114: 3144.068 | L114: 3026.338 | M114: 8981
F115: 3144.068 | L115: 3026.338 | M115: 8981
F116: 3144.068 | L116: 3026.338 | M116: 8981
F117: 3144.068 | L117: 3026.338 | M117: 8981
F118: 3144.068 | L118: 3026.338 | M118: 8981
F119: 3144.068 | L119: 3026.338 | M119: 8981
F120: 3144.068 | L120: 3026.338 | M120: 8981
F121: 3144.068 | L121: 3026.338 | M121: 8981
F122: 3144.068 | L122: 3026.338 | M122: 8981
F123: 3144.068 | L123: 3026.338 | M123: 8981
F124: 3144.068 | L124: 3026.338 | M124: 8981
F125: 3144.068 | L125: 3026.338 | M125: 8981
F126: 3144.068 | L126: 3026.338 | M126: 8981
F127: 3144.068 | L127: 3026.338 | M127: 8981
F128: 3144.068 | L128: 3026.338 | M128: 8981
F129: 3144.068 | L129: 3026.338 | M129: 8981
F130: 3144.068 | L130: 3026.338 | M130: 8981
F131: 3144.068 | L131: 3026.338 | M131: 8981
F132: 3144.068 | L132: 3026.338 | M132: 8981
F133: 3144.068 | L133: 3026.338 | M133: 8981
F134: 3144.068 | L134: 3026.338 | M134: 8981
F135: =F134-D135+E135 -> 3144.068 | L135: =L134-D135-G135-H135+E135 -> 3026.338 | M135: =M134+I135-J135 -> 8981
F136: 3144.068 | L136: 3026.338 | M136: 8981
F137: 3144.068 | L137: 3026.338 | M137: 8981
F138: 3144.068 | L138: 3026.338 | M138: 8981
F139: 3144.068 | L139: 3026.338 | M139: 8981
F140: 3144.068 | L140: 3026.338 | M140: 8981
F141: 3144.068 | L141: 3026.338 | M141: 8981
F142: 3144.068 | L142: 3026.338 | M142: 8981
F143: 3144.068 | L143: 3026.338 | M143: 8981
F144: 3144.068 | L144: 3026.338 | M144: 8981
F145: 3144.068 | L145: 3026.338 | M145: 8981
F146: 3144.068 | L146: 3026.338 | M146: 8981
F147: 3144.068 | L147: 3026.338 | M147: 8981
F148: 3144.068 | L148: 3026.338 | M148: 8981
F149: 3144.068 | L149: 3026.338 | M149: 8981
F150: 3144.068 | L150: 3026.338 | M150: 8981
F151: 3144.068 | L151: 3026.338 | M151: 8981

Sheet February (hidden)
A1: =January!A1 -> 2016 | O1: Current Balance
A2: INFORMATION | D2: CASH | G2: DEBT | I2: SAVINGS | L2: TOTAL | O2: ='Model Controls'!J2 -> Discover | P2: =SUM(G5:G252)+January!P2 -> 350.44
A3: Date | B3: Description | C3: Category | D3: Expense | E3: Income | F3: Available | G3: ='Model Controls'!J2 -> Discover | H3: ='Model Controls'!J3 -> Gesa | I3: Deposit | J3: Withdral | K3: IN BANK? | L3: Spending | M3: Savings | O3: ='Model Controls'!J3 -> Gesa | P3: =SUM(H5:H252)+January!P3 -> 0
A4: February
A5: 2016-02-01 | B5: Discover Payment | C5: Credit Card | D5: 303.31 | F5: =INDEX(January!$F$5:$F$151,COUNTA(January!$F$5:$F$151))-D5+E5 -> 1799.458 | G5: -303.31 | L5: =INDEX(January!$L$5:$L$151,COUNTA(January!$L$5:$L$151))-G5-H5-D5+E5 -> 1535.198 | M5: =INDEX(January!$M$5:$M$151,COUNTA(January!$M$5:$M$151))-J5+I5 -> 6332
A6: 2016-02-01 | B6: Walmart | C6: School | F6: =F5-D6+E6 -> 1799.458 | G6: 3.97 | L6: =L5+E6-D6-G6-H6 -> 1531.228 | M6: =M5+I6-J6 -> 6332
A7: 2016-02-01 | B7: Michaels | C7: Misc | F7: =F6-D7+E7 -> 1799.458 | G7: 3.83 | L7: =L6+E7-D7-G7-H7 -> 1527.398 | M7: =M6+I7-J7 -> 6332
A8: 2016-02-01 | B8: CPK | C8: Eat Out | F8: 1799.458 | G8: 37.79 | L8: 1489.608 | M8: 6332
A9: 2016-02-01 | B9: Kylie Sonagram | C9: Medical | F9: 1799.458 | G9: 7.13 | L9: 1482.478 | M9: 6332
A10: 2016-02-01 | B10: Some Jazz Back | C10: None | E10: 15 | F10: 1814.458 | L10: 1497.478 | M10: 6332
A11: 2016-02-02 | B11: Februrary Rent | C11: Rent | F11: 1814.458 | G11: 745 | L11: 752.478 | M11: 6332
A12: 2016-02-02 | B12: Signiture Card | C12: Household | D12: 10 | F12: 1804.458 | L12: 742.478 | M12: 6332
A13: 2016-02-02 | B13: Income | C13: TRH | E13: 34 | F13: 1838.458 | I13: 8 | L13: 776.478 | M13: 6340
A14: 2016-02-02 | B14: Tithing CHK # Online Online | C14: Church | D14: 4.2 | F14: 1834.258 | L14: 772.278 | M14: 6340
A15: 2016-02-03 | B15: Income | C15: MGF | E15: 288.63 | F15: 2122.888 | I15: 72 | L15: 1060.908 | M15: 6412
A16: 2016-02-03 | B16: Tithing CHK # Online Online | C16: Church | D16: 36.06 | F16: 2086.828 | L16: 1024.848 | M16: 6412
A17: 2016-02-03 | B17: Creamery | C17: Food | F17: 2086.828 | G17: 3.39 | L17: 1021.458 | M17: 6412
A18: 2016-02-04 | B18: Walmart | C18: Misc | F18: 2086.828 | G18: 23.54 | L18: 997.918 | M18: 6412
A19: 2016-02-04 | B19: Sams Club | C19: Gas | F19: 2086.828 | G19: 17.5 | L19: 980.418 | M19: 6412
A20: 2016-02-04 | B20: Sams Club | C20: Misc | F20: 2086.828 | G20: 31.74 | L20: 948.678 | M20: 6412
A21: 2016-02-04 | B21: Income | C21: TRH | E21: 94 | F21: 2180.828 | I21: 24 | L21: 1042.678 | M21: 6436
A22: 2016-02-04 | B22: Tithing CHK # Online Online | C22: Church | D22: 11.8 | F22: 2169.028 | L22: 1030.878 | M22: 6436
A23: 2016-02-05 | B23: Income | C23: BYU | E23: 473.51 | F23: 2642.538 | I23: 118 | L23: 1504.388 | M23: 6554
A24: 2016-02-05 | B24: Tithing CHK # Online Online | C24: Church | D24: 59.15 | F24: 2583.388 | L24: 1445.238 | M24: 6554
A25: 2016-02-05 | B25: Discover Payment | C25: Credit Card | D25: 999.8 | F25: 1583.588 | G25: -999.8 | L25: 1445.238 | M25: 6554
A26: 2016-02-05 | B26: Bed, Bath, Body | C26: Misc | F26: 1583.588 | G26: 25.64 | L26: 1419.598 | M26: 6554
A27: 2016-02-05 | B27: Jiffy Lube | C27: Transportation | F27: 1583.588 | G27: 30.95 | L27: 1388.648 | M27: 6554
A28: 2016-02-05 | B28: Cheesecake Factory | C28: Eat Out | D28: 6 | F28: 1577.588 | L28: 1382.648 | M28: 6554
A29: 2016-02-06 | B29: Wynsong | C29: Entertainment | F29: 1577.588 | G29: 7 | L29: 1375.648 | M29: 6554
A30: 2016-02-06 | B30: Walmart | C30: Food | F30: 1577.588 | G30: 2.65 | L30: 1372.998 | M30: 6554
A31: 2016-02-06 | B31: Income | C31: TRH | E31: 167 | F31: 1744.588 | I31: 42 | L31: 1539.998 | M31: 6596
A32: 2016-02-06 | B32: Tithing CHK # Online Online | C32: Church | D32: 20.9 | F32: 1723.688 | L32: 1519.098 | M32: 6596
A33: 2016-02-07 | B33: Fast Offering | C33: Church | D33: 50 | F33: 1673.688 | L33: 1469.098 | M33: 6596
A34: 2016-02-07 | B34: Rebalance Cash | C34: None | D34: 14.49 | F34: 1659.198 | L34: 1454.608 | M34: 6596
A35: 2016-02-07 | B35: Rebalance Discover | C35: None | F35: 1659.198 | G35: -62.18 | L35: 1516.788 | M35: 6596
A36: 2016-02-09 | B36: Los Hermanos | C36: Eat Out | F36: 1659.198 | G36: 33.79 | L36: 1482.998 | M36: 6596
A37: 2016-02-09 | B37: Income | C37: TRH | E37: 54 | F37: 1713.198 | I37: 14 | L37: 1536.998 | M37: 6610
A38: 2016-02-09 | B38: Tithing CHK # Online Online | C38: Church | D38: 6.8 | F38: 1706.398 | L38: 1530.198 | M38: 6610
A39: 2016-02-10 | B39: Kylie Stuff | C39: Misc | F39: 1706.398 | G39: 42.44 | L39: 1487.758 | M39: 6610
A40: 2016-02-09 | B40: BYU Creamery | C40: Food | F40: 1706.398 | G40: 1.84 | L40: 1485.918 | M40: 6610
A41: 2016-02-11 | B41: Autozone | C41: Transportation | F41: 1706.398 | G41: 37.33 | L41: 1448.588 | M41: 6610
A42: 2016-02-11 | B42: Carwash | C42: Transportation | D42: 6 | F42: 1700.398 | L42: 1442.588 | M42: 6610
A43: 2016-02-11 | B43: Income | C43: TRH | E43: 65 | F43: 1765.398 | I43: 16 | L43: 1507.588 | M43: 6626
A44: 2016-02-11 | B44: Tithing CHK # Online Online | C44: Church | D44: 8.1 | F44: 1757.298 | L44: 1499.488 | M44: 6626
A45: 2016-02-12 | B45: Dollar Tree | C45: Misc | F45: 1757.298 | G45: 2.14 | L45: 1497.348 | M45: 6626
A46: 2016-02-12 | B46: Kohls | C46: Misc | F46: 1757.298 | G46: 16.02 | L46: 1481.328 | M46: 6626
A47: 2016-02-12 | B47: Target | C47: Misc | F47: 1757.298 | G47: 21.36 | L47: 1459.968 | M47: 6626
A48: 2016-02-13 | B48: Income | C48: TRH | E48: 164 | F48: 1921.298 | I48: 41 | L48: 1623.968 | M48: 6667
A49: 2016-02-13 | B49: Tithing CHK # Online Online | C49: Church | D49: 20.5 | F49: 1900.798 | L49: 1603.468 | M49: 6667
A50: 2016-02-13 | B50: Costco | C50: Misc | D50: 54 | F50: 1846.798 | L50: 1549.468 | M50: 6667
A51: 2016-02-13 | B51: Costco | C51: Transportation | D51: 20 | F51: 1826.798 | L51: 1529.468 | M51: 6667
A52: 2016-02-13 | B52: Walmart | C52: Food | F52: 1826.798 | G52: 58.63 | L52: 1470.838 | M52: 6667
A53: 2016-02-13 | B53: Income | C53: TRH | E53: 200 | F53: 2026.798 | I53: 50 | L53: 1670.838 | M53: 6717
A54: 2016-02-13 | B54: Tithing CHK # Online Online | C54: Church | D54: 25 | F54: 2001.798 | L54: 1645.838 | M54: 6717
A55: 2016-02-14 | B55: Income | C55: TRH | E55: 94 | F55: 2095.798 | I55: 24 | L55: 1739.838 | M55: 6741
A56: 2016-02-14 | B56: Tithing CHK # Online Online | C56: Church | D56: 11.8 | F56: 2083.998 | L56: 1728.038 | M56: 6741
A57: 2016-02-15 | B57: Discover Payment | C57: Credit Card | D57: 304.53 | F57: =F56-D57+E57 -> 1779.468 | G57: -304.53 | L57: =L56+E57-D57-G57-H57 -> 1728.038 | M57: 6741
A58: 2016-02-15 | B58: Savings Moveover | C58: None | D58: 500 | F58: 1279.468 | I58: 500 | L58: 1228.038 | M58: 7241
A59: 2016-02-16 | B59: Cold Stone | C59: Eat Out | F59: =F58-D59+E59 -> 1279.468 | G59: 5.16 | L59: =L58+E59-D59-G59-H59 -> 1222.878 | M59: 7241
A60: 2016-02-16 | B60: 180 Tacos | C60: Eat Out | F60: 1279.468 | G60: 8.08 | L60: 1214.798 | M60: 7241
A61: 2016-02-16 | B61: Tepanyaki | C61: Eat Out | F61: 1279.468 | G61: 65.92 | L61: 1148.878 | M61: 7241
A62: 2016-02-16 | B62: Journey's | C62: Clothes | F62: 1279.468 | G62: 42.69 | L62: 1106.188 | M62: 7241
A63: 2016-02-16 | B63: J. Crew | C63: Clothes | F63: 1279.468 | G63: 26.64 | L63: 1079.548 | M63: 7241
A64: 2016-02-16 | B64: Intermountain | C64: Medical | F64: 1279.468 | G64: 91.25 | L64: 988.298 | M64: 7241
A65: 2016-02-16 | B65: Income | C65: TRH | E65: 70 | F65: 1349.468 | I65: 17 | L65: 1058.298 | M65: 7258
A66: 2016-02-16 | B66: Tithing CHK # Online | C66: Church | D66: 8.7 | F66: 1340.768 | L66: 1049.598 | M66: 7258
A67: 2016-02-17 | B67: Walmart | C67: Food | F67: 1340.768 | G67: 27.65 | L67: 1021.948 | M67: 7258
A68: 2016-02-17 | B68: Electricity | C68: Utilities | F68: 1340.768 | G68: 30.45 | L68: 991.498 | M68: 7258
A69: 2016-02-18 | B69: Income | C69: MGF | E69: 284.55 | F69: 1625.318 | I69: 71 | L69: 1276.048 | M69: 7329
A70: 2016-02-18 | B70: Tithing CHK # Online | C70: Church | D70: 35.56 | F70: 1589.758 | L70: 1240.488 | M70: 7329
A71: 2016-02-18 | B71: Income | C71: TRH | E71: 54 | F71: =F70-D71+E71 -> 1643.758 | I71: 13 | L71: =L70+E71-D71-G71-H71 -> 1294.488 | M71: =M70+I71-J71 -> 7342
A72: 2016-02-18 | B72: Tithing CHK # Online | C72: Church | D72: 6.7 | F72: 1637.058 | L72: 1287.788 | M72: 7342
A73: 2016-02-20 | B73: Income | C73: BYU | E73: 389.75 | F73: 2026.808 | I73: 97 | L73: 1677.538 | M73: 7439
A74: 2016-02-20 | B74: Tithing CHK # Online | C74: Church | D74: 48.68 | F74: 1978.128 | L74: 1628.858 | M74: 7439
A75: 2016-02-20 | B75: Income | C75: TRH | E75: 90 | F75: 2068.128 | I75: 23 | L75: 1718.858 | M75: 7462
A76: 2016-02-20 | B76: Tithing CHK # Online | C76: Church | D76: 11.3 | F76: 2056.828 | L76: 1707.558 | M76: 7462
A77: 2016-02-20 | B77: Walmart | C77: Food | D77: =52.42+6.14 -> 58.56 | F77: 1998.268 | L77: 1648.998 | M77: 7462
A78: 2016-02-21 | B78: Income | C78: TRH | E78: 210 | F78: 2208.268 | I78: 53 | L78: 1858.998 | M78: 7515
A79: 2016-02-21 | B79: Tithing CHK # Online | C79: Church | D79: 26.3 | F79: 2181.968 | L79: 1832.698 | M79: 7515
A80: 2016-02-10 | B80: BYU Creamery | C80: Food | F80: 2181.968 | G80: 7.2 | L80: 1825.498 | M80: 7515
A81: 2016-02-22 | B81: Discover Payment | C81: Credit Card | D81: 356.47 | F81: 1825.498 | G81: -356.47 | L81: 1825.498 | M81: 7515
A82: 2016-02-22 | B82: Wingers | C82: Eat Out | D82: 16.85 | F82: 1808.648 | L82: 1808.648 | M82: 7515
A83: 2016-02-23 | B83: Income | C83: TRH | E83: 62 | F83: 1870.648 | I83: 16 | L83: 1870.648 | M83: 7531
A84: 2016-02-23 | B84: Tithing CHK # Online | C84: Church | D84: 7.8 | F84: 1862.848 | L84: 1862.848 | M84: 7531
A85: 2016-02-24 | B85: Hobby Lobby | C85: Household | D85: 17.59 | F85: 1845.258 | L85: 1845.258 | M85: 7531
A86: 2016-02-24 | B86: Gas | C86: Transportation | D86: 21 | F86: 1824.258 | L86: 1824.258 | M86: 7531
A87: 2016-02-24 | B87: Pita Pit | C87: Eat Out | F87: 1824.258 | G87: 13.99 | L87: 1810.268 | M87: 7531
A88: 2016-02-24 | B88: Turbo Tax | C88: Misc | F88: 1824.258 | G88: 98.19 | L88: 1712.078 | M88: 7531
A89: 2016-02-25 | B89: Monthly Savings Transfer | C89: Savings | D89: 25 | F89: 1799.258 | I89: 25 | L89: 1687.078 | M89: 7556
A90: 2016-02-25 | B90: Income | C90: TRH | E90: 58 | F90: 1857.258 | I90: 15 | L90: 1745.078 | M90: 7571
A91: 2016-02-25 | B91: Tithing CHK # Online | C91: Church | D91: 7.3 | F91: 1849.958 | L91: 1737.778 | M91: 7571
A92: 2016-02-26 | B92: Income | C92: TRH | E92: 84 | F92: 1933.958 | I92: 21 | L92: =L91+E92-D92-G92-H92 -> 1821.778 | M92: =M91+I92-J92 -> 7592
A93: 2016-02-26 | B93: Tithing CHK # Online | C93: Church | D93: 10.5 | F93: 1923.458 | L93: 1811.278 | M93: 7592
A94: 2016-02-27 | B94: Walmart | C94: Medical | F94: 1923.458 | G94: 11.86 | L94: 1799.418 | M94: 7592
A95: 2016-02-27 | B95: Walmart | C95: Food | F95: 1923.458 | G95: 59.16 | L95: 1740.258 | M95: 7592
A96: 2016-02-27 | B96: Verizon | C96: Phone | F96: 1923.458 | G96: 140.57 | L96: 1599.688 | M96: 7592
A97: 2016-02-27 | B97: Income | C97: TRH | E97: 142 | F97: 2065.458 | I97: 36 | L97: 1741.688 | M97: 7628
A98: 2016-02-27 | B98: Tithing CHK # Online | C98: Church | D98: 17.8 | F98: 2047.658 | L98: 1723.888 | M98: 7628
A99: 2016-02-29 | B99: White Cloth | C99: Misc | F99: 2047.658 | G99: 17.07 | L99: 1706.818 | M99: 7628
A100: 2016-02-29 | B100: Netflix | C100: Entertainment | F100: 2047.658 | G100: 9.6 | L100: 1697.218 | M100: 7628
F101: 2047.658 | L101: 1697.218 | M101: 7628
F102: 2047.658 | L102: 1697.218 | M102: 7628
F103: 2047.658 | L103: 1697.218 | M103: 7628
F104: 2047.658 | L104: 1697.218 | M104: 7628
F105: 2047.658 | L105: 1697.218 | M105: 7628
F106: 2047.658 | L106: 1697.218 | M106: 7628
F107: 2047.658 | L107: 1697.218 | M107: 7628
F108: 2047.658 | L108: 1697.218 | M108: 7628
F109: 2047.658 | L109: 1697.218 | M109: 7628
F110: 2047.658 | L110: 1697.218 | M110: 7628
F111: 2047.658 | L111: 1697.218 | M111: 7628
F112: 2047.658 | L112: 1697.218 | M112: 7628
F113: 2047.658 | L113: 1697.218 | M113: 7628
F114: 2047.658 | L114: 1697.218 | M114: 7628
F115: 2047.658 | L115: 1697.218 | M115: 7628
F116: 2047.658 | L116: 1697.218 | M116: 7628
F117: 2047.658 | L117: 1697.218 | M117: 7628
F118: 2047.658 | L118: 1697.218 | M118: 7628
F119: 2047.658 | L119: 1697.218 | M119: 7628
F120: 2047.658 | L120: 1697.218 | M120: 7628
F121: 2047.658 | L121: 1697.218 | M121: 7628
F122: 2047.658 | L122: 1697.218 | M122: 7628
F123: 2047.658 | L123: 1697.218 | M123: 7628
F124: 2047.658 | L124: 1697.218 | M124: 7628
F125: 2047.658 | L125: 1697.218 | M125: 7628
F126: 2047.658 | L126: 1697.218 | M126: 7628
F127: 2047.658 | L127: 1697.218 | M127: 7628
F128: 2047.658 | L128: 1697.218 | M128: 7628
F129: 2047.658 | L129: 1697.218 | M129: 7628
F130: 2047.658 | L130: 1697.218 | M130: 7628
F131: 2047.658 | L131: 1697.218 | M131: 7628
F132: 2047.658 | L132: 1697.218 | M132: 7628
F133: 2047.658 | L133: 1697.218 | M133: 7628
F134: 2047.658 | L134: 1697.218 | M134: 7628
F135: =F134-D135+E135 -> 2047.658 | L135: 1697.218 | M135: 7628
F136: 2047.658 | L136: 1697.218 | M136: 7628
F137: 2047.658 | L137: 1697.218 | M137: 7628
F138: 2047.658 | L138: 1697.218 | M138: 7628
F139: 2047.658 | L139: 1697.218 | M139: 7628
F140: 2047.658 | L140: 1697.218 | M140: 7628
F141: 2047.658 | L141: 1697.218 | M141: 7628
F142: 2047.658 | L142: 1697.218 | M142: 7628
F143: 2047.658 | L143: 1697.218 | M143: 7628
F144: 2047.658 | L144: 1697.218 | M144: 7628
F145: 2047.658 | L145: 1697.218 | M145: 7628
F146: 2047.658 | L146: 1697.218 | M146: 7628
F147: 2047.658 | L147: 1697.218 | M147: 7628
F148: 2047.658 | L148: 1697.218 | M148: 7628
F149: 2047.658 | L149: 1697.218 | M149: 7628
F150: 2047.658 | L150: 1697.218 | M150: 7628

Sheet January (hidden)
A1: 2016 | O1: Current Balance
A2: INFORMATION | D2: CASH | G2: DEBT | I2: SAVINGS | L2: TOTAL | O2: ='Model Controls'!J2 -> Discover | P2: =SUM(G5:G253)+'Model Controls'!K9 -> 567.57
A3: Date | B3: Description | C3: Category | D3: Expense | E3: Income | F3: Available | G3: ='Model Controls'!J2 -> Discover | H3: ='Model Controls'!J3 -> Gesa | I3: Deposit | J3: Withdral | K3: IN BANK? | L3: Spending | M3: Savings | O3: ='Model Controls'!J3 -> Gesa | P3: =SUM(H5:H253)+'Model Controls'!K10 -> 0
A4: January
A5: 1.1.2016 | B5: Discover | C5: Credit Card | D5: 775.41 | F5: 2434.66 | G5: -775.41 | L5: 2254.06 | M5: 4120
A6: 1.1.2016 | B6: Income | C6: TRH | E6: 138 | F6: =F5-D6+E6 -> 2572.66 | I6: 35 | L6: =L5+E6-D6-G6-H6 -> 2392.06 | M6: =M5+I6-J6 -> 4155
A7: 1.1.2016 | B7: Tithing CHK # 1061 | C7: Church | D7: =(E6+I6)*0.1 -> 17.3 | F7: =F6-D7+E7 -> 2555.36 | L7: =L6+E7-D7-G7-H7 -> 2374.76 | M7: =M6+I7-J7 -> 4155
A8: 1.2.2016 | B8: Los Hermanos | C8: Eat Out | F8: =F7-D8+E8 -> 2555.36 | G8: 4 | L8: =L7+E8-D8-G8-H8 -> 2370.76 | M8: =M7+I8-J8 -> 4155
A9: 1.2.2016 | B9: Walmart | C9: Medical | F9: 2555.36 | G9: 12.99 | L9: 2357.77 | M9: 4155
A10: 1.2.2016 | B10: Walmart | C10: Food | F10: 2555.36 | G10: 83.35 | L10: 2274.42 | M10: 4155
A11: 1.2.2016 | B11: Costco | C11: Transportation | D11: 23 | F11: 2532.36 | L11: 2251.42 | M11: 4155
A12: 1.2.2016 | B12: Car Wash | C12: Transportation | F12: 2532.36 | G12: 9 | L12: =L11+E12-D12-G12-H12 -> 2242.42 | M12: =M11+I12-J12 -> 4155
A13: 1.2.2016 | B13: Wedding Check | C13: Misc | E13: 20 | F13: 2552.36 | I13: 5 | L13: =L12+E13-D13-G13-H13 -> 2262.42 | M13: =M12+I13-J13 -> 4160
A14: 1.2.2016 | B14: Tithing CHK # 1061 | C14: Church | D14: 2.5 | F14: 2549.86 | L14: 2259.92 | M14: 4160
A15: 1.2.2016 | B15: Income | C15: TRH | E15: 212 | F15: 2761.86 | I15: 53 | L15: =L14+E15-D15-G15-H15 -> 2471.92 | M15: =M14+I15-J15 -> 4213
A16: 1.2.2016 | B16: Tithing CHK # 1061 | C16: Church | D16: =(E15+I15)*0.1 -> 26.5 | F16: 2735.36 | L16: =L15+E16-D16-G16-H16 -> 2445.42 | M16: =M15+I16-J16 -> 4213
A17: 1.3.2015 | B17: Move Money Back | C17: None | D17: 1000 | F17: 1735.36 | I17: 1000 | L17: =L16+E17-D17-G17-H17 -> 1445.42 | M17: =M16+I17-J17 -> 5213
A18: 1.3.2015 | B18: January Rent | C18: Rent | F18: 1735.36 | G18: 577 | L18: =L17+E18-D18-G18-H18 -> 868.42 | M18: =M17+I18-J18 -> 5213
A19: 1.4.2016 | B19: Gas Money | C19: Misc | E19: 15 | F19: 1750.36 | L19: =L18+E19-D19-G19-H19 -> 883.42 | M19: =M18+I19-J19 -> 5213
A20: 1.4.2016 | B20: Tithing CHK # 1062 | C20: Church | D20: =(E19+I19)*0.1 -> 1.5 | F20: 1748.86 | L20: =L19+E20-D20-G20-H20 -> 881.92 | M20: =M19+I20-J20 -> 5213
A21: 1.4.2015 | B21: Walmart | C21: Food | F21: 1748.86 | G21: 3.03 | L21: =L20+E21-D21-G21-H21 -> 878.89 | M21: =M20+I21-J21 -> 5213
A22: 1.5.2015 | B22: Income | C22: TRH | E22: 74 | F22: 1822.86 | I22: 19 | L22: =L21+E22-D22-G22-H22 -> 952.89 | M22: =M21+I22-J22 -> 5232
A23: 1.5.2015 | B23: Tithing CHK # 1062 | C23: Church | D23: =(E22+I22)*0.1 -> 9.3 | F23: 1813.56 | L23: =L22+E23-D23-G23-H23 -> 943.59 | M23: =M22+I23-J23 -> 5232
A24: 1.6.2015 | B24: Textbook Sale | C24: None | E24: 50 | F24: 1863.56 | L24: =L23+E24-D24-G24-H24 -> 993.59 | M24: =M23+I24-J24 -> 5232
A25: 1.6.2015 | B25: Tithing CHK # 1062 | C25: Church | D25: =(E24+I24)*0.1 -> 5 | F25: 1858.56 | L25: =L24+E25-D25-G25-H25 -> 988.59 | M25: =M24+I25-J25 -> 5232
A26: 1.6.2015 | B26: Walmart | C26: Food | D26: 13.59 | F26: 1844.97 | L26: =L25+E26-D26-G26-H26 -> 975 | M26: =M25+I26-J26 -> 5232
A27: 1.7.2015 | B27: Income | C27: TRH | E27: 37 | F27: 1881.97 | I27: 9 | L27: =L26+E27-D27-G27-H27 -> 1012 | M27: =M26+I27-J27 -> 5241
A28: 1.7.2015 | B28: Tithing CHK # 1062 | C28: Church | D28: =(E27+I27)*0.1 -> 4.6 | F28: 1877.37 | L28: =L27+E28-D28-G28-H28 -> 1007.4 | M28: =M27+I28-J28 -> 5241
A29: 1.7.2015 | B29: BYU E Check | C29: Household | D29: 10 | F29: 1867.37 | L29: =L28+E29-D29-G29-H29 -> 997.4 | M29: =M28+I29-J29 -> 5241
A30: 1.8.2015 | B30: Income | C30: BYU | E30: 57.62 | F30: 1924.99 | I30: 14 | L30: =L29+E30-D30-G30-H30 -> 1055.02 | M30: =M29+I30-J30 -> 5255
A31: 1.8.2015 | B31: Tithing CHK # 1062 | C31: Church | D31: =(E30+I30)*0.1 -> 7.162 | F31: 1917.828 | L31: =L30+E31-D31-G31-H31 -> 1047.858 | M31: =M30+I31-J31 -> 5255
A32: 1.8.2015 | B32: Kneeders | C32: Eat Out | D32: 6.24 | F32: 1911.588 | L32: =L31+E32-D32-G32-H32 -> 1041.618 | M32: =M31+I32-J32 -> 5255
A33: 1.7.2015 | B33: Income | C33: TRH | E33: 132 | F33: 2043.588 | I33: 33 | L33: =L32+E33-D33-G33-H33 -> 1173.618 | M33: =M32+I33-J33 -> 5288
A34: 1.7.2015 | B34: Tithing CHK # 1062 | C34: Church | D34: =(E33+I33)*0.1 -> 16.5 | F34: 2027.088 | L34: =L33+E34-D34-G34-H34 -> 1157.118 | M34: =M33+I34-J34 -> 5288
A35: 1.9.2015 | B35: Walmart | C35: Food | D35: 45.46 | F35: 1981.628 | L35: =L34+E35-D35-G35-H35 -> 1111.658 | M35: =M34+I35-J35 -> 5288
A36: 1.9.2015 | B36: Income | C36: TRH | E36: 154 | F36: 2135.628 | I36: 39 | L36: =L35+E36-D36-G36-H36 -> 1265.658 | M36: =M35+I36-J36 -> 5327
A37: 1.9.2015 | B37: Tithing CHK # 1062 | C37: Church | D37: =(E36+I36)*0.1 -> 19.3 | F37: 2116.328 | L37: =L36+E37-D37-G37-H37 -> 1246.358 | M37: =M36+I37-J37 -> 5327
A38: 1.10.2015 | B38: Discover Payment | C38: Credit Card | D38: 829.88 | F38: 1286.448 | G38: -829.88 | L38: =L37+E38-D38-G38-H38 -> 1246.358 | M38: =M37+I38-J38 -> 5327
A39: 1.10.2015 | B39: Income | C39: TRH | E39: 58 | F39: 1344.448 | I39: 15 | L39: =L38+E39-D39-G39-H39 -> 1304.358 | M39: =M38+I39-J39 -> 5342
A40: 1.10.2015 | B40: Tithing CHK # 1062 | C40: Church | D40: =(E39+I39)*0.1 -> 7.3 | F40: 1337.148 | L40: =L39+E40-D40-G40-H40 -> 1297.058 | M40: =M39+I40-J40 -> 5342
A41: 1.11.2015 | B41: Physical Science Test | C41: School | F41: 1337.148 | G41: 20 | L41: =L40+E41-D41-G41-H41 -> 1277.058 | M41: =M40+I41-J41 -> 5342
A42: 1.11.2015 | B42: Gas | C42: Transportation | D42: 22 | F42: 1315.148 | L42: 1255.058 | M42: 5342
A43: 1.12.2016 | B43: Slab Pizza | C43: Eat Out | F43: 1315.148 | G43: 5.93 | L43: =L42+E43-D43-G43-H43 -> 1249.128 | M43: =M42+I43-J43 -> 5342
A44: 1.13.2016 | B44: Target | C44: Food | F44: 1315.148 | G44: 4 | L44: 1245.128 | M44: 5342
A45: 1.12.2016 | B45: Income | C45: TRH | E45: 51 | F45: 1366.148 | I45: 13 | L45: =L44+E45-D45-G45-H45 -> 1296.128 | M45: =M44+I45-J45 -> 5355
A46: 1.12.2016 | B46: Tithing CHK # 1062 | C46: Church | D46: =(E45+I45)*0.1 -> 6.4 | F46: 1359.748 | L46: =L45+E46-D46-G46-H46 -> 1289.728 | M46: =M45+I46-J46 -> 5355
A47: 1.14.2015 | B47: Wedding Card | C47: Misc | F47: 1359.748 | G47: 4.88 | L47: =L46+E47-D47-G47-H47 -> 1284.848 | M47: =M46+I47-J47 -> 5355
A48: 1.14.2015 | B48: Wedding Money | C48: Misc | D48: 40 | F48: 1319.748 | L48: 1244.848 | M48: 5355
A49: 1.15.2015 | B49: 520 Book | C49: School | F49: 1319.748 | G49: 53.41 | L49: 1191.438 | M49: 5355
A50: 1.15.2015 | B50: Income | C50: MGF | E50: 194.8 | F50: 1514.548 | I50: 49 | L50: =L49+E50-D50-G50-H50 -> 1386.238 | M50: =M49+I50-J50 -> 5404
A51: 1.15.2015 | B51: Tithing CHK # 1062 | C51: Church | D51: =(E50+I50)*0.1 -> 24.38 | F51: 1490.168 | L51: =L50+E51-D51-G51-H51 -> 1361.858 | M51: =M50+I51-J51 -> 5404
A52: 1.15.2015 | B52: Walmart | C52: Food | F52: 1490.168 | G52: 17.09 | L52: =L51+E52-D52-G52-H52 -> 1344.768 | M52: =M51+I52-J52 -> 5404
A53: 1.15.2015 | B53: Walmart | C53: Medical | F53: 1490.168 | G53: 6.75 | L53: =L52+E53-D53-G53-H53 -> 1338.018 | M53: =M52+I53-J53 -> 5404
A54: 1.15.2015 | B54: Income | C54: TRH | E54: 107 | F54: 1597.168 | I54: 27 | L54: =L53+E54-D54-G54-H54 -> 1445.018 | M54: =M53+I54-J54 -> 5431
A55: 1.15.2015 | B55: Tithing CHK # 1062 | C55: Church | D55: =(E54+I54)*0.1 -> 13.4 | F55: 1583.768 | L55: =L54+E55-D55-G55-H55 -> 1431.618 | M55: =M54+I55-J55 -> 5431
A56: 1.16.2016 | B56: Income | C56: TRH | E56: 191 | F56: 1774.768 | I56: 48 | L56: =L55+E56-D56-G56-H56 -> 1622.618 | M56: =M55+I56-J56 -> 5479
A57: 1.16.2016 | B57: Tithing CHK # 1062 | C57: Church | D57: =(E56+I56)*0.1 -> 23.9 | F57: 1750.868 | L57: =L56+E57-D57-G57-H57 -> 1598.718 | M57: =M56+I57-J57 -> 5479
A58: 1.18.2016 | B58: Auto Zone | C58: Transportation | F58: 1750.868 | G58: 17.07 | L58: =L57+E58-D58-G58-H58 -> 1581.648 | M58: =M57+I58-J58 -> 5479
A59: 1.18.2016 | B59: B Dubss | C59: Eat Out | D59: 5 | F59: 1745.868 | L59: 1576.648 | M59: 5479
A60: 1.18.2016 | B60: Culver's | C60: Eat Out | F60: 1745.868 | G60: 6.71 | L60: 1569.938 | M60: 5479
A61: 1.18.2016 | B61: Costco | C61: Transportation | D61: 21.01 | F61: 1724.858 | L61: =L60+E61-D61-G61-H61 -> 1548.928 | M61: =M60+I61-J61 -> 5479
A62: 1.19.2015 | B62: In and Out | C62: Eat Out | F62: 1724.858 | G62: 4.53 | L62: =L61+E62-D62-G62-H62 -> 1544.398 | M62: =M61+I62-J62 -> 5479
A63: 1.19.2015 | B63: Income | C63: TRH | E63: 50 | F63: 1774.858 | I63: 12 | L63: =L62+E63-D63-G63-H63 -> 1594.398 | M63: =M62+I63-J63 -> 5491
A64: 1.19.2015 | B64: Tithing CHK # Online | C64: Church | D64: =(E63+I63)*0.1 -> 6.2 | F64: 1768.658 | L64: =L63+E64-D64-G64-H64 -> 1588.198 | M64: =M63+I64-J64 -> 5491
A65: 1.20.2015 | B65: Doctor's | C65: Medical | D65: 21.05 | F65: 1747.608 | L65: =L64+E65-D65-G65-H65 -> 1567.148 | M65: =M64+I65-J65 -> 5491
A66: 1.20.2015 | B66: Costco | C66: Food | D66: 82.9 | F66: 1664.708 | L66: 1484.248 | M66: 5491
A67: 1.20.2015 | B67: Walmart | C67: Food | F67: 1664.708 | G67: 39.62 | L67: 1444.628 | M67: 5491
A68: 2016-01-21 | B68: Income | C68: TRH | E68: 58 | F68: 1722.708 | I68: 15 | L68: =L67+E68-D68-G68-H68 -> 1502.628 | M68: =M67+I68-J68 -> 5506
A69: 2016-01-21 | B69: Tithing CHK # Online | C69: Church | D69: 7.3 | F69: 1715.408 | L69: 1495.328 | M69: 5506
A70: 2016-01-21 | B70: Income | C70: BYU | E70: 410.14 | F70: 2125.548 | I70: 103 | L70: 1905.468 | M70: 5609
A71: 2016-01-21 | B71: Tithing CHK # Online | C71: Church | D71: 51.31 | F71: 2074.238 | L71: 1854.158 | M71: 5609
A72: 2016-01-21 | B72: Savings Move Back | C72: None | D72: 500 | F72: =F71-D72+E72 -> 1574.238 | I72: 500 | L72: 1354.158 | M72: 6109
A73: 2016-01-21 | B73: Electricity | C73: Utilities | F73: 1574.238 | G73: 26.45 | L73: 1327.708 | M73: 6109
A74: 2016-01-21 | B74: Discover | C74: Credit Card | D74: 140.37 | F74: =F73-D74+E74 -> 1433.868 | G74: -140.37 | L74: =L73+E74-D74-G74-H74 -> 1327.708 | M74: =M73+I74-J74 -> 6109
A75: 2016-01-23 | B75: Income | C75: TRH | E75: 133 | F75: 1566.868 | I75: 33 | L75: 1460.708 | M75: 6142
A76: 2016-01-23 | B76: Tithing CHK # Online | C76: Church | D76: 16.6 | F76: 1550.268 | L76: 1444.108 | M76: 6142
A77: 2016-01-23 | B77: Walmart | C77: Food | F77: 1550.268 | G77: 12.57 | L77: 1431.538 | M77: 6142
A78: 2016-01-23 | B78: Income | C78: TRH | E78: 171 | F78: 1721.268 | I78: 43 | L78: 1602.538 | M78: 6185
A79: 2016-01-23 | B79: Tithing CHK # Online | C79: Church | D79: 21.4 | F79: 1699.868 | L79: 1581.138 | M79: 6185
A80: 2016-01-24 | B80: Income | C80: TRH | E80: 79 | F80: 1778.868 | I80: 20 | L80: 1660.138 | M80: 6205
A81: 2016-01-24 | B81: Tithing CHK # Online | C81: Church | D81: 9.9 | F81: 1768.968 | L81: 1650.238 | M81: 6205
A82: 2016-01-26 | B82: Walmart | C82: Food | F82: 1768.968 | G82: 50.2 | L82: 1600.038 | M82: 6205
A83: 2016-01-25 | B83: Cold Stone | C83: Eat Out | F83: 1768.968 | G83: 5.16 | L83: 1594.878 | M83: 6205
A84: 2016-01-26 | B84: Income | C84: TRH | E84: 50 | F84: 1818.968 | I84: 12 | L84: 1644.878 | M84: 6217
A85: 2016-01-26 | B85: Tithing CHK # Online | C85: Church | D85: 6.2 | F85: 1812.768 | L85: 1638.678 | M85: 6217
A86: 2016-01-27 | B86: Creamery | C86: Eat Out | F86: 1812.768 | G86: 5.14 | L86: 1633.538 | M86: 6217
A87: 2016-01-28 | B87: Verizon | C87: Phone | F87: 1812.768 | G87: 140.57 | L87: 1492.968 | M87: 6217
A88: 2016-01-28 | B88: Income | C88: TRH | E88: 76 | F88: 1888.768 | I88: 19 | L88: 1568.968 | M88: 6236
A89: 2016-01-28 | B89: Tithing CHK # Online | C89: Church | D89: 9.5 | F89: 1879.268 | L89: 1559.468 | M89: 6236
A90: 2016-01-29 | B90: Income | C90: TRH | E90: 127 | F90: 2006.268 | I90: 32 | L90: 1686.468 | M90: 6268
A91: 2016-01-29 | B91: Tithing CHK # Online | C91: Church | D91: 15.9 | F91: 1990.368 | L91: 1670.568 | M91: 6268
A92: 2016-01-29 | B92: Gas | C92: Transportation | F92: 1990.368 | G92: 22.09 | L92: 1648.478 | M92: 6268
A93: 2016-01-29 | B93: Ihop | C93: Eat Out | F93: 1990.368 | G93: 14 | L93: 1634.478 | M93: 6268
A94: 2016-01-30 | B94: McDonalds | C94: Eat Out | F94: 1990.368 | G94: 2.04 | L94: 1632.438 | M94: 6268
A95: 2016-01-30 | B95: Walmart | C95: Medical | F95: 1990.368 | G95: 9 | L95: 1623.438 | M95: 6268
A96: 2016-01-30 | B96: Walmart | C96: Food | F96: 1990.368 | G96: 79.79 | L96: 1543.648 | M96: 6268
A97: 2016-01-30 | B97: Netflix | C97: Entertainment | F97: 1990.368 | G97: 9.6 | L97: 1534.048 | M97: 6268
A98: 2016-01-30 | B98: Income | C98: TRH | E98: 157 | F98: 2147.368 | I98: 39 | L98: 1691.048 | M98: 6307
A99: 2016-01-30 | B99: Tithing CHK # Online | C99: Church | D99: 19.6 | F99: 2127.768 | L99: 1671.448 | M99: 6307
A100: 2016-01-31 | B100: Bulls Ticket | C100: Entertainment | F100: 2127.768 | G100: 44.5 | L100: 1626.948 | M100: 6307
A101: 2016-01-31 | B101: Bulls Ticket (Kylie MONEY) | C101: Misc | F101: 2127.768 | G101: 66.75 | L101: 1560.198 | M101: 6307
A102: 2016-01-31 | B102: Savings Transfer | C102: None | D102: 25 | F102: 2102.768 | I102: 25 | L102: 1535.198 | M102: 6332
F103: 2102.768 | L103: 1535.198 | M103: 6332
F104: 2102.768 | L104: 1535.198 | M104: 6332
F105: 2102.768 | L105: 1535.198 | M105: 6332
F106: 2102.768 | L106: 1535.198 | M106: 6332
F107: 2102.768 | L107: 1535.198 | M107: 6332
F108: 2102.768 | L108: 1535.198 | M108: 6332
F109: 2102.768 | L109: 1535.198 | M109: 6332
F110: 2102.768 | L110: 1535.198 | M110: 6332
F111: 2102.768 | L111: 1535.198 | M111: 6332
F112: 2102.768 | L112: 1535.198 | M112: 6332
F113: 2102.768 | L113: 1535.198 | M113: 6332
F114: 2102.768 | L114: 1535.198 | M114: 6332
F115: 2102.768 | L115: 1535.198 | M115: 6332
F116: 2102.768 | L116: 1535.198 | M116: 6332
F117: 2102.768 | L117: 1535.198 | M117: 6332
F118: 2102.768 | L118: 1535.198 | M118: 6332
F119: 2102.768 | L119: 1535.198 | M119: 6332
F120: 2102.768 | L120: 1535.198 | M120: 6332
F121: 2102.768 | L121: 1535.198 | M121: 6332
F122: 2102.768 | L122: 1535.198 | M122: 6332
F123: 2102.768 | L123: 1535.198 | M123: 6332
F124: 2102.768 | L124: 1535.198 | M124: 6332
F125: 2102.768 | L125: 1535.198 | M125: 6332
F126: 2102.768 | L126: 1535.198 | M126: 6332
F127: 2102.768 | L127: 1535.198 | M127: 6332
F128: 2102.768 | L128: 1535.198 | M128: 6332
F129: 2102.768 | L129: 1535.198 | M129: 6332
F130: 2102.768 | L130: 1535.198 | M130: 6332
F131: 2102.768 | L131: 1535.198 | M131: 6332
F132: 2102.768 | L132: =L131+E132-D132-G132-H132 -> 1535.198 | M132: =M131+I132-J132 -> 6332
F133: 2102.768 | L133: 1535.198 | M133: 6332
F134: 2102.768 | L134: 1535.198 | M134: 6332
F135: 2102.768 | L135: 1535.198 | M135: 6332
F136: =F135-D136+E136 -> 2102.768 | L136: 1535.198 | M136: 6332
F137: 2102.768 | L137: 1535.198 | M137: 6332
F138: 2102.768 | L138: 1535.198 | M138: 6332
F139: 2102.768 | L139: 1535.198 | M139: 6332
F140: 2102.768 | L140: 1535.198 | M140: 6332
F141: 2102.768 | L141: 1535.198 | M141: 6332
F142: 2102.768 | L142: 1535.198 | M142: 6332
F143: 2102.768 | L143: 1535.198 | M143: 6332
F144: 2102.768 | L144: 1535.198 | M144: 6332
F145: 2102.768 | L145: 1535.198 | M145: 6332
F146: 2102.768 | L146: 1535.198 | M146: 6332
F147: 2102.768 | L147: 1535.198 | M147: 6332
F148: 2102.768 | L148: 1535.198 | M148: 6332
F149: 2102.768 | L149: 1535.198 | M149: 6332
F150: 2102.768 | L150: 1535.198 | M150: 6332
F151: 2102.768 | L151: 1535.198 | M151: 6332
